Workbook

Sheet FIA
C1: NATURAL GAS COMPRESSION SERVICE CHARGE ANALYSIS | H1: ="Version: P_"&Q3 -> Version: P_FIA_CNG_v1_P_12-21-2012.xlsm | L1: CNG MODIFICATION KEY: | Q1: In compliance with UG-120747 line extension O&M costs and FIT rider, UG-091548 line extension standard costs, and UG-111050 capital structure and margin rates (Password-protected) | AG1: Input Selection
D2: INPUT PROJECT ATTRIBUTES | L2: New additions | Q2: BASE MARGIN RATES -- Effective 5/14/2012
D3: Attribute A | E3: LATECOMER OR ADDITION PRIOR TO REVIEW? (Yes or No) | I3: No | L3: Add CNG to Formula | Q3: FIA_CNG_v1_P_12-21-2012.xlsm | R3: 23 | S3: 31 | T3: 31T | U3: 41 | V3: 41T | W3: 53 | X3: 61 | Y3: 85 | Z3: 85T | AA3: 86 | AB3: 86T | AC3: 87 | AD3: 87T | AG3: Valid Rate Schedules | AH3: Yes/No | AI3: NCR | AM3: Service/Structure Type | AN3: Expected Years of Revenue
D4: Attribute B | E4: DEVELOPER PLAT? (Yes or No) | I4: No | L4: Input from CompressService Tab | Q4: Customer Charge | R4: 10.34 | S4: 33.42 | T4: 367.59 | U4: 114.22 | V4: 440.55 | W4: =R4 -> 10.34 | X4: ADDITIONAL REVENUE | Y4: 563.45 | Z4: 901.5 | AA4: 144.01 | AB4: 458.22 | AC4: 579.19 | AD4: 926.71 | AG4: 23 | AH4: Yes | AI4: 0.17 | AM4: Single Family Residences | AN4: 33
D5: Attribute C | E5: FINAL REVIEW? | I5: No | L5: Not Applicable | Q5: Therm Charge - Block 1 | R5: 0.38641 | S5: 0.32599 | T5: =-0.00539+S5 -> 0.3206 | U5: 0.14649 | V5: =-0.00539+U5 -> 0.1411 | W5: =R5 -> 0.38641 | Y5: =0.00682+Z5 -> 0.11262 | Z5: 0.1058 | AA5: 0.21162 | AB5: 0.2048 | AC5: =0.00539+AD5 -> 0.15224 | AD5: 0.14685 | AG5: 31 | AH5: No | AI5: 0.115 | AM5: Mobile Home | AN5: 10
D6: Attribute D | E6: FACILITY MODIFICATION FOR EXISTING GAS CUSTOMER w/ SCHEDULE 7 VOLUME ALLOWANCE? (Yes or No) NCR/QP option is not available. | I6: No | J6: =IF(OR(AND($I$6="Yes",$I$7="Yes"),AND($I$6="Yes",$I$8="Yes"),AND($I$7="Yes",$I$8="Yes")),"Please check your entry in CELL I6, I8 & I7 and choose 'Yes' in only one of the three cells.","") ->  | L6: Goal Seek Result | Q6: Therm Charge - Block 2 | U6: 0.11954 | V6: =-0.00539+U6 -> 0.11415 | Y6: 0.06106 | Z6: 0.05424 | AA6: 0.15366 | AB6: 0.14684 | AC6: 0.09505 | AD6: 0.08966 | AG6: 31T | AM6: Multi-Family Dwellings - (2+ Units, Individual Metered) | AN6: 33
A7: NATURAL GAS COMPRESSION SERVICE CHARGE ANALYSIS | D7: Attribute E | E7: FACILITY MODIFICATION FOR EXISTING GAS CUSTOMER w/ NO ADDITIONAL REVENUE? (Yes or No) Revenue in this case means incremental revenue to PSE due to increased therm usage by the customer, NOT revenue credits due to Schedule 7 volume allowances. NCR/QP option is not available. | I7: No | J7: =IF(OR(AND($I$6="Yes",$I$7="Yes"),AND($I$6="Yes",$I$8="Yes"),AND($I$7="Yes",$I$8="Yes")),"Please check your entry in CELL I6, I8 & I7 and choose 'Yes' in only one of the three cells.","") ->  | Q7: Therm Charge - Block 3 | Y7: 0.05888 | Z7: 0.05206 | AC7: 0.06328 | AD7: 0.05789 | AG7: 41 | AM7: Multi-Family Dwellings - (2+ Units, Master Metered) | AN7: 20
D8: Attribute F | E8: NEW FACILITY EXTENSION w/ NO SCHEDULE 7 VOLUME ALLOWANCE? (Yes or No) Schedule 7 provides volume allowance ONLY for space heating, water heating range, dryer, hot tub and fireplace uses. NCR/QP option is not available. | I8: No | J8: =IF(OR(AND($I$6="Yes",$I$7="Yes"),AND($I$6="Yes",$I$8="Yes"),AND($I$7="Yes",$I$8="Yes")),"Please check your entry in CELL I6, I8 & I7 and choose 'Yes' in only one of the three cells.","") ->  | Q8: Therm Charge - Block 4 | AC8: 0.04334 | AD8: 0.03795 | AG8: 41T | AM8: Commercial, Industrial, Mixed-Use | AN8: 20
A9: =Q1 -> In compliance with UG-120747 line extension O&M costs and FIT rider, UG-091548 line extension standard costs, and UG-111050 capital structure and margin rates (Password-protected) | D9: Attribute G | E9: EXPECTED YEARS OF REVENUE: (Years) | F9: =IF(OR(NOT(ISERROR(FIND("T",LEFT(C19,1)))),NOT(ISERROR(FIND("T",LEFT(D19,1)))),NOT(ISERROR(FIND("T",LEFT(E19,1)))),NOT(ISERROR(FIND("T",LEFT(F19,1)))),NOT(ISERROR(FIND("T",LEFT(G19,1)))),NOT(ISERROR(FIND("T",LEFT(H19,1)))),NOT(ISERROR(FIND("T",LEFT(I19,1))))),AM9,"") ->  | H9: 10 | I9: =IF(I11="Yes",CompressionService!B2,AU12) -> 15 | Q9: Therm Charge - Block 5 | AC9: 0.03334 | AD9: 0.02795 | AG9: 53 | AM9: Temporary Services or Structures (Please see Project Manager and enter No. of years at the cell H9 .) | AN9: =H9 -> 10
D10: Attribute H | E10: NEW FACILITY EXTENSION OR FACILITY MODIFICATION FOR COMMUNITY AESTHETICS OR IN THE INTEREST OF PUBLIC SAFETY AND DOES NOT DIRECTLY BENEFIT PARTICULAR PSE CUSTOMERS? (Yes or No) Please refer to RSI No. G-R28 and contact Rates Department. Special IRS rulings may be applicable. | I10: No | W10: =$AI$42 -> 91 | AC10: 0.02747 | AD10: 0.02208 | AG10: 61
B11: =IF(OR(SUM(Therms!B64:H64)>0,SUM(ConstructionCosts!C41:I44)>0),"RULE 7 REVIEW","") ->  | D11: Attribute I | E11: NATURAL GAS COMPRESSION FACILITIES? (Yes or No) | I11: Yes | AG11: 85
Q12: Effective 11/1/2011 Schedule 101 | AG12: 85T | AM12: =E9 -> EXPECTED YEARS OF REVENUE: (Years) | AN12: =IF(C$23>=1,IF(NOT(ISNA(MATCH(C$19,$AM$4:$AM$9,FALSE))),OFFSET($AN$3,MATCH(C$19,$AM$4:$AM$9,FALSE),0),0)) -> 10 | AO12: =IF(D$23>=1,IF(NOT(ISNA(MATCH(D$19,$AM$4:$AM$9,FALSE))),OFFSET($AN$3,MATCH(D$19,$AM$4:$AM$9,FALSE),0),0)) -> FALSE | AP12: FALSE | AQ12: FALSE | AR12: FALSE | AS12: FALSE | AT12: FALSE | AU12: =MIN(IF(AN12:AT12>0,AN12:AT12)) -> 10
H13: TARGET ROR | I13: =$G$167 -> 0.0777 | Q13: GAS COSTS | R13: 0.67838 | S13: 0.67193 | T13: 0.0007 | U13: 0.57726 | V13: =$T$13 -> 0.0007 | W13: 4.00641 | X13: =X4 -> ADDITIONAL REVENUE | Y13: 0.61335 | Z13: =$T$13 -> 0.0007 | AA13: 0.61817 | AB13: =$T$13 -> 0.0007 | AC13: 0.58522 | AD13: =$T$13 -> 0.0007 | AG13: 86 | AN13: =C19 -> 0 | AO13: =D19 -> 0 | AP13: 0 | AQ13: 0 | AR13: 0 | AS13: 0 | AT13: 0
C14: enter customer name | F14: REP: | G14: enter employee name | Q14: Effective 6/22/2012 Schedule 7 Section 6: Operation and Maintenance Expense | AG14: 86T | AN14: =C21 -> 1 | AO14: =D21 -> 2 | AP14: 3 | AQ14: 4 | AR14: 5 | AS14: 6 | AT14: 7
B15: SERVICE ADDRESS: | C15: enter street address | F15: ORDER NO: | G15: enter SAP order no. | Q15: CUSTOMER COST | R15: 67 | S15: 196 | T15: 1974 | U15: 754 | V15: 2693 | W15: =R15 -> 67 | X15: =X4 -> ADDITIONAL REVENUE | Y15: 7799 | Z15: =$Y$15 -> 7799 | AA15: 621 | AB15: 1974 | AC15: =$Y$15 -> 7799 | AD15: =$Y$15 -> 7799 | AG15: 87
C16: enter city, state and zip | F16: NAICS CODE: | G16: enter NAICS code | AG16: 87T
B17: PROJECT DESCRIPTION: | C17: enter project description | Q17: REVCST1
Q18: RATE | R18: =R$3 -> 23 | S18: 31 | T18: 31T | U18: 41 | V18: 41T | W18: 53 | X18: 61 | Y18: 85 | Z18: 85T | AA18: 86 | AB18: 86T | AC18: 87 | AD18: 87T | AG18: Gas First Response Trip Charge Calculation - 2012
B19: CUSTOMER GROUP STRUCTURE TYPE: | Q19: REV/TH | R19: =IF($I$6="Yes",(R$5+$R$13),(R$4+(R$5+$R$13)*R22)/R22) ->  | S19: =IF($I$6="Yes",(S$5+$S$13),(S$4+(S$5+$S$13)*S22)/S22) ->  | T19: =IF($I$6="Yes",(T$5+$T$13),(T$4+(T$5+$T$13)*T22)/T22) ->  | U19: =IF($I$6="Yes",(U$13+$U$6),(IF(U22>5000,(U22-5000)*$U$6+4500*$U$5,IF(U22>500,(U22-500)*$U$5,0))+500*$U$5+$U$4+U22*U$13)/U22) ->  | V19: =IF($I$6="Yes",(V$13+V$6),(IF(V22>5000,(V22-5000)*V$6+4500*V$5,IF(V22>500,(V22-500)*V$5,0))+500*V$5+V$4+V22*V$13)/V22) ->  | W19: =IF($I$6="Yes",(W$5+W$13),(W$4+(W$5+W$13)*W22)/W22) ->  | X19: =X$4 -> ADDITIONAL REVENUE | Y19: =IF($I$6="Yes",(Y$13+Y$7),(IF(Y22>50000,(Y22-50000)*(Y$7+Y$13)+25000*(Y$6+Y$13)+25000*(Y$5+Y$13),IF(Y22>25000,(Y22-25000)*(Y$6+Y$13)+25000*(Y$5+Y$13),Y22*(Y$5+Y$13)))+Y$4)/Y22) ->  | Z19: =IF($I$6="Yes",(Z$13+Z$7),(IF(Z22>50000,(Z22-50000)*(Z$7+Z$13)+25000*(Z$6+Z$13)+25000*(Z$5+Z$13),IF(Z22>25000,(Z22-25000)*(Z$6+Z$13)+25000*(Z$5+Z$13),Z22*(Z$5+Z$13)))+Z$4)/Z22) ->  | AA19: =IF($I$6="Yes",(AA$6+AA$13),(IF(AA22>1000,(AA22-1000)*(AA$6+AA$13)+1000*(AA$5+AA$13),AA22*(AA$5+AA$13))+AA$4)/AA22) ->  | AB19: =IF($I$6="Yes",(AB$6+$AB$13),(IF(AB22>1000,(AB22-1000)*(AB$6+$AB$13)+1000*(AB$5+$AB$13),AB22*(AB$5+$AB$13))+$AB$4)/AB22) ->  | AC19: =IF($I$6="Yes",(AC$10+$AC$13),IF(AC22>500000,(AC22-500000)*(AC$10+$AC$13)+300000*(AC$9+$AC$13)+100000*(AC$8+$AC$13)+50000*(AC$7+$AC$13)+25000*(AC$6+$AC$13)+25000*(AC$5+$AC$13)+AC$4,IF(AC22>200000,(AC22-200000)*(AC$9+$AC$13)+100000*(AC$8+$AC$13)+50000*(AC$7+$AC$13)+25000*(AC$6+$AC$13)+25000*(AC$5+$AC$13)+AC$4,IF(AC22>100000,(AC22-100000)*(AC$8+$AC$13)+50000*(AC$7+$AC$13)+25000*(AC$6+$AC$13)+25000*(AC$5+$AC$13)+AC$4,IF(AC22>50000,(AC22-50000)*(AC$7+$AC$13)+25000*(AC$6+$AC$13)+25000*(AC$5+$AC$13)+AC$4,IF(AC22>25000,(AC22-25000)*(AC$6+$AC$13)+25000*(AC$5+$AC$13)+AC$4,AC22*(AC$5+$AC$13)+AC$4)))))/AC22) ->  | AD19: =IF($I$6="Yes",(AD$10+AD$13),IF(AD22>500000,(AD22-500000)*(AD$10+AD$13)+300000*(AD$9+AD$13)+100000*(AD$8+AD$13)+50000*(AD$7+AD$13)+25000*(AD$6+AD$13)+25000*(AD$5+AD$13)+AD$4,IF(AD22>200000,(AD22-200000)*(AD$9+AD$13)+100000*(AD$8+AD$13)+50000*(AD$7+AD$13)+25000*(AD$6+AD$13)+25000*(AD$5+AD$13)+AD$4,IF(AD22>100000,(AD22-100000)*(AD$8+AD$13)+50000*(AD$7+AD$13)+25000*(AD$6+AD$13)+25000*(AD$5+AD$13)+AD$4,IF(AD22>50000,(AD22-50000)*(AD$7+AD$13)+25000*(AD$6+AD$13)+25000*(AD$5+AD$13)+AD$4,IF(AD22>25000,(AD22-25000)*(AD$6+AD$13)+25000*(AD$5+AD$13)+AD$4,AD22*(AD$5+AD$13)+AD$4)))))/AD22) ->  | AG19: (Does not include CC Assessments unless identified below)
B20: CUSTOMER GROUP DESCRIPTION: | Q20: GAS/TH | R20: =R$13 -> 0.67838 | S20: 0.67193 | T20: 0.0007 | U20: 0.57726 | V20: 0.0007 | W20: 4.00641 | X20: =X$4 -> ADDITIONAL REVENUE | Y20: =Y$13 -> 0.61335 | Z20: 0.0007 | AA20: 0.61817 | AB20: 0.0007 | AC20: 0.58522 | AD20: 0.0007 | AI20: CFS Technician
B21: CUSTOMER GROUP ID.: | C21: 1 | D21: 2 | E21: 3 | F21: 4 | G21: 5 | H21: 6 | I21: 7 | J21: TOTAL | Q21: COST/YR. | R21: =IF($I$6="Yes",0,+R$15) -> 67 | S21: 196 | T21: 1974 | U21: 754 | V21: 2693 | W21: 67 | X21: =X$4 -> ADDITIONAL REVENUE | Y21: =IF($I$6="Yes",0,+Y$15) -> 7799 | Z21: 7799 | AA21: 621 | AB21: 1974 | AC21: 7799 | AD21: 7799 | AI21: Straight Time | AJ21: Time and a Half | AK21: Double Time
B22: RATE SCHEDULE: | K22: Input from CompressService Tab | Q22: AVG. THERMS/MONTH | R22: =$C24/12 -> 0 | S22: 0 | T22: 0 | U22: 0 | V22: 0 | W22: 0 | X22: =X$4 -> ADDITIONAL REVENUE | Y22: =$C24/12 -> 0 | Z22: 0 | AA22: 0 | AB22: 0 | AC22: 0 | AD22: 0 | AG22: Hourly Pay | AI22: 32.39 | AJ22: 48.585 | AK22: 64.78
B23: NO. OF CUSTOMER/S | C23: 1 | D23: 0 | E23: 0 | F23: 0 | G23: 0 | H23: 0 | I23: 0 | J23: =SUM(C23:I23) -> 1 | K23: Input from CompressService Tab
B24: THERMS/CUST/YR.: | C24: =IF(OR(I11="Yes",AND($I$7="Yes",C$23>0)),0,IF(AND(C$23>0,$I$8="Yes"),1,Therms!B$59)) -> 0 | D24: =IF(OR(J11="Yes",AND($I$7="Yes",D$23>0)),0,IF(AND(D$23>0,$I$8="Yes"),1,Therms!C$59)) -> 0 | E24: =IF(OR(K11="Yes",AND($I$7="Yes",E$23>0)),0,IF(AND(E$23>0,$I$8="Yes"),1,Therms!D$59)) -> 0 | F24: =IF(OR(L11="Yes",AND($I$7="Yes",F$23>0)),0,IF(AND(F$23>0,$I$8="Yes"),1,Therms!E$59)) -> 0 | G24: =IF(OR(M11="Yes",AND($I$7="Yes",G$23>0)),0,IF(AND(G$23>0,$I$8="Yes"),1,Therms!F$59)) -> 0 | H24: =IF(OR(N11="Yes",AND($I$7="Yes",H$23>0)),0,IF(AND(H$23>0,$I$8="Yes"),1,Therms!G$59)) -> 0 | I24: =IF(OR(O11="Yes",AND($I$7="Yes",I$23>0)),0,IF(AND(I$23>0,$I$8="Yes"),1,Therms!H$59)) -> 0 | J24: =SUM(C23*C24,D23*D24,E23*E24,F23*F24,G23*G24,H23*H24,I23*I24) -> 0 | K24: Input from CompressService Tab | AG24: Labor Overheads
B25: INSTALLATION YEAR (1=NOW): | C25: 1 | D25: 1 | E25: 1 | F25: 1 | G25: 1 | H25: 1 | I25: 1 | AG25: Employee Benefits (33.00%) | AH25: 0.33 | AI25: 10.6887 | AJ25: 16.03305 | AK25: 21.3774
B26: MAIN COST: | C26: =IF(OR(I11="Yes",C23>0),ConstructionCosts!C31,0) -> 0 | D26: =IF(OR(J11="Yes",D23>0),ConstructionCosts!D31,0) -> 0 | E26: =IF(OR(K11="Yes",E23>0),ConstructionCosts!E31,0) -> 0 | F26: =IF(OR(L11="Yes",F23>0),ConstructionCosts!F31,0) -> 0 | G26: =IF(OR(M11="Yes",G23>0),ConstructionCosts!G31,0) -> 0 | H26: =IF(OR(N11="Yes",H23>0),ConstructionCosts!H31,0) -> 0 | I26: =IF(OR(O11="Yes",I23>0),ConstructionCosts!I31,0) -> 0 | J26: =IF(OR(P11="Yes",J23>0),ConstructionCosts!J31,0) -> 0 | Q26: REVCST2 | AG26: Payroll Taxes (9.70%) | AH26: 0.097 | AI26: 3.14183 | AJ26: 4.712745 | AK26: 6.28366
B27: SERVICE COST/CUST: | C27: =IF(OR(I11="Yes",C23>0),ConstructionCosts!C32,0) -> 0 | D27: =IF(OR(J11="Yes",D23>0),ConstructionCosts!D32,0) -> 0 | E27: =IF(OR(K11="Yes",E23>0),ConstructionCosts!E32,0) -> 0 | F27: =IF(OR(L11="Yes",F23>0),ConstructionCosts!F32,0) -> 0 | G27: =IF(OR(M11="Yes",G23>0),ConstructionCosts!G32,0) -> 0 | H27: =IF(OR(N11="Yes",H23>0),ConstructionCosts!H32,0) -> 0 | I27: =IF(OR(O11="Yes",I23>0),ConstructionCosts!I32,0) -> 0 | J27: =C27*C$23+D27*D$23+E27*E$23+F27*F$23+G27*G$23+H27*H$23+I27*I$23 -> 0 | Q27: RATE | R27: =R$3 -> 23 | S27: 31 | T27: 31T | U27: 41 | V27: 41T | W27: 53 | X27: 61 | Y27: 85 | Z27: 85T | AA27: 86 | AB27: 86T | AC27: 87 | AD27: 87T | AG27: PTO/Holidays (15.30%) | AH27: 0.153 | AI27: 4.95567 | AJ27: 7.433505 | AK27: 9.91134
B28: MSA COST/CUST: | C28: =IF(OR(I11="Yes",C23>0),ConstructionCosts!C33,0) -> 0 | D28: =IF(OR(J11="Yes",D23>0),ConstructionCosts!D33,0) -> 0 | E28: =IF(OR(K11="Yes",E23>0),ConstructionCosts!E33,0) -> 0 | F28: =IF(OR(L11="Yes",F23>0),ConstructionCosts!F33,0) -> 0 | G28: =IF(OR(M11="Yes",G23>0),ConstructionCosts!G33,0) -> 0 | H28: =IF(OR(N11="Yes",H23>0),ConstructionCosts!H33,0) -> 0 | I28: =IF(OR(O11="Yes",I23>0),ConstructionCosts!I33,0) -> 0 | J28: =C28*C$23+D28*D$23+E28*E$23+F28*F$23+G28*G$23+H28*H$23+I28*I$23 -> 0 | Q28: REV/TH | R28: =IF($I$6="Yes",(R$5+$R$13),(R$4+(R$5+$R$13)*R31)/R31) ->  | S28: =IF($I$6="Yes",(S$5+$S$13),(S$4+(S$5+$S$13)*S31)/S31) ->  | T28: =IF($I$6="Yes",(T$5+$T$13),(T$4+(T$5+$T$13)*T31)/T31) ->  | U28: =IF($I$6="Yes",(U$13+$U$6),(IF(U31>5000,(U31-5000)*$U$6+4500*$U$5,IF(U31>500,(U31-500)*$U$5,0))+500*$U$5+$U$4+U31*U$13)/U31) ->  | V28: =IF($I$6="Yes",(V$13+V$6),(IF(V31>5000,(V31-5000)*V$6+4500*V$5,IF(V31>500,(V31-500)*V$5,0))+500*V$5+V$4+V31*V$13)/V31) ->  | W28: =IF($I$6="Yes",(W$5+W$13),(W$4+(W$5+W$13)*W31)/W31) ->  | X28: =X$4 -> ADDITIONAL REVENUE | Y28: =IF($I$6="Yes",(Y$13+Y$7),(IF(Y31>50000,(Y31-50000)*(Y$7+Y$13)+25000*(Y$6+Y$13)+25000*(Y$5+Y$13),IF(Y31>25000,(Y31-25000)*(Y$6+Y$13)+25000*(Y$5+Y$13),Y31*(Y$5+Y$13)))+Y$4)/Y31) ->  | Z28: =IF($I$6="Yes",(Z$13+Z$7),(IF(Z31>50000,(Z31-50000)*(Z$7+Z$13)+25000*(Z$6+Z$13)+25000*(Z$5+Z$13),IF(Z31>25000,(Z31-25000)*(Z$6+Z$13)+25000*(Z$5+Z$13),Z31*(Z$5+Z$13)))+Z$4)/Z31) ->  | AA28: =IF($I$6="Yes",(AA$6+AA$13),(IF(AA31>1000,(AA31-1000)*(AA$6+AA$13)+1000*(AA$5+AA$13),AA31*(AA$5+AA$13))+AA$4)/AA31) ->  | AB28: =IF($I$6="Yes",(AB$6+$AB$13),(IF(AB31>1000,(AB31-1000)*(AB$6+$AB$13)+1000*(AB$5+$AB$13),AB31*(AB$5+$AB$13))+$AB$4)/AB31) ->  | AC28: =IF($I$6="Yes",(AC$10+$AC$13),IF(AC31>500000,(AC31-500000)*(AC$10+$AC$13)+300000*(AC$9+$AC$13)+100000*(AC$8+$AC$13)+50000*(AC$7+$AC$13)+25000*(AC$6+$AC$13)+25000*(AC$5+$AC$13)+AC$4,IF(AC31>200000,(AC31-200000)*(AC$9+$AC$13)+100000*(AC$8+$AC$13)+50000*(AC$7+$AC$13)+25000*(AC$6+$AC$13)+25000*(AC$5+$AC$13)+AC$4,IF(AC31>100000,(AC31-100000)*(AC$8+$AC$13)+50000*(AC$7+$AC$13)+25000*(AC$6+$AC$13)+25000*(AC$5+$AC$13)+AC$4,IF(AC31>50000,(AC31-50000)*(AC$7+$AC$13)+25000*(AC$6+$AC$13)+25000*(AC$5+$AC$13)+AC$4,IF(AC31>25000,(AC31-25000)*(AC$6+$AC$13)+25000*(AC$5+$AC$13)+AC$4,AC31*(AC$5+$AC$13)+AC$4)))))/AC31) ->  | AD28: =IF($I$6="Yes",(AD$10+AD$13),IF(AD31>500000,(AD31-500000)*(AD$10+AD$13)+300000*(AD$9+AD$13)+100000*(AD$8+AD$13)+50000*(AD$7+AD$13)+25000*(AD$6+AD$13)+25000*(AD$5+AD$13)+AD$4,IF(AD31>200000,(AD31-200000)*(AD$9+AD$13)+100000*(AD$8+AD$13)+50000*(AD$7+AD$13)+25000*(AD$6+AD$13)+25000*(AD$5+AD$13)+AD$4,IF(AD31>100000,(AD31-100000)*(AD$8+AD$13)+50000*(AD$7+AD$13)+25000*(AD$6+AD$13)+25000*(AD$5+AD$13)+AD$4,IF(AD31>50000,(AD31-50000)*(AD$7+AD$13)+25000*(AD$6+AD$13)+25000*(AD$5+AD$13)+AD$4,IF(AD31>25000,(AD31-25000)*(AD$6+AD$13)+25000*(AD$5+AD$13)+AD$4,AD31*(AD$5+AD$13)+AD$4)))))/AD31) ->  | AG28: Incentive Pay (9.20%) | AH28: 0.092 | AI28: 2.97988 | AJ28: 4.46982 | AK28: 5.95976
B29: OTHER PLANT: | C29: =IF(OR(I11="Yes",C23>0),ConstructionCosts!C34,0) -> 0 | D29: =IF(OR(J11="Yes",D23>0),ConstructionCosts!D34,0) -> 0 | E29: =IF(OR(K11="Yes",E23>0),ConstructionCosts!E34,0) -> 0 | F29: =IF(OR(L11="Yes",F23>0),ConstructionCosts!F34,0) -> 0 | G29: =IF(OR(M11="Yes",G23>0),ConstructionCosts!G34,0) -> 0 | H29: =IF(OR(N11="Yes",H23>0),ConstructionCosts!H34,0) -> 0 | I29: =IF(OR(O11="Yes",I23>0),ConstructionCosts!I34,0) -> 0 | J29: =SUM(C29:I29) -> 0 | K29: Input from CompressService Tab | Q29: GAS/TH | R29: =R$13 -> 0.67838 | S29: 0.67193 | T29: 0.0007 | U29: 0.57726 | V29: 0.0007 | W29: 4.00641 | X29: =X$4 -> ADDITIONAL REVENUE | Y29: =Y$13 -> 0.61335 | Z29: 0.0007 | AA29: 0.61817 | AB29: 0.0007 | AC29: 0.58522 | AD29: 0.0007 | AG29: Total Labor OH | AI29: 21.76608 | AJ29: 32.64912 | AK29: 43.53216
B30: PROPANE CONVERSION COST: | C30: =IF(AND(C23>0,C22=53),C23*$X$10,0) -> 0 | D30: 0 | E30: 0 | F30: 0 | G30: 0 | H30: 0 | I30: 0 | J30: =SUM(C30:I30) -> 0 | K30: Not Applicable | Q30: COST/YR | R30: =IF($I$6="Yes",0,+R$15) -> 67 | S30: 196 | T30: 1974 | U30: 754 | V30: 2693 | W30: 67 | X30: =X$4 -> ADDITIONAL REVENUE | Y30: =IF($I$6="Yes",0,+Y$15) -> 7799 | Z30: 7799 | AA30: 621 | AB30: 1974 | AC30: 7799 | AD30: 7799
B31: TOTAL INVESTMENT: | C31: =C26+(C23*C27)+(C28*C23)+C29+C30 -> 0 | D31: 0 | E31: 0 | F31: 0 | G31: 0 | H31: 0 | I31: 0 | J31: =SUM(C31:I31) -> 0 | Q31: AVG THERMS/MONTH | R31: =$D24/12 -> 0 | S31: 0 | T31: 0 | U31: 0 | V31: 0 | W31: 0 | X31: =X$4 -> ADDITIONAL REVENUE | Y31: =$D24/12 -> 0 | Z31: 0 | AA31: 0 | AB31: 0 | AC31: 0 | AD31: 0 | AG31: Total Labor & OH | AI31: 54.15608 | AJ31: 81.23412 | AK31: 108.31216
B32: ADDITIONAL REVENUE: | C32: 0 | D32: 0 | E32: 0 | F32: 0 | G32: 0 | H32: 0 | I32: 0 | J32: =SUM(C32:I32) -> 0
AG33: Misc. Charges
B34: REVENUE PER THERM: | C34: =IF(C$23<=0,"",IF(OR($I$11="Yes",$I$7="Yes"),0,IF(NOT(ISBLANK(C$22)),OFFSET($Q$17,MATCH("REVCST"&TEXT(C21,"#"),$Q$17:$Q$72,FALSE)+1,MATCH(C22,$R$3:$AD$3,FALSE)),""))) -> 0 | Q34: REVCST3 | AG34: Vehicles | AI34: 5.09 | AJ34: 5.09 | AK34: 5.09
B35: ANNUAL COST/CUST: | C35: =IF(C$23<=0,"",IF(OR($I$11="Yes",$I$7="Yes"),0,IF(NOT(ISBLANK(C$22)),OFFSET($Q$17,MATCH("REVCST"&TEXT(C21,"#"),$Q$17:$Q$72,FALSE)+3,MATCH(C22,$R$3:$AD$3,FALSE)),""))) -> 0 | Q35: RATE | R35: =R$3 -> 23 | S35: 31 | T35: 31T | U35: 41 | V35: 41T | W35: 53 | X35: 61 | Y35: 85 | Z35: 85T | AA35: 86 | AB35: 86T | AC35: 87 | AD35: 87T | AG35: Cell Phones/ Pagers | AI35: 0.7126892903 | AJ35: 0.7126892903 | AK35: 0.7126892903
B36: COST OF GAS/THERM: | C36: =IF(C$23<=0,"",IF(OR($I$7="Yes",$I$11="Yes"),0,IF(NOT(ISBLANK(C$22)),OFFSET($Q$17,MATCH("REVCST"&TEXT(C21,"#"),$Q$17:$Q$72,FALSE)+2,MATCH(C22,$R$3:$AD$3,FALSE)),""))) -> 0 | L36: =ISERROR(F41) -> FALSE | Q36: REV/TH | R36: =IF($I$6="Yes",(R$5+$R$13),(R$4+(R$5+$R$13)*R39)/R39) ->  | S36: =IF($I$6="Yes",(S$5+$S$13),(S$4+(S$5+$S$13)*S39)/S39) ->  | T36: =IF($I$6="Yes",(T$5+$T$13),(T$4+(T$5+$T$13)*T39)/T39) ->  | U36: =IF($I$6="Yes",(U$13+$U$6),(IF(U39>5000,(U39-5000)*$U$6+4500*$U$5,IF(U39>500,(U39-500)*$U$5,0))+500*$U$5+$U$4+U39*U$13)/U39) ->  | V36: =IF($I$6="Yes",(V$13+V$6),(IF(V39>5000,(V39-5000)*V$6+4500*V$5,IF(V39>500,(V39-500)*V$5,0))+500*V$5+V$4+V39*V$13)/V39) ->  | W36: =IF($I$6="Yes",(W$5+W$13),(W$4+(W$5+W$13)*W39)/W39) ->  | X36: =X$4 -> ADDITIONAL REVENUE | Y36: =IF($I$6="Yes",(Y$13+Y$7),(IF(Y39>50000,(Y39-50000)*(Y$7+Y$13)+25000*(Y$6+Y$13)+25000*(Y$5+Y$13),IF(Y39>25000,(Y39-25000)*(Y$6+Y$13)+25000*(Y$5+Y$13),Y39*(Y$5+Y$13)))+Y$4)/Y39) ->  | Z36: =IF($I$6="Yes",(Z$13+Z$7),(IF(Z39>50000,(Z39-50000)*(Z$7+Z$13)+25000*(Z$6+Z$13)+25000*(Z$5+Z$13),IF(Z39>25000,(Z39-25000)*(Z$6+Z$13)+25000*(Z$5+Z$13),Z39*(Z$5+Z$13)))+Z$4)/Z39) ->  | AA36: =IF($I$6="Yes",(AA$6+AA$13),(IF(AA39>1000,(AA39-1000)*(AA$6+AA$13)+1000*(AA$5+AA$13),AA39*(AA$5+AA$13))+AA$4)/AA39) ->  | AB36: =IF($I$6="Yes",(AB$6+$AB$13),(IF(AB39>1000,(AB39-1000)*(AB$6+$AB$13)+1000*(AB$5+$AB$13),AB39*(AB$5+$AB$13))+$AB$4)/AB39) ->  | AC36: =IF($I$6="Yes",(AC$10+$AC$13),IF(AC39>500000,(AC39-500000)*(AC$10+$AC$13)+300000*(AC$9+$AC$13)+100000*(AC$8+$AC$13)+50000*(AC$7+$AC$13)+25000*(AC$6+$AC$13)+25000*(AC$5+$AC$13)+AC$4,IF(AC39>200000,(AC39-200000)*(AC$9+$AC$13)+100000*(AC$8+$AC$13)+50000*(AC$7+$AC$13)+25000*(AC$6+$AC$13)+25000*(AC$5+$AC$13)+AC$4,IF(AC39>100000,(AC39-100000)*(AC$8+$AC$13)+50000*(AC$7+$AC$13)+25000*(AC$6+$AC$13)+25000*(AC$5+$AC$13)+AC$4,IF(AC39>50000,(AC39-50000)*(AC$7+$AC$13)+25000*(AC$6+$AC$13)+25000*(AC$5+$AC$13)+AC$4,IF(AC39>25000,(AC39-25000)*(AC$6+$AC$13)+25000*(AC$5+$AC$13)+AC$4,AC39*(AC$5+$AC$13)+AC$4)))))/AC39) ->  | AD36: =IF($I$6="Yes",(AD$10+AD$13),IF(AD39>500000,(AD39-500000)*(AD$10+AD$13)+300000*(AD$9+AD$13)+100000*(AD$8+AD$13)+50000*(AD$7+AD$13)+25000*(AD$6+AD$13)+25000*(AD$5+AD$13)+AD$4,IF(AD39>200000,(AD39-200000)*(AD$9+AD$13)+100000*(AD$8+AD$13)+50000*(AD$7+AD$13)+25000*(AD$6+AD$13)+25000*(AD$5+AD$13)+AD$4,IF(AD39>100000,(AD39-100000)*(AD$8+AD$13)+50000*(AD$7+AD$13)+25000*(AD$6+AD$13)+25000*(AD$5+AD$13)+AD$4,IF(AD39>50000,(AD39-50000)*(AD$7+AD$13)+25000*(AD$6+AD$13)+25000*(AD$5+AD$13)+AD$4,IF(AD39>25000,(AD39-25000)*(AD$6+AD$13)+25000*(AD$5+AD$13)+AD$4,AD39*(AD$5+AD$13)+AD$4)))))/AD39) ->  | AG36: Uniforms | AI36: 0.5952380952 | AJ36: 0.5952380952 | AK36: 0.5952380952
Q37: GAS/TH | R37: =R$13 -> 0.67838 | S37: 0.67193 | T37: 0.0007 | U37: 0.57726 | V37: 0.0007 | W37: 4.00641 | X37: =X$4 -> ADDITIONAL REVENUE | Y37: =Y$13 -> 0.61335 | Z37: 0.0007 | AA37: 0.61817 | AB37: 0.0007 | AC37: 0.58522 | AD37: 0.0007 | AG37: Stores OH | AH37: 0.09 | AI37: 0.3010616883 | AJ37: 0.3010616883 | AK37: 0.3010616883
B38: INCREMENTAL ANNUAL REVENUE (AT MATURITY): | F38: =MAX(G272:AT272) -> 542191.8865 | Q38: COST/YR | R38: =IF($I$6="Yes",0,+R$15) -> 67 | S38: 196 | T38: 1974 | U38: 754 | V38: 2693 | W38: 67 | X38: =X$4 -> ADDITIONAL REVENUE | Y38: =IF($I$6="Yes",0,+Y$15) -> 7799 | Z38: 7799 | AA38: 621 | AB38: 1974 | AC38: 7799 | AD38: 7799 | AG38: Total Misc. Charges | AI38: 6.698989074 | AJ38: 6.698989074 | AK38: 6.698989074
Q39: AVG THERMS/MONTH | R39: =$E24/12 -> 0 | S39: 0 | T39: 0 | U39: 0 | V39: 0 | W39: 0 | X39: =X$4 -> ADDITIONAL REVENUE | Y39: =$E24/12 -> 0 | Z39: 0 | AA39: 0 | AB39: 0 | AC39: 0 | AD39: 0
B40: FIA CALCULATION RESULTS | AG40: Total Costs | AI40: 60.85506907 | AJ40: 87.93310907 | AK40: 115.0111491
B41: PROJECT RATE OF RETURN | F41: =D227 -> 0.07768023467 | H41: =IF(ISBLANK(ConstructionCosts!C21),"","Notes about OTHER PLANT COSTS") -> 
B42: =IF(J23>0,IF($F$41<$I$13*0.9999," PROJECT RATE OF RETURN LESS THAN REQUIRED ROR OF "&TEXT($I$13,"##.00%")&", CUSTOMER ADVANCE"," TARGET RATE OF RETURN MET, NO CONTRIBUTION REQUIRED"),"") -> PROJECT RATE OF RETURN LESS THAN REQUIRED ROR OF 7.77%, CUSTOMER ADVANCE | H42: =IF(ISERROR(F41),"Please check all FIA input",IF(ISBLANK(ConstructionCosts!C21),"",ConstructionCosts!C21)) ->  | Q42: REVCST4 | AG42: Propane Appliance Conversion Cost: | AI42: =ROUND(AI40*1.5,0) -> 91
B43: =IF(J23>0,IF(I3="Yes","AND LATECOMERS ARE REQUIRED TO PAY APPLICABLE NEW CUSTOMER RATE IF PAYMENT IS REQUIRED FROM THE ORIGNIAL FACILITIES EXTENSION FOR AT LEAST THE REMAINDER OF THE EXISTING FACILITIES EXTENSION PERIOD ",IF(AND(I7<>"Yes",I8<>"Yes",I6<>"Yes",$F$41<$I$13*0.9999)," OR SCHEDULE 107 NEW CUSTOMER RATE "&IF($F$49>0,"AND QUALIFYING PAYMENT","")&" REQUIRED ","")),"") -> OR SCHEDULE 107 NEW CUSTOMER RATE REQUIRED | Q43: RATE | R43: =R$3 -> 23 | S43: 31 | T43: 31T | U43: 41 | V43: 41T | W43: 53 | X43: 61 | Y43: 85 | Z43: 85T | AA43: 86 | AB43: 86T | AC43: 87 | AD43: 87T | AG43: 1 1/2 hours of labor cost that would be required to convert the average propane customer's propane burning furnace to a natural gas burning furnace when gas arrives via a main extension.
Q44: REV/TH | R44: =IF($I$6="Yes",(R$5+$R$13),(R$4+(R$5+$R$13)*R47)/R47) ->  | S44: =IF($I$6="Yes",(S$5+$S$13),(S$4+(S$5+$S$13)*S47)/S47) ->  | T44: =IF($I$6="Yes",(T$5+$T$13),(T$4+(T$5+$T$13)*T47)/T47) ->  | U44: =IF($I$6="Yes",(U$13+$U$6),(IF(U47>5000,(U47-5000)*$U$6+4500*$U$5,IF(U47>500,(U47-500)*$U$5,0))+500*$U$5+$U$4+U47*U$13)/U47) ->  | V44: =IF($I$6="Yes",(V$13+V$6),(IF(V47>5000,(V47-5000)*V$6+4500*V$5,IF(V47>500,(V47-500)*V$5,0))+500*V$5+V$4+V47*V$13)/V47) ->  | W44: =IF($I$6="Yes",(W$5+W$13),(W$4+(W$5+W$13)*W47)/W47) ->  | X44: =X$4 -> ADDITIONAL REVENUE | Y44: =IF($I$6="Yes",(Y$13+Y$7),(IF(Y47>50000,(Y47-50000)*(Y$7+Y$13)+25000*(Y$6+Y$13)+25000*(Y$5+Y$13),IF(Y47>25000,(Y47-25000)*(Y$6+Y$13)+25000*(Y$5+Y$13),Y47*(Y$5+Y$13)))+Y$4)/Y47) ->  | Z44: =IF($I$6="Yes",(Z$13+Z$7),(IF(Z47>50000,(Z47-50000)*(Z$7+Z$13)+25000*(Z$6+Z$13)+25000*(Z$5+Z$13),IF(Z47>25000,(Z47-25000)*(Z$6+Z$13)+25000*(Z$5+Z$13),Z47*(Z$5+Z$13)))+Z$4)/Z47) ->  | AA44: =IF($I$6="Yes",(AA$6+AA$13),(IF(AA47>1000,(AA47-1000)*(AA$6+AA$13)+1000*(AA$5+AA$13),AA47*(AA$5+AA$13))+AA$4)/AA47) ->  | AB44: =IF($I$6="Yes",(AB$6+$AB$13),(IF(AB47>1000,(AB47-1000)*(AB$6+$AB$13)+1000*(AB$5+$AB$13),AB47*(AB$5+$AB$13))+$AB$4)/AB47) ->  | AC44: =IF($I$6="Yes",(AC$10+$AC$13),IF(AC47>500000,(AC47-500000)*(AC$10+$AC$13)+300000*(AC$9+$AC$13)+100000*(AC$8+$AC$13)+50000*(AC$7+$AC$13)+25000*(AC$6+$AC$13)+25000*(AC$5+$AC$13)+AC$4,IF(AC47>200000,(AC47-200000)*(AC$9+$AC$13)+100000*(AC$8+$AC$13)+50000*(AC$7+$AC$13)+25000*(AC$6+$AC$13)+25000*(AC$5+$AC$13)+AC$4,IF(AC47>100000,(AC47-100000)*(AC$8+$AC$13)+50000*(AC$7+$AC$13)+25000*(AC$6+$AC$13)+25000*(AC$5+$AC$13)+AC$4,IF(AC47>50000,(AC47-50000)*(AC$7+$AC$13)+25000*(AC$6+$AC$13)+25000*(AC$5+$AC$13)+AC$4,IF(AC47>25000,(AC47-25000)*(AC$6+$AC$13)+25000*(AC$5+$AC$13)+AC$4,AC47*(AC$5+$AC$13)+AC$4)))))/AC47) ->  | AD44: =IF($I$6="Yes",(AD$10+AD$13),IF(AD47>500000,(AD47-500000)*(AD$10+AD$13)+300000*(AD$9+AD$13)+100000*(AD$8+AD$13)+50000*(AD$7+AD$13)+25000*(AD$6+AD$13)+25000*(AD$5+AD$13)+AD$4,IF(AD47>200000,(AD47-200000)*(AD$9+AD$13)+100000*(AD$8+AD$13)+50000*(AD$7+AD$13)+25000*(AD$6+AD$13)+25000*(AD$5+AD$13)+AD$4,IF(AD47>100000,(AD47-100000)*(AD$8+AD$13)+50000*(AD$7+AD$13)+25000*(AD$6+AD$13)+25000*(AD$5+AD$13)+AD$4,IF(AD47>50000,(AD47-50000)*(AD$7+AD$13)+25000*(AD$6+AD$13)+25000*(AD$5+AD$13)+AD$4,IF(AD47>25000,(AD47-25000)*(AD$6+AD$13)+25000*(AD$5+AD$13)+AD$4,AD47*(AD$5+AD$13)+AD$4)))))/AD47) -> 
B45: =IF(J23>0,IF(AND(I3<>"Yes",I7<>"Yes",I8<>"Yes",I6<>"Yes",$F$41<$I$13*0.9999),"OPTION NO. 1 - "&IF($F$49>0,"Qualifying Payment (QP) plus ","")&"New Customer Rate (NCR)",""),"") -> OPTION NO. 1 - New Customer Rate (NCR) | Q45: GAS/TH | R45: =R$13 -> 0.67838 | S45: 0.67193 | T45: 0.0007 | U45: 0.57726 | V45: 0.0007 | W45: 4.00641 | X45: =X$4 -> ADDITIONAL REVENUE | Y45: =Y$13 -> 0.61335 | Z45: 0.0007 | AA45: 0.61817 | AB45: 0.0007 | AC45: 0.58522 | AD45: 0.0007
B46: =IF(J23>0,IF(AND(I3<>"Yes",I7<>"Yes",I8<>"Yes",I6<>"Yes",$F$41<$I$13*0.75)," ROR LESS THAN THRESHOLD ROR OF "&TEXT($I$13*0.75,"##.00%")&"; QUALIFICATION PAYMENT REQUIRED",""),"") ->  | Q46: COST/YR | R46: =IF($I$6="Yes",0,+R$15) -> 67 | S46: 196 | T46: 1974 | U46: 754 | V46: 2693 | W46: 67 | X46: =X$4 -> ADDITIONAL REVENUE | Y46: =IF($I$6="Yes",0,+Y$15) -> 7799 | Z46: 7799 | AA46: 621 | AB46: 1974 | AC46: 7799 | AD46: 7799
B47: =IF(J23>0,IF(AND(I3<>"Yes",I7<>"Yes",I8<>"Yes",I6<>"Yes",$F$41<$I$13)," SCH 107 NEW CUSTOMER RATE",""),"") -> SCH 107 NEW CUSTOMER RATE | F47: =IF(J23>0,IF(AND(I3<>"Yes",$F$41>=$I$13*0.8,$F$41<$I$13,I7<>"Yes",I6<>"Yes",I8<>"Yes"),"$0.115",IF(AND(I3<>"Yes",I7<>"Yes",I6<>"Yes",I8<>"Yes",$F$41<$I$13),"$0.170","")),"") -> $0.115 | G47: =IF(AND(I3<>"Yes",F47>0),"PER THERM","") ->  | Q47: AVG THERMS/MONTH | R47: =$F24/12 -> 0 | S47: 0 | T47: 0 | U47: 0 | V47: 0 | W47: 0 | X47: =X$4 -> ADDITIONAL REVENUE | Y47: =$F24/12 -> 0 | Z47: 0 | AA47: 0 | AB47: 0 | AC47: 0 | AD47: 0
B49: =IF(J23>0,IF(AND(I3<>"Yes",I7<>"Yes",I8<>"Yes",I6<>"Yes",$F$41<$I$13*0.75)," TOTAL REQUIRED PROJECT SCH 107 QUALIFICATION PAYMENT IS",""),"") ->  | F49: =IF(J23>0,IF(AND(I3<>"Yes",I7<>"Yes",I6<>"Yes",I8<>"Yes",$F$41<$I$13*0.75),$D$245,""),"") -> 
B50: =IF(J23>0,IF(AND(I3<>"Yes",I7<>"Yes",I8<>"Yes",I6<>"Yes",$F$41<$I$13*0.75)," REQUIRED QUALIFICATION PAYMENT PER CUSTOMER IS",""),"") ->  | F50: =IF(AND($F$49>0,I3<>"Yes"),$F$49/(SUM($C$23:$I$23)),"") ->  | Q50: REVCST5
Q51: RATE | R51: =R$3 -> 23 | S51: 31 | T51: 31T | U51: 41 | V51: 41T | W51: 53 | X51: 61 | Y51: 85 | Z51: 85T | AA51: 86 | AB51: 86T | AC51: 87 | AD51: 87T
B52: =IF(J23>0,IF($F$41<$I$13*0.9999,"OPTION NO. 2 - Customer Advance (CA)",""),"") -> OPTION NO. 2 - Customer Advance (CA) | Q52: REV/TH | R52: =IF($I$6="Yes",(R$5+$R$13),(R$4+(R$5+$R$13)*R55)/R55) ->  | S52: =IF($I$6="Yes",(S$5+$S$13),(S$4+(S$5+$S$13)*S55)/S55) ->  | T52: =IF($I$6="Yes",(T$5+$T$13),(T$4+(T$5+$T$13)*T55)/T55) ->  | U52: =IF($I$6="Yes",(U$13+$U$6),(IF(U55>5000,(U55-5000)*$U$6+4500*$U$5,IF(U55>500,(U55-500)*$U$5,0))+500*$U$5+$U$4+U55*U$13)/U55) ->  | V52: =IF($I$6="Yes",(V$13+V$6),(IF(V55>5000,(V55-5000)*V$6+4500*V$5,IF(V55>500,(V55-500)*V$5,0))+500*V$5+V$4+V55*V$13)/V55) ->  | W52: =IF($I$6="Yes",(W$5+W$13),(W$4+(W$5+W$13)*W55)/W55) ->  | X52: =X$4 -> ADDITIONAL REVENUE | Y52: =IF($I$6="Yes",(Y$13+Y$7),(IF(Y55>50000,(Y55-50000)*(Y$7+Y$13)+25000*(Y$6+Y$13)+25000*(Y$5+Y$13),IF(Y55>25000,(Y55-25000)*(Y$6+Y$13)+25000*(Y$5+Y$13),Y55*(Y$5+Y$13)))+Y$4)/Y55) ->  | Z52: =IF($I$6="Yes",(Z$13+Z$7),(IF(Z55>50000,(Z55-50000)*(Z$7+Z$13)+25000*(Z$6+Z$13)+25000*(Z$5+Z$13),IF(Z55>25000,(Z55-25000)*(Z$6+Z$13)+25000*(Z$5+Z$13),Z55*(Z$5+Z$13)))+Z$4)/Z55) ->  | AA52: =IF($I$6="Yes",(AA$6+AA$13),(IF(AA55>1000,(AA55-1000)*(AA$6+AA$13)+1000*(AA$5+AA$13),AA55*(AA$5+AA$13))+AA$4)/AA55) ->  | AB52: =IF($I$6="Yes",(AB$6+$AB$13),(IF(AB55>1000,(AB55-1000)*(AB$6+$AB$13)+1000*(AB$5+$AB$13),AB55*(AB$5+$AB$13))+$AB$4)/AB55) ->  | AC52: =IF($I$6="Yes",(AC$10+$AC$13),IF(AC55>500000,(AC55-500000)*(AC$10+$AC$13)+300000*(AC$9+$AC$13)+100000*(AC$8+$AC$13)+50000*(AC$7+$AC$13)+25000*(AC$6+$AC$13)+25000*(AC$5+$AC$13)+AC$4,IF(AC55>200000,(AC55-200000)*(AC$9+$AC$13)+100000*(AC$8+$AC$13)+50000*(AC$7+$AC$13)+25000*(AC$6+$AC$13)+25000*(AC$5+$AC$13)+AC$4,IF(AC55>100000,(AC55-100000)*(AC$8+$AC$13)+50000*(AC$7+$AC$13)+25000*(AC$6+$AC$13)+25000*(AC$5+$AC$13)+AC$4,IF(AC55>50000,(AC55-50000)*(AC$7+$AC$13)+25000*(AC$6+$AC$13)+25000*(AC$5+$AC$13)+AC$4,IF(AC55>25000,(AC55-25000)*(AC$6+$AC$13)+25000*(AC$5+$AC$13)+AC$4,AC55*(AC$5+$AC$13)+AC$4)))))/AC55) ->  | AD52: =IF($I$6="Yes",(AD$10+AD$13),IF(AD55>500000,(AD55-500000)*(AD$10+AD$13)+300000*(AD$9+AD$13)+100000*(AD$8+AD$13)+50000*(AD$7+AD$13)+25000*(AD$6+AD$13)+25000*(AD$5+AD$13)+AD$4,IF(AD55>200000,(AD55-200000)*(AD$9+AD$13)+100000*(AD$8+AD$13)+50000*(AD$7+AD$13)+25000*(AD$6+AD$13)+25000*(AD$5+AD$13)+AD$4,IF(AD55>100000,(AD55-100000)*(AD$8+AD$13)+50000*(AD$7+AD$13)+25000*(AD$6+AD$13)+25000*(AD$5+AD$13)+AD$4,IF(AD55>50000,(AD55-50000)*(AD$7+AD$13)+25000*(AD$6+AD$13)+25000*(AD$5+AD$13)+AD$4,IF(AD55>25000,(AD55-25000)*(AD$6+AD$13)+25000*(AD$5+AD$13)+AD$4,AD55*(AD$5+AD$13)+AD$4)))))/AD55) -> 
B53: =IF(J23>0,IF($F$41<$I$13*0.9999," TOTAL CUSTOMER ADVANCE (INCLUDING FIT) FOR PROJECT IS",""),"") -> TOTAL CUSTOMER ADVANCE (INCLUDING FIT) FOR PROJECT IS | F53: =IF($D$244>0,IF($I$10="Yes",$D$243,$D$244),"") -> 497.4053265 | H53: =IF(J23>0,IF($F$41<$I$13*0.9999,"TOTAL FIT COMPONENT IS",""),"") -> TOTAL FIT COMPONENT IS | J53: =IF(AND($F$53>0,$I$10="Yes"),0,IF($D$244>0,D244-D244/(1+$D$215),"")) -> 89.29462212 | Q53: GAS/TH | R53: =R$13 -> 0.67838 | S53: 0.67193 | T53: 0.0007 | U53: 0.57726 | V53: 0.0007 | W53: 4.00641 | X53: =X$4 -> ADDITIONAL REVENUE | Y53: =Y$13 -> 0.61335 | Z53: 0.0007 | AA53: 0.61817 | AB53: 0.0007 | AC53: 0.58522 | AD53: 0.0007
B54: =IF(J23>0,IF($F$41<$I$13*0.9999," CUSTOMER ADVANCE (INCLUDING FIT) PER CUSTOMER IS",""),"") -> CUSTOMER ADVANCE (INCLUDING FIT) PER CUSTOMER IS | F54: =IF($D$244>0,$F$53/(SUM($C$23:$I$23)),"") -> 497.4053265 | H54: =IF(J23>0,IF($F$41<$I$13*0.9999,"FIT COMPONENT PER CUSTOMER IS",""),"") -> FIT COMPONENT PER CUSTOMER IS | J54: =IF($D$244>0,$J$53/(SUM($C$23:$I$23)),"") -> 89.29462212 | Q54: COST/YR | R54: =IF($I$6="Yes",0,+R$15) -> 67 | S54: 196 | T54: 1974 | U54: 754 | V54: 2693 | W54: 67 | X54: =X$4 -> ADDITIONAL REVENUE | Y54: =IF($I$6="Yes",0,+Y$15) -> 7799 | Z54: 7799 | AA54: 621 | AB54: 1974 | AC54: 7799 | AD54: 7799
B55: =IF(AND(I3="Yes")," LATECOMER SCHEDULE 107 NEW CUSTOMER RATE……………………...…………...……………..…………..…...…..………………………………………...…","") ->  | F55: =IF(I3="Yes","IF RATE OF RETURN OF ORIGINAL EXTENSION IS AT OR ABOVE "&TEXT($I$13*0.8,"0.00%")&" $0.115/PER THERM, ELSE $0.170/PER THERM","") ->  | Q55: AVG THERMS/MONTH | R55: =$G24/12 -> 0 | S55: 0 | T55: 0 | U55: 0 | V55: 0 | W55: 0 | X55: =X$4 -> ADDITIONAL REVENUE | Y55: =$G24/12 -> 0 | Z55: 0 | AA55: 0 | AB55: 0 | AC55: 0 | AD55: 0
B56: =IF($I$4="Yes","SECURITY DEPOSIT","") -> 
B57: =IF($I$4="Yes"," THE DEVELOPER IS REQUIRED TO PAY A SECURITY DEPOSIT","") ->  | I57: =IF($I$4="Yes","TOTAL BALANCE DUE FOR THE DEVELOPER","") -> 
B58: =IF($I$4="Yes"," EQUIVALENT TO THE ECONOMIC VALUE OF A POTENTIAL","") ->  | I58: =IF($I$4="Yes","OPTION 1 w/ SECURITY DEPOSIT:","") ->  | J58: =IF($I$4="Yes",ROUND(F49,0)+ROUND(F59,0),"") ->  | Q58: REVCST6
B59: =IF($I$4="Yes"," TWO (2) YEAR DELAY IN THE ORIGINAL BUILD-OUT PLAN....................................................................................................","") ->  | F59: =IF($I$4="Yes",$D$251,"") ->  | I59: =IF($I$4="Yes","OPTION 2 w/ SECURITY DEPOSIT:","") ->  | J59: =IF($I$4="Yes",ROUND(F53,0)+ROUND(F59,0),"") ->  | Q59: RATE | R59: =R$3 -> 23 | S59: 31 | T59: 31T | U59: 41 | V59: 41T | W59: 53 | X59: 61 | Y59: 85 | Z59: 85T | AA59: 86 | AB59: 86T | AC59: 87 | AD59: 87T
Q60: REV/TH | R60: =IF($I$6="Yes",(R$5+$R$13),(R$4+(R$5+$R$13)*R63)/R63) ->  | S60: =IF($I$6="Yes",(S$5+$S$13),(S$4+(S$5+$S$13)*S63)/S63) ->  | T60: =IF($I$6="Yes",(T$5+$T$13),(T$4+(T$5+$T$13)*T63)/T63) ->  | U60: =IF($I$6="Yes",(U$13+$U$6),(IF(U63>5000,(U63-5000)*$U$6+4500*$U$5,IF(U63>500,(U63-500)*$U$5,0))+500*$U$5+$U$4+U63*U$13)/U63) ->  | V60: =IF($I$6="Yes",(V$13+V$6),(IF(V63>5000,(V63-5000)*V$6+4500*V$5,IF(V63>500,(V63-500)*V$5,0))+500*V$5+V$4+V63*V$13)/V63) ->  | W60: =IF($I$6="Yes",(W$5+W$13),(W$4+(W$5+W$13)*W63)/W63) ->  | X60: =X$4 -> ADDITIONAL REVENUE | Y60: =IF($I$6="Yes",(Y$13+Y$7),(IF(Y63>50000,(Y63-50000)*(Y$7+Y$13)+25000*(Y$6+Y$13)+25000*(Y$5+Y$13),IF(Y63>25000,(Y63-25000)*(Y$6+Y$13)+25000*(Y$5+Y$13),Y63*(Y$5+Y$13)))+Y$4)/Y63) ->  | Z60: =IF($I$6="Yes",(Z$13+Z$7),(IF(Z63>50000,(Z63-50000)*(Z$7+Z$13)+25000*(Z$6+Z$13)+25000*(Z$5+Z$13),IF(Z63>25000,(Z63-25000)*(Z$6+Z$13)+25000*(Z$5+Z$13),Z63*(Z$5+Z$13)))+Z$4)/Z63) ->  | AA60: =IF($I$6="Yes",(AA$6+AA$13),(IF(AA63>1000,(AA63-1000)*(AA$6+AA$13)+1000*(AA$5+AA$13),AA63*(AA$5+AA$13))+AA$4)/AA63) ->  | AB60: =IF($I$6="Yes",(AB$6+$AB$13),(IF(AB63>1000,(AB63-1000)*(AB$6+$AB$13)+1000*(AB$5+$AB$13),AB63*(AB$5+$AB$13))+$AB$4)/AB63) ->  | AC60: =IF($I$6="Yes",(AC$10+$AC$13),IF(AC63>500000,(AC63-500000)*(AC$10+$AC$13)+300000*(AC$9+$AC$13)+100000*(AC$8+$AC$13)+50000*(AC$7+$AC$13)+25000*(AC$6+$AC$13)+25000*(AC$5+$AC$13)+AC$4,IF(AC63>200000,(AC63-200000)*(AC$9+$AC$13)+100000*(AC$8+$AC$13)+50000*(AC$7+$AC$13)+25000*(AC$6+$AC$13)+25000*(AC$5+$AC$13)+AC$4,IF(AC63>100000,(AC63-100000)*(AC$8+$AC$13)+50000*(AC$7+$AC$13)+25000*(AC$6+$AC$13)+25000*(AC$5+$AC$13)+AC$4,IF(AC63>50000,(AC63-50000)*(AC$7+$AC$13)+25000*(AC$6+$AC$13)+25000*(AC$5+$AC$13)+AC$4,IF(AC63>25000,(AC63-25000)*(AC$6+$AC$13)+25000*(AC$5+$AC$13)+AC$4,AC63*(AC$5+$AC$13)+AC$4)))))/AC63) ->  | AD60: =IF($I$6="Yes",(AD$10+AD$13),IF(AD63>500000,(AD63-500000)*(AD$10+AD$13)+300000*(AD$9+AD$13)+100000*(AD$8+AD$13)+50000*(AD$7+AD$13)+25000*(AD$6+AD$13)+25000*(AD$5+AD$13)+AD$4,IF(AD63>200000,(AD63-200000)*(AD$9+AD$13)+100000*(AD$8+AD$13)+50000*(AD$7+AD$13)+25000*(AD$6+AD$13)+25000*(AD$5+AD$13)+AD$4,IF(AD63>100000,(AD63-100000)*(AD$8+AD$13)+50000*(AD$7+AD$13)+25000*(AD$6+AD$13)+25000*(AD$5+AD$13)+AD$4,IF(AD63>50000,(AD63-50000)*(AD$7+AD$13)+25000*(AD$6+AD$13)+25000*(AD$5+AD$13)+AD$4,IF(AD63>25000,(AD63-25000)*(AD$6+AD$13)+25000*(AD$5+AD$13)+AD$4,AD63*(AD$5+AD$13)+AD$4)))))/AD63) -> 
Q61: GAS/TH | R61: =R$13 -> 0.67838 | S61: 0.67193 | T61: 0.0007 | U61: 0.57726 | V61: 0.0007 | W61: 4.00641 | X61: =X$4 -> ADDITIONAL REVENUE | Y61: =Y$13 -> 0.61335 | Z61: 0.0007 | AA61: 0.61817 | AB61: 0.0007 | AC61: 0.58522 | AD61: 0.0007
Q62: COST/YR | R62: =IF($I$6="Yes",0,+R$15) -> 67 | S62: 196 | T62: 1974 | U62: 754 | V62: 2693 | W62: 67 | X62: =X$4 -> ADDITIONAL REVENUE | Y62: =IF($I$6="Yes",0,+Y$15) -> 7799 | Z62: 7799 | AA62: 621 | AB62: 1974 | AC62: 7799 | AD62: 7799
Q63: AVG THERMS/MONTH | R63: =$H24/12 -> 0 | S63: 0 | T63: 0 | U63: 0 | V63: 0 | W63: 0 | X63: =X$4 -> ADDITIONAL REVENUE | Y63: =$H24/12 -> 0 | Z63: 0 | AA63: 0 | AB63: 0 | AC63: 0 | AD63: 0
Q66: REVCST7
Q67: RATE | R67: =R$3 -> 23 | S67: 31 | T67: 31T | U67: 41 | V67: 41T | W67: 53 | X67: 61 | Y67: 85 | Z67: 85T | AA67: 86 | AB67: 86T | AC67: 87 | AD67: 87T
Q68: REV/TH | R68: =IF($I$6="Yes",(R$5+$R$13),(R$4+(R$5+$R$13)*R71)/R71) ->  | S68: =IF($I$6="Yes",(S$5+$S$13),(S$4+(S$5+$S$13)*S71)/S71) ->  | T68: =IF($I$6="Yes",(T$5+$T$13),(T$4+(T$5+$T$13)*T71)/T71) ->  | U68: =IF($I$6="Yes",(U$13+$U$6),(IF(U71>5000,(U71-5000)*$U$6+4500*$U$5,IF(U71>500,(U71-500)*$U$5,0))+500*$U$5+$U$4+U71*U$13)/U71) ->  | V68: =IF($I$6="Yes",(V$13+V$6),(IF(V71>5000,(V71-5000)*V$6+4500*V$5,IF(V71>500,(V71-500)*V$5,0))+500*V$5+V$4+V71*V$13)/V71) ->  | W68: =IF($I$6="Yes",(W$5+W$13),(W$4+(W$5+W$13)*W71)/W71) ->  | X68: =X$4 -> ADDITIONAL REVENUE | Y68: =IF($I$6="Yes",(Y$13+Y$7),(IF(Y71>50000,(Y71-50000)*(Y$7+Y$13)+25000*(Y$6+Y$13)+25000*(Y$5+Y$13),IF(Y71>25000,(Y71-25000)*(Y$6+Y$13)+25000*(Y$5+Y$13),Y71*(Y$5+Y$13)))+Y$4)/Y71) ->  | Z68: =IF($I$6="Yes",(Z$13+Z$7),(IF(Z71>50000,(Z71-50000)*(Z$7+Z$13)+25000*(Z$6+Z$13)+25000*(Z$5+Z$13),IF(Z71>25000,(Z71-25000)*(Z$6+Z$13)+25000*(Z$5+Z$13),Z71*(Z$5+Z$13)))+Z$4)/Z71) ->  | AA68: =IF($I$6="Yes",(AA$6+AA$13),(IF(AA71>1000,(AA71-1000)*(AA$6+AA$13)+1000*(AA$5+AA$13),AA71*(AA$5+AA$13))+AA$4)/AA71) ->  | AB68: =IF($I$6="Yes",(AB$6+$AB$13),(IF(AB71>1000,(AB71-1000)*(AB$6+$AB$13)+1000*(AB$5+$AB$13),AB71*(AB$5+$AB$13))+$AB$4)/AB71) ->  | AC68: =IF($I$6="Yes",(AC$10+$AC$13),IF(AC71>500000,(AC71-500000)*(AC$10+$AC$13)+300000*(AC$9+$AC$13)+100000*(AC$8+$AC$13)+50000*(AC$7+$AC$13)+25000*(AC$6+$AC$13)+25000*(AC$5+$AC$13)+AC$4,IF(AC71>200000,(AC71-200000)*(AC$9+$AC$13)+100000*(AC$8+$AC$13)+50000*(AC$7+$AC$13)+25000*(AC$6+$AC$13)+25000*(AC$5+$AC$13)+AC$4,IF(AC71>100000,(AC71-100000)*(AC$8+$AC$13)+50000*(AC$7+$AC$13)+25000*(AC$6+$AC$13)+25000*(AC$5+$AC$13)+AC$4,IF(AC71>50000,(AC71-50000)*(AC$7+$AC$13)+25000*(AC$6+$AC$13)+25000*(AC$5+$AC$13)+AC$4,IF(AC71>25000,(AC71-25000)*(AC$6+$AC$13)+25000*(AC$5+$AC$13)+AC$4,AC71*(AC$5+$AC$13)+AC$4)))))/AC71) ->  | AD68: =IF($I$6="Yes",(AD$10+AD$13),IF(AD71>500000,(AD71-500000)*(AD$10+AD$13)+300000*(AD$9+AD$13)+100000*(AD$8+AD$13)+50000*(AD$7+AD$13)+25000*(AD$6+AD$13)+25000*(AD$5+AD$13)+AD$4,IF(AD71>200000,(AD71-200000)*(AD$9+AD$13)+100000*(AD$8+AD$13)+50000*(AD$7+AD$13)+25000*(AD$6+AD$13)+25000*(AD$5+AD$13)+AD$4,IF(AD71>100000,(AD71-100000)*(AD$8+AD$13)+50000*(AD$7+AD$13)+25000*(AD$6+AD$13)+25000*(AD$5+AD$13)+AD$4,IF(AD71>50000,(AD71-50000)*(AD$7+AD$13)+25000*(AD$6+AD$13)+25000*(AD$5+AD$13)+AD$4,IF(AD71>25000,(AD71-25000)*(AD$6+AD$13)+25000*(AD$5+AD$13)+AD$4,AD71*(AD$5+AD$13)+AD$4)))))/AD71) -> 
Q69: GAS/TH | R69: =R$13 -> 0.67838 | S69: 0.67193 | T69: 0.0007 | U69: 0.57726 | V69: 0.0007 | W69: 4.00641 | X69: =X$4 -> ADDITIONAL REVENUE | Y69: =Y$13 -> 0.61335 | Z69: 0.0007 | AA69: 0.61817 | AB69: 0.0007 | AC69: 0.58522 | AD69: 0.0007
Q70: COST/YR | R70: =IF($I$6="Yes",0,+R$15) -> 67 | S70: 196 | T70: 1974 | U70: 754 | V70: 2693 | W70: 67 | X70: =X$4 -> ADDITIONAL REVENUE | Y70: =IF($I$6="Yes",0,+Y$15) -> 7799 | Z70: 7799 | AA70: 621 | AB70: 1974 | AC70: 7799 | AD70: 7799
Q71: AVG THERMS/MONTH | R71: =$I24/12 -> 0 | S71: 0 | T71: 0 | U71: 0 | V71: 0 | W71: 0 | X71: =X$4 -> ADDITIONAL REVENUE | Y71: =$I24/12 -> 0 | Z71: 0 | AA71: 0 | AB71: 0 | AC71: 0 | AD71: 0
B72: REVIEW OF CONTRIBUTIONS AND REFUND | I72: ="REVIEW DATE: "&TEXT(NOW(),"MM/DD/YYYY") -> REVIEW DATE: 07/21/2014
B73: =H1 -> Version: P_FIA_CNG_v1_P_12-21-2012.xlsm
B75: TOTAL ORIGINAL CA PAID: | C75: =C107 -> 0
B77: STEP 6.B1: INPUT PAID ORIGINAL CA ATTRIBUTES | E77: STEP 6.B2: INPUT REVIEW YEAR AND LATECOMER ATTRIBUTES | J77: LATECOMER NCR REVENUES CALCULATION
B78: CA CUSTOMER NAME | C78: ORIGINAL ADVANCE PAID BY CUSTOMER | D78: REFUND DUE | E78: REVIEW YEAR | F78: LATECOMER CUSTOMER NAME | G78: INSTALLATION YEAR OF LATECOMER | H78: NCR $0.115 or $0.170 | I78: ESTIMATED ANNUAL USAGE | J78: ORIGINAL EXTENSION REVIEW PERIOD
D79: (WITHOUT INTEREST) | E79: 1 = Installation Year of Original Extension | J79: 1 | K79: 2 | L79: 3 | M79: 4 | N79: 5
D80: ="Ratio used: "&IF(C$107>0,FIXED(((C$75-F$53)/C$75)*100,4,TRUE),"0.0000")&"%" -> Ratio used: 0.0000% | E80: 1 | J80: 1-Month To 12-Month | K80: 13-Month To 24-Month | L80: 25-Month To 36-Month | M80: 37-Month To 48-Month | N80: 49-Month To 60-Month
A81: 1 | C81: 0 | D81: =IF(AND(C$107>0,F$53>0),(C$75-F$53)/C$75*C81,IF(AND(AND(F$53=0,C81>0),C$75>0),"Full Refund!",0)) -> 0 | E81: 1 | G81: 0 | H81: 0 | I81: 0 | J81: =IF(OR(ISBLANK($F81),ISBLANK($G81),ISBLANK($H81),ISBLANK($I81)),"Please enter all entries.",MAX($H81*$I81*IF(J$79<=$E$80,IF($G81>J$79,0,IF($G81=J$79,1,MIN(J$79-$G81,1))),IF($G81>J$79,0,IF(AND($E$80>(J$79-1),$E$80<(J$79+1),$G81>J$79-1),ABS(J$79-1-MIN($E$80,MAX($G81,J$79-1))),1+($E$80-J$79)))),0)) -> Please enter all entries. | K81: Please enter all entries. | L81: Please enter all entries. | M81: Please enter all entries. | N81: Please enter all entries.
A82: 2 | C82: 0 | D82: =IF(AND(C$107>0,F$53>0),(C$75-F$53)/C$75*C82,IF(AND(AND(F$53=0,C82>0),C$75>0),"Full Refund!",0)) -> 0 | E82: 2 | G82: 0 | H82: 0 | I82: 0 | J82: Please enter all entries. | K82: Please enter all entries. | L82: Please enter all entries. | M82: Please enter all entries. | N82: Please enter all entries.
A83: 3 | C83: 0 | D83: 0 | E83: 3 | G83: 0 | H83: 0 | I83: 0 | J83: Please enter all entries. | K83: Please enter all entries. | L83: Please enter all entries. | M83: Please enter all entries. | N83: Please enter all entries.
A84: 4 | C84: 0 | D84: 0 | E84: 4 | G84: 0 | H84: 0 | I84: 0 | J84: Please enter all entries. | K84: Please enter all entries. | L84: Please enter all entries. | M84: Please enter all entries. | N84: Please enter all entries.
A85: 5 | C85: 0 | D85: 0 | E85: 5 | G85: 0 | H85: 0 | I85: 0 | J85: Please enter all entries. | K85: Please enter all entries. | L85: Please enter all entries. | M85: Please enter all entries. | N85: Please enter all entries.
A86: 6 | C86: 0 | D86: 0 | E86: 6 | G86: 0 | H86: 0 | I86: 0 | J86: Please enter all entries. | K86: Please enter all entries. | L86: Please enter all entries. | M86: Please enter all entries. | N86: Please enter all entries.
A87: 7 | C87: 0 | D87: 0 | E87: 7 | G87: 0 | H87: 0 | I87: 0 | J87: Please enter all entries. | K87: Please enter all entries. | L87: Please enter all entries. | M87: Please enter all entries. | N87: Please enter all entries.
A88: 8 | C88: 0 | D88: 0 | E88: 8 | G88: 0 | H88: 0 | I88: 0 | J88: Please enter all entries. | K88: Please enter all entries. | L88: Please enter all entries. | M88: Please enter all entries. | N88: Please enter all entries.
A89: 9 | C89: 0 | D89: 0 | E89: 9 | G89: 0 | H89: 0 | I89: 0 | J89: Please enter all entries. | K89: Please enter all entries. | L89: Please enter all entries. | M89: Please enter all entries. | N89: Please enter all entries.
A90: 10 | C90: 0 | D90: 0 | E90: 10 | G90: 0 | H90: 0 | I90: 0 | J90: Please enter all entries. | K90: Please enter all entries. | L90: Please enter all entries. | M90: Please enter all entries. | N90: Please enter all entries.
A91: 11 | C91: 0 | D91: 0 | E91: 11 | G91: 0 | H91: 0 | I91: 0 | J91: =IF(OR(ISBLANK($F91),ISBLANK($G91),ISBLANK($H91),ISBLANK($I91)),"Please enter all entries.",MAX($H91*$I91*IF(J$79<=$E$80,IF($G91>J$79,0,IF($G91=J$79,1,MIN(J$79-$G91,1))),IF($G91>J$79,0,IF(AND($E$80>(J$79-1),$E$80<(J$79+1),$G91>J$79-1),ABS(J$79-1-MIN($E$80,MAX($G91,J$79-1))),1+($E$80-J$79)))),0)) -> Please enter all entries. | K91: Please enter all entries. | L91: Please enter all entries. | M91: Please enter all entries. | N91: Please enter all entries.
A92: 12 | C92: 0 | D92: 0 | E92: 12 | G92: 0 | H92: 0 | I92: 0 | J92: Please enter all entries. | K92: Please enter all entries. | L92: Please enter all entries. | M92: Please enter all entries. | N92: Please enter all entries.
A93: 13 | C93: 0 | D93: 0 | E93: 13 | G93: 0 | H93: 0 | I93: 0 | J93: Please enter all entries. | K93: Please enter all entries. | L93: Please enter all entries. | M93: Please enter all entries. | N93: Please enter all entries.
A94: 14 | C94: 0 | D94: 0 | E94: 14 | G94: 0 | H94: 0 | I94: 0 | J94: Please enter all entries. | K94: Please enter all entries. | L94: Please enter all entries. | M94: Please enter all entries. | N94: Please enter all entries.
A95: 15 | C95: 0 | D95: 0 | E95: 15 | G95: 0 | H95: 0 | I95: 0 | J95: Please enter all entries. | K95: Please enter all entries. | L95: Please enter all entries. | M95: Please enter all entries. | N95: Please enter all entries.
A96: 16 | C96: 0 | D96: 0 | E96: 16 | G96: 0 | H96: 0 | I96: 0 | J96: Please enter all entries. | K96: Please enter all entries. | L96: Please enter all entries. | M96: Please enter all entries. | N96: Please enter all entries.
A97: 17 | C97: 0 | D97: 0 | E97: 17 | G97: 0 | H97: 0 | I97: 0 | J97: Please enter all entries. | K97: Please enter all entries. | L97: Please enter all entries. | M97: Please enter all entries. | N97: Please enter all entries.
A98: 18 | C98: 0 | D98: 0 | E98: 18 | G98: 0 | H98: 0 | I98: 0 | J98: Please enter all entries. | K98: Please enter all entries. | L98: Please enter all entries. | M98: Please enter all entries. | N98: Please enter all entries.
A99: 19 | C99: 0 | D99: 0 | E99: 19 | G99: 0 | H99: 0 | I99: 0 | J99: Please enter all entries. | K99: Please enter all entries. | L99: Please enter all entries. | M99: Please enter all entries. | N99: Please enter all entries.
A100: 20 | C100: 0 | D100: 0 | E100: 20 | G100: 0 | H100: 0 | I100: 0 | J100: Please enter all entries. | K100: Please enter all entries. | L100: Please enter all entries. | M100: Please enter all entries. | N100: Please enter all entries.
A101: 21 | C101: 0 | D101: 0 | E101: 21 | G101: 0 | H101: 0 | I101: 0 | J101: Please enter all entries. | K101: Please enter all entries. | L101: Please enter all entries. | M101: Please enter all entries. | N101: Please enter all entries.
A102: 22 | C102: 0 | D102: 0 | E102: 22 | G102: 0 | H102: 0 | I102: 0 | J102: Please enter all entries. | K102: Please enter all entries. | L102: Please enter all entries. | M102: Please enter all entries. | N102: Please enter all entries.
A103: 23 | C103: 0 | D103: 0 | E103: 23 | G103: 0 | H103: 0 | I103: 0 | J103: Please enter all entries. | K103: Please enter all entries. | L103: Please enter all entries. | M103: Please enter all entries. | N103: Please enter all entries.
A104: 24 | C104: 0 | D104: 0 | E104: 24 | G104: 0 | H104: 0 | I104: 0 | J104: Please enter all entries. | K104: Please enter all entries. | L104: Please enter all entries. | M104: Please enter all entries. | N104: Please enter all entries.
A105: 25 | C105: 0 | D105: 0 | E105: 25 | G105: 0 | H105: 0 | I105: 0 | J105: Please enter all entries. | K105: Please enter all entries. | L105: Please enter all entries. | M105: Please enter all entries. | N105: Please enter all entries.
B107: Total | C107: =SUM(C81:C105) -> 0 | D107: =SUM(D81:D105) -> 0 | J107: =SUM(J81:J105) -> 0 | K107: =SUM(K81:K105) -> 0 | L107: =SUM(L81:L105) -> 0 | M107: =SUM(M81:M105) -> 0 | N107: =SUM(N81:N105) -> 0
B112: PUGET SOUND ENERGY
B113: =C1 -> NATURAL GAS COMPRESSION SERVICE CHARGE ANALYSIS
B114: =H1 -> Version: P_FIA_CNG_v1_P_12-21-2012.xlsm
B116: MAIN BOOK LIFE | D116: 33
B117: SERVICE BOOK LIFE | D117: 33
B118: MSA BOOK LIFE | D118: 33
B119: OTHER | D119: 15
B120: PROGRAM YEAR | G120: 1 | H120: 2 | I120: 3 | J120: 4 | K120: 5 | L120: =K120+1 -> 6 | M120: 7 | N120: 8 | O120: 9 | P120: 10 | Q120: =P120+1 -> 11 | R120: 12 | S120: 13 | T120: 14 | U120: 15 | V120: 16 | W120: 17 | X120: 18 | Y120: 19 | Z120: 20 | AA120: 21 | AB120: 22 | AC120: 23 | AD120: =AC120+1 -> 24 | AE120: 25 | AF120: 26 | AG120: 27 | AH120: 28 | AI120: 29 | AJ120: 30 | AK120: 31 | AL120: 32 | AM120: 33 | AN120: 34 | AO120: 35 | AP120: 36 | AQ120: 37 | AR120: 38 | AS120: 39 | AT120: 40
B121: INVESTMENT
B122: MAIN | G122: =IF($C$25=G$120,$C$26,0)+IF($D$25=G$120,$D$26,0)+IF($E$25=G$120,$E$26,0)+IF($F$25=G$120,$F$26,0)+IF($G$25=G$120,$G$26,0)+IF($H$25=G$120,$H$26,0)+IF($I$25=G$120,$I$26,0) -> 0 | H122: =IF($C$25=H$120,$C$26,0)+IF($D$25=H$120,$D$26,0)+IF($E$25=H$120,$E$26,0)+IF($F$25=H$120,$F$26,0)+IF($G$25=H$120,$G$26,0)+IF($H$25=H$120,$H$26,0)+IF($I$25=H$120,$I$26,0) -> 0 | I122: =IF($C$25=I$120,$C$26,0)+IF($D$25=I$120,$D$26,0)+IF($E$25=I$120,$E$26,0)+IF($F$25=I$120,$F$26,0)+IF($G$25=I$120,$G$26,0)+IF($H$25=I$120,$H$26,0)+IF($I$25=I$120,$I$26,0) -> 0 | J122: 0 | K122: 0 | L122: 0 | M122: 0 | N122: 0 | O122: 0 | P122: 0 | Q122: 0 | R122: 0 | S122: 0 | T122: 0 | U122: 0 | V122: 0 | W122: 0 | X122: 0 | Y122: 0 | Z122: 0 | AA122: 0 | AB122: 0 | AC122: 0 | AD122: 0 | AE122: 0 | AF122: 0 | AG122: 0 | AH122: 0 | AI122: 0 | AJ122: 0 | AK122: 0 | AL122: 0 | AM122: 0 | AN122: 0 | AO122: 0 | AP122: 0 | AQ122: 0 | AR122: 0 | AS122: 0 | AT122: 0
B123: SERVICE | G123: =IF($C$25=G$120,$C$27*$C$23,0)+IF($D$25=G$120,$D$27*$D$23,0)+IF($E$25=G$120,$E$27*$E$23,0)+IF($F$25=G$120,$F$27*$F$23,0)+IF($G$25=G$120,$G$27*$G$23,0)+IF($H$25=G$120,$H$27*$H$23,0)+IF($I$25=G$120,$I$27*$I$23,0) -> 0 | H123: =IF($C$25=H$120,$C$27*$C$23,0)+IF($D$25=H$120,$D$27*$D$23,0)+IF($E$25=H$120,$E$27*$E$23,0)+IF($F$25=H$120,$F$27*$F$23,0)+IF($G$25=H$120,$G$27*$G$23,0)+IF($H$25=H$120,$H$27*$H$23,0)+IF($I$25=H$120,$I$27*$I$23,0) -> 0 | I123: 0 | J123: 0 | K123: 0 | L123: 0 | M123: 0 | N123: 0 | O123: 0 | P123: 0 | Q123: 0 | R123: 0 | S123: 0 | T123: 0 | U123: 0 | V123: 0 | W123: 0 | X123: 0 | Y123: 0 | Z123: 0 | AA123: 0 | AB123: 0 | AC123: 0 | AD123: 0 | AE123: 0 | AF123: 0 | AG123: 0 | AH123: 0 | AI123: 0 | AJ123: 0 | AK123: 0 | AL123: 0 | AM123: 0 | AN123: 0 | AO123: 0 | AP123: 0 | AQ123: 0 | AR123: 0 | AS123: 0 | AT123: 0
B124: MSA | G124: =IF($C$25=G$120,$C$28*$C$23,0)+IF($D$25=G$120,$D$28*$D$23,0)+IF($E$25=G$120,$E$28*$E$23,0)+IF($F$25=G$120,$F$28*$F$23,0)+IF($G$25=G$120,$G$28*$G$23,0)+IF($H$25=G$120,$H$28*$H$23,0)+IF($I$25=G$120,$I$28*$I$23,0) -> 0 | H124: 0 | I124: 0 | J124: 0 | K124: 0 | L124: 0 | M124: 0 | N124: 0 | O124: 0 | P124: 0 | Q124: 0 | R124: 0 | S124: 0 | T124: 0 | U124: 0 | V124: 0 | W124: 0 | X124: 0 | Y124: 0 | Z124: 0 | AA124: 0 | AB124: 0 | AC124: 0 | AD124: 0 | AE124: 0 | AF124: 0 | AG124: 0 | AH124: 0 | AI124: 0 | AJ124: 0 | AK124: 0 | AL124: 0 | AM124: 0 | AN124: 0 | AO124: 0 | AP124: 0 | AQ124: 0 | AR124: 0 | AS124: 0 | AT124: 0
B125: OTHER | G125: =IF($C$25=G$120,$C$29,0)+IF($D$25=G$120,$D$29,0)+IF($E$25=G$120,$E$29,0)+IF($F$25=G$120,$F$29,0)+IF($G$25=G$120,$G$29,0)+IF($H$25=G$120,$H$29,0)+IF($I$25=G$120,$I$29,0)+IF($I$11="Yes",CompressionService!B5) -> 2500000 | H125: =IF($C$25=H$120,$C$29,0)+IF($D$25=H$120,$D$29,0)+IF($E$25=H$120,$E$29,0)+IF($F$25=H$120,$F$29,0)+IF($G$25=H$120,$G$29,0)+IF($H$25=H$120,$H$29,0)+IF($I$25=H$120,$I$29,0)+IF($I$11="Yes",CompressionService!C5) -> 0 | I125: =IF($C$25=I$120,$C$29,0)+IF($D$25=I$120,$D$29,0)+IF($E$25=I$120,$E$29,0)+IF($F$25=I$120,$F$29,0)+IF($G$25=I$120,$G$29,0)+IF($H$25=I$120,$H$29,0)+IF($I$25=I$120,$I$29,0)+IF($I$11="Yes",CompressionService!D5) -> 0 | J125: =IF($C$25=J$120,$C$29,0)+IF($D$25=J$120,$D$29,0)+IF($E$25=J$120,$E$29,0)+IF($F$25=J$120,$F$29,0)+IF($G$25=J$120,$G$29,0)+IF($H$25=J$120,$H$29,0)+IF($I$25=J$120,$I$29,0)+IF($I$11="Yes",CompressionService!E5) -> 0 | K125: =IF($C$25=K$120,$C$29,0)+IF($D$25=K$120,$D$29,0)+IF($E$25=K$120,$E$29,0)+IF($F$25=K$120,$F$29,0)+IF($G$25=K$120,$G$29,0)+IF($H$25=K$120,$H$29,0)+IF($I$25=K$120,$I$29,0)+IF($I$11="Yes",CompressionService!F5) -> 0 | L125: =IF($C$25=L$120,$C$29,0)+IF($D$25=L$120,$D$29,0)+IF($E$25=L$120,$E$29,0)+IF($F$25=L$120,$F$29,0)+IF($G$25=L$120,$G$29,0)+IF($H$25=L$120,$H$29,0)+IF($I$25=L$120,$I$29,0)+IF($I$11="Yes",CompressionService!G5) -> 0 | M125: =IF($C$25=M$120,$C$29,0)+IF($D$25=M$120,$D$29,0)+IF($E$25=M$120,$E$29,0)+IF($F$25=M$120,$F$29,0)+IF($G$25=M$120,$G$29,0)+IF($H$25=M$120,$H$29,0)+IF($I$25=M$120,$I$29,0)+IF($I$11="Yes",CompressionService!H5) -> 0 | N125: =IF($C$25=N$120,$C$29,0)+IF($D$25=N$120,$D$29,0)+IF($E$25=N$120,$E$29,0)+IF($F$25=N$120,$F$29,0)+IF($G$25=N$120,$G$29,0)+IF($H$25=N$120,$H$29,0)+IF($I$25=N$120,$I$29,0)+IF($I$11="Yes",CompressionService!I5) -> 0 | O125: =IF($C$25=O$120,$C$29,0)+IF($D$25=O$120,$D$29,0)+IF($E$25=O$120,$E$29,0)+IF($F$25=O$120,$F$29,0)+IF($G$25=O$120,$G$29,0)+IF($H$25=O$120,$H$29,0)+IF($I$25=O$120,$I$29,0)+IF($I$11="Yes",CompressionService!J5) -> 0 | P125: =IF($C$25=P$120,$C$29,0)+IF($D$25=P$120,$D$29,0)+IF($E$25=P$120,$E$29,0)+IF($F$25=P$120,$F$29,0)+IF($G$25=P$120,$G$29,0)+IF($H$25=P$120,$H$29,0)+IF($I$25=P$120,$I$29,0)+IF($I$11="Yes",CompressionService!K5) -> 0 | Q125: =IF($C$25=Q$120,$C$29,0)+IF($D$25=Q$120,$D$29,0)+IF($E$25=Q$120,$E$29,0)+IF($F$25=Q$120,$F$29,0)+IF($G$25=Q$120,$G$29,0)+IF($H$25=Q$120,$H$29,0)+IF($I$25=Q$120,$I$29,0)+IF($I$11="Yes",CompressionService!L5) -> 0 | R125: =IF($C$25=R$120,$C$29,0)+IF($D$25=R$120,$D$29,0)+IF($E$25=R$120,$E$29,0)+IF($F$25=R$120,$F$29,0)+IF($G$25=R$120,$G$29,0)+IF($H$25=R$120,$H$29,0)+IF($I$25=R$120,$I$29,0)+IF($I$11="Yes",CompressionService!M5) -> 0 | S125: =IF($C$25=S$120,$C$29,0)+IF($D$25=S$120,$D$29,0)+IF($E$25=S$120,$E$29,0)+IF($F$25=S$120,$F$29,0)+IF($G$25=S$120,$G$29,0)+IF($H$25=S$120,$H$29,0)+IF($I$25=S$120,$I$29,0)+IF($I$11="Yes",CompressionService!N5) -> 0 | T125: =IF($C$25=T$120,$C$29,0)+IF($D$25=T$120,$D$29,0)+IF($E$25=T$120,$E$29,0)+IF($F$25=T$120,$F$29,0)+IF($G$25=T$120,$G$29,0)+IF($H$25=T$120,$H$29,0)+IF($I$25=T$120,$I$29,0)+IF($I$11="Yes",CompressionService!O5) -> 0 | U125: =IF($C$25=U$120,$C$29,0)+IF($D$25=U$120,$D$29,0)+IF($E$25=U$120,$E$29,0)+IF($F$25=U$120,$F$29,0)+IF($G$25=U$120,$G$29,0)+IF($H$25=U$120,$H$29,0)+IF($I$25=U$120,$I$29,0)+IF($I$11="Yes",CompressionService!P5) -> 0 | V125: =IF($C$25=V$120,$C$29,0)+IF($D$25=V$120,$D$29,0)+IF($E$25=V$120,$E$29,0)+IF($F$25=V$120,$F$29,0)+IF($G$25=V$120,$G$29,0)+IF($H$25=V$120,$H$29,0)+IF($I$25=V$120,$I$29,0) -> 0 | W125: 0 | X125: 0 | Y125: 0 | Z125: 0 | AA125: 0 | AB125: 0 | AC125: 0 | AD125: 0 | AE125: 0 | AF125: 0 | AG125: 0 | AH125: 0 | AI125: 0 | AJ125: 0 | AK125: 0 | AL125: 0 | AM125: 0 | AN125: 0 | AO125: 0 | AP125: 0 | AQ125: 0 | AR125: 0 | AS125: 0 | AT125: 0
B126: TOTAL INVESTMENT BY YEAR | G126: =SUM(G122:G125) -> 2500000 | H126: 0 | I126: 0 | J126: 0 | K126: 0 | L126: 0 | M126: 0 | N126: =SUM(N122:N125) -> 0 | O126: =SUM(O122:O125) -> 0 | P126: =SUM(P122:P125) -> 0 | Q126: =SUM(Q122:Q125) -> 0 | R126: 0 | S126: 0 | T126: 0 | U126: 0 | V126: 0 | W126: 0 | X126: 0 | Y126: 0 | Z126: 0 | AA126: 0 | AB126: 0 | AC126: 0 | AD126: =SUM(AD122:AD125) -> 0 | AE126: 0 | AF126: 0 | AG126: 0 | AH126: 0 | AI126: 0 | AJ126: 0 | AK126: 0 | AL126: 0 | AM126: 0 | AN126: 0 | AO126: 0 | AP126: 0 | AQ126: 0 | AR126: 0 | AS126: 0 | AT126: 0
B128: ="BOOK DEPRECIATION, S/L @ LIFE OF "&FIXED(I9,0,TRUE)&" YEARS" -> BOOK DEPRECIATION, S/L @ LIFE OF 15 YEARS | G128: =G147 -> 166666.6667 | H128: =H147 -> 166666.6667 | I128: 166666.6667 | J128: 166666.6667 | K128: 166666.6667 | L128: 166666.6667 | M128: 166666.6667 | N128: 166666.6667 | O128: 166666.6667 | P128: 166666.6667 | Q128: 166666.6667 | R128: 166666.6667 | S128: 166666.6667 | T128: 166666.6667 | U128: 166666.6667 | V128: 0 | W128: 0 | X128: 0 | Y128: 0 | Z128: 0 | AA128: 0 | AB128: 0 | AC128: 0 | AD128: =AD147 -> 0 | AE128: 0 | AF128: 0 | AG128: 0 | AH128: 0 | AI128: 0 | AJ128: 0 | AK128: 0 | AL128: 0 | AM128: 0 | AN128: 0 | AO128: 0 | AP128: 0 | AQ128: 0 | AR128: 0 | AS128: 0 | AT128: 0
B129: CUMULATIVE BOOK DEPRECIATION | G129: =SUM(G128) -> 166666.6667 | H129: =SUM($G$128:H128) -> 333333.3333 | I129: =SUM($G$128:I128) -> 500000 | J129: =SUM($G$128:J128) -> 666666.6667 | K129: =SUM($G$128:K128) -> 833333.3333 | L129: =SUM($G$128:L128) -> 1000000 | M129: =SUM($G$128:M128) -> 1166666.667 | N129: =SUM($G$128:N128) -> 1333333.333 | O129: =SUM($G$128:O128) -> 1500000 | P129: =SUM($G$128:P128) -> 1666666.667 | Q129: =SUM($G$128:Q128) -> 1833333.333 | R129: =SUM($G$128:R128) -> 2000000 | S129: =SUM($G$128:S128) -> 2166666.667 | T129: =SUM($G$128:T128) -> 2333333.333 | U129: =SUM($G$128:U128) -> 2500000 | V129: =SUM($G$128:V128) -> 2500000 | W129: =SUM($G$128:W128) -> 2500000 | X129: =SUM($G$128:X128) -> 2500000 | Y129: =SUM($G$128:Y128) -> 2500000 | Z129: =SUM($G$128:Z128) -> 2500000 | AA129: =SUM($G$128:AA128) -> 2500000 | AB129: =SUM($G$128:AB128) -> 2500000 | AC129: =SUM($G$128:AC128) -> 2500000 | AD129: =SUM($G$128:AD128) -> 2500000 | AE129: =SUM($G$128:AE128) -> 2500000 | AF129: =SUM($G$128:AF128) -> 2500000 | AG129: =SUM($G$128:AG128) -> 2500000 | AH129: =SUM($G$128:AH128) -> 2500000 | AI129: =SUM($G$128:AI128) -> 2500000 | AJ129: =SUM($G$128:AJ128) -> 2500000 | AK129: =SUM($G$128:AK128) -> 2500000 | AL129: =SUM($G$128:AL128) -> 2500000 | AM129: =SUM($G$128:AM128) -> 2500000 | AN129: =SUM($G$128:AN128) -> 2500000 | AO129: =SUM($G$128:AO128) -> 2500000 | AP129: =SUM($G$128:AP128) -> 2500000 | AQ129: =SUM($G$128:AQ128) -> 2500000 | AR129: =SUM($G$128:AR128) -> 2500000 | AS129: =SUM($G$128:AS128) -> 2500000 | AT129: =SUM($G$128:AT128) -> 2500000
B130: BOOK VALUE BEGINNING OF YEAR | G130: =SUM(G126)-F148 -> 2500000 | H130: =SUM($G$126:H126)-G148 -> 2333333.333 | I130: =SUM($G$126:I126)-H148 -> 2166666.667 | J130: =SUM($G$126:J126)-I148 -> 2000000 | K130: =SUM($G$126:K126)-J148 -> 1833333.333 | L130: =SUM($G$126:L126)-K148 -> 1666666.667 | M130: =SUM($G$126:M126)-L148 -> 1500000 | N130: =SUM($G$126:N126)-M148 -> 1333333.333 | O130: =SUM($G$126:O126)-N148 -> 1166666.667 | P130: =SUM($G$126:P126)-O148 -> 1000000 | Q130: =SUM($G$126:Q126)-P148 -> 833333.3333 | R130: =SUM($G$126:R126)-Q148 -> 666666.6667 | S130: =SUM($G$126:S126)-R148 -> 500000 | T130: =SUM($G$126:T126)-S148 -> 333333.3333 | U130: =SUM($G$126:U126)-T148 -> 166666.6667 | V130: =SUM($G$126:V126)-U148 -> 0 | W130: =SUM($G$126:W126)-V148 -> 0 | X130: =SUM($G$126:X126)-W148 -> 0 | Y130: =SUM($G$126:Y126)-X148 -> 0 | Z130: =SUM($G$126:Z126)-Y148 -> 0 | AA130: =SUM($G$126:AA126)-Z148 -> 0 | AB130: =SUM($G$126:AB126)-AA148 -> 0 | AC130: =SUM($G$126:AC126)-AB148 -> 0 | AD130: =SUM($G$126:AD126)-AC148 -> 0 | AE130: =SUM($G$126:AE126)-AD148 -> 0 | AF130: =SUM($G$126:AF126)-AE148 -> 0 | AG130: =SUM($G$126:AG126)-AF148 -> 0 | AH130: =SUM($G$126:AH126)-AG148 -> 0 | AI130: =SUM($G$126:AI126)-AH148 -> 0 | AJ130: =SUM($G$126:AJ126)-AI148 -> 0 | AK130: =SUM($G$126:AK126)-AJ148 -> 0 | AL130: =SUM($G$126:AL126)-AK148 -> 0 | AM130: =SUM($G$126:AM126)-AL148 -> 0 | AN130: =SUM($G$126:AN126)-AM148 -> 0 | AO130: =SUM($G$126:AO126)-AN148 -> 0 | AP130: =SUM($G$126:AP126)-AO148 -> 0 | AQ130: =SUM($G$126:AQ126)-AP148 -> 0 | AR130: =SUM($G$126:AR126)-AQ148 -> 0 | AS130: =SUM($G$126:AS126)-AR148 -> 0 | AT130: =SUM($G$126:AT126)-AS148 -> 0
B134: MULTI-YEAR BOOK DEPRECIATION TABLE
D135: INVESTMENT YR
B136: DEPRECIATION, INVESTMENT IN YR | D136: 1 | G136: =IF(G120<=$D$116,SLN(SUM(G122),0,$D$116),0)+IF(G120<=$D$117,SLN(SUM(G123),0,$D$117),0)+IF(G120<=$D$118,SLN(SUM(G124),0,$D$118),0)+IF(G120<=D119,SLN(SUM(G125),0,$D$119),0) -> 166666.6667 | H136: =IF(H120<=$D$116,SLN(($G$122),0,$D$116),0)+IF(H120<=$D$117,SLN(SUM($G$123),0,$D$117),0)+IF(H120<=$D$118,SLN(($G$124),0,$D$118),0)+IF(H120<=$D$119,SLN(($G$125),0,$D$119),0) -> 166666.6667 | I136: =IF(I120<=$D$116,SLN(($G$122),0,$D$116),0)+IF(I120<=$D$117,SLN(SUM($G$123),0,$D$117),0)+IF(I120<=$D$118,SLN(($G$124),0,$D$118),0)+IF(I120<=$D$119,SLN(($G$125),0,$D$119),0) -> 166666.6667 | J136: =IF(J120<=$D$116,SLN(($G$122),0,$D$116),0)+IF(J120<=$D$117,SLN(SUM($G$123),0,$D$117),0)+IF(J120<=$D$118,SLN(($G$124),0,$D$118),0)+IF(J120<=$D$119,SLN(($G$125),0,$D$119),0) -> 166666.6667 | K136: =IF(K120<=$D$116,SLN(($G$122),0,$D$116),0)+IF(K120<=$D$117,SLN(SUM($G$123),0,$D$117),0)+IF(K120<=$D$118,SLN(($G$124),0,$D$118),0)+IF(K120<=$D$119,SLN(($G$125),0,$D$119),0) -> 166666.6667 | L136: 166666.6667 | M136: =IF(M120<=$D$116,SLN(($G$122),0,$D$116),0)+IF(M120<=$D$117,SLN(SUM($G$123),0,$D$117),0)+IF(M120<=$D$118,SLN(($G$124),0,$D$118),0)+IF(M120<=$D$119,SLN(($G$125),0,$D$119),0) -> 166666.6667 | N136: =IF(N120<=$D$116,SLN(($G$122),0,$D$116),0)+IF(N120<=$D$117,SLN(SUM($G$123),0,$D$117),0)+IF(N120<=$D$118,SLN(($G$124),0,$D$118),0)+IF(N120<=$D$119,SLN(($G$125),0,$D$119),0) -> 166666.6667 | O136: =IF(O120<=$D$116,SLN(($G$122),0,$D$116),0)+IF(O120<=$D$117,SLN(SUM($G$123),0,$D$117),0)+IF(O120<=$D$118,SLN(($G$124),0,$D$118),0)+IF(O120<=$D$119,SLN(($G$125),0,$D$119),0) -> 166666.6667 | P136: 166666.6667 | Q136: 166666.6667 | R136: 166666.6667 | S136: 166666.6667 | T136: 166666.6667 | U136: 166666.6667 | V136: 0 | W136: 0 | X136: 0 | Y136: 0 | Z136: 0 | AA136: 0 | AB136: 0 | AC136: 0 | AD136: =IF(AD120<=$D$116,SLN(($G$122),0,$D$116),0)+IF(AD120<=$D$117,SLN(SUM($G$123),0,$D$117),0)+IF(AD120<=$D$118,SLN(($G$124),0,$D$118),0)+IF(AD120<=$D$119,SLN(($G$125),0,$D$119),0) -> 0 | AE136: 0 | AF136: 0 | AG136: 0 | AH136: 0 | AI136: 0 | AJ136: 0 | AK136: 0 | AL136: 0 | AM136: 0 | AN136: 0 | AO136: 0 | AP136: 0 | AQ136: 0 | AR136: 0 | AS136: 0 | AT136: 0
B137: DEPRECIATION, INVESTMENT IN YR | D137: 2 | H137: =IF(H120<=($D$116+1),SLN(($H$122),0,$D$116),0)+IF(H120<=($D$117+1),SLN(($H$123),0,$D$117),0)+IF(H120<=($D$118+1),SLN(($H$124),0,$D$118),0)+IF(H120<=($D$119+1),SLN(($H$125),0,$D$119),0) -> 0 | I137: =IF(I120<=($D$116+1),SLN(($H$122),0,$D$116),0)+IF(I120<=($D$117+1),SLN(($H$123),0,$D$117),0)+IF(I120<=($D$118+1),SLN(($H$124),0,$D$118),0)+IF(I120<=($D$119+1),SLN(($H$125),0,$D$119),0) -> 0 | J137: =IF(J120<=($D$116+1),SLN(($H$122),0,$D$116),0)+IF(J120<=($D$117+1),SLN(($H$123),0,$D$117),0)+IF(J120<=($D$118+1),SLN(($H$124),0,$D$118),0)+IF(J120<=($D$119+1),SLN(($H$125),0,$D$119),0) -> 0 | K137: 0 | L137: 0 | M137: =IF(M120<=($D$116+1),SLN(($H$122),0,$D$116),0)+IF(M120<=($D$117+1),SLN(($H$123),0,$D$117),0)+IF(M120<=($D$118+1),SLN(($H$124),0,$D$118),0)+IF(M120<=($D$119+1),SLN(($H$125),0,$D$119),0) -> 0 | N137: =IF(N120<=($D$116+1),SLN(($H$122),0,$D$116),0)+IF(N120<=($D$117+1),SLN(($H$123),0,$D$117),0)+IF(N120<=($D$118+1),SLN(($H$124),0,$D$118),0)+IF(N120<=($D$119+1),SLN(($H$125),0,$D$119),0) -> 0 | O137: =IF(O120<=($D$116+1),SLN(($H$122),0,$D$116),0)+IF(O120<=($D$117+1),SLN(($H$123),0,$D$117),0)+IF(O120<=($D$118+1),SLN(($H$124),0,$D$118),0)+IF(O120<=($D$119+1),SLN(($H$125),0,$D$119),0) -> 0 | P137: 0 | Q137: 0 | R137: 0 | S137: 0 | T137: 0 | U137: 0 | V137: 0 | W137: 0 | X137: 0 | Y137: 0 | Z137: 0 | AA137: 0 | AB137: 0 | AC137: 0 | AD137: 0 | AE137: 0 | AF137: 0 | AG137: 0 | AH137: 0 | AI137: 0 | AJ137: 0 | AK137: 0 | AL137: 0 | AM137: 0 | AN137: 0 | AO137: 0 | AP137: 0 | AQ137: 0 | AR137: 0 | AS137: 0 | AT137: 0
B138: DEPRECIATION, INVESTMENT IN YR | D138: 3 | I138: =IF(I120<=($D$116+2),SLN(($I$122),0,$D$116),0)+IF(I120<=($D$117+2),SLN(($I$123),0,$D$117),0)+IF(I120<=($D$118+2),SLN(($I$124),0,$D$118),0)+IF(I120<=($D$119+2),SLN(($I$125),0,$D$119),0) -> 0 | J138: =IF(J120<=($D$116+2),SLN(($I$122),0,$D$116),0)+IF(J120<=($D$117+2),SLN(($I$123),0,$D$117),0)+IF(J120<=($D$118+2),SLN(($I$124),0,$D$118),0)+IF(J120<=($D$119+2),SLN(($I$125),0,$D$119),0) -> 0 | K138: 0 | L138: 0 | M138: =IF(M120<=($D$116+2),SLN(($I$122),0,$D$116),0)+IF(M120<=($D$117+2),SLN(($I$123),0,$D$117),0)+IF(M120<=($D$118+2),SLN(($I$124),0,$D$118),0)+IF(M120<=($D$119+2),SLN(($I$125),0,$D$119),0) -> 0 | N138: =IF(N120<=($D$116+2),SLN(($I$122),0,$D$116),0)+IF(N120<=($D$117+2),SLN(($I$123),0,$D$117),0)+IF(N120<=($D$118+2),SLN(($I$124),0,$D$118),0)+IF(N120<=($D$119+2),SLN(($I$125),0,$D$119),0) -> 0 | O138: =IF(O120<=($D$116+2),SLN(($I$122),0,$D$116),0)+IF(O120<=($D$117+2),SLN(($I$123),0,$D$117),0)+IF(O120<=($D$118+2),SLN(($I$124),0,$D$118),0)+IF(O120<=($D$119+2),SLN(($I$125),0,$D$119),0) -> 0 | P138: 0 | Q138: 0 | R138: 0 | S138: 0 | T138: 0 | U138: 0 | V138: 0 | W138: 0 | X138: 0 | Y138: 0 | Z138: 0 | AA138: 0 | AB138: 0 | AC138: 0 | AD138: =IF(AD120<=($D$116+2),SLN(($I$122),0,$D$116),0)+IF(AD120<=($D$117+2),SLN(($I$123),0,$D$117),0)+IF(AD120<=($D$118+2),SLN(($I$124),0,$D$118),0)+IF(AD120<=($D$119+2),SLN(($I$125),0,$D$119),0) -> 0 | AE138: 0 | AF138: 0 | AG138: 0 | AH138: 0 | AI138: 0 | AJ138: 0 | AK138: 0 | AL138: 0 | AM138: 0 | AN138: 0 | AO138: 0 | AP138: 0 | AQ138: 0 | AR138: 0 | AS138: 0 | AT138: 0
B139: DEPRECIATION, INVESTMENT IN YR | D139: 4 | J139: =IF(J120<=($D$116+3),SLN(($J$122),0,$D$116),0)+IF(J120<=($D$117+3),SLN(($J$123),0,$D$117),0)+IF(J120<=($D$118+3),SLN(($J$124),0,$D$118),0)+IF(J120<=($D$119+3),SLN(($J$125),0,$D$119),0) -> 0 | K139: =IF(K120<=($D$116+3),SLN(($J$122),0,$D$116),0)+IF(K120<=($D$117+3),SLN(($J$123),0,$D$117),0)+IF(K120<=($D$118+3),SLN(($J$124),0,$D$118),0)+IF(K120<=($D$119+3),SLN(($J$125),0,$D$119),0) -> 0 | L139: =IF(L120<=($D$116+3),SLN(($J$122),0,$D$116),0)+IF(L120<=($D$117+3),SLN(($J$123),0,$D$117),0)+IF(L120<=($D$118+3),SLN(($J$124),0,$D$118),0)+IF(L120<=($D$119+3),SLN(($J$125),0,$D$119),0) -> 0 | M139: =IF(M120<=($D$116+3),SLN(($J$122),0,$D$116),0)+IF(M120<=($D$117+3),SLN(($J$123),0,$D$117),0)+IF(M120<=($D$118+3),SLN(($J$124),0,$D$118),0)+IF(M120<=($D$119+3),SLN(($J$125),0,$D$119),0) -> 0 | N139: =IF(N120<=($D$116+3),SLN(($J$122),0,$D$116),0)+IF(N120<=($D$117+3),SLN(($J$123),0,$D$117),0)+IF(N120<=($D$118+3),SLN(($J$124),0,$D$118),0)+IF(N120<=($D$119+3),SLN(($J$125),0,$D$119),0) -> 0 | O139: =IF(O120<=($D$116+3),SLN(($J$122),0,$D$116),0)+IF(O120<=($D$117+3),SLN(($J$123),0,$D$117),0)+IF(O120<=($D$118+3),SLN(($J$124),0,$D$118),0)+IF(O120<=($D$119+3),SLN(($J$125),0,$D$119),0) -> 0 | P139: 0 | Q139: 0 | R139: 0 | S139: 0 | T139: 0 | U139: 0 | V139: 0 | W139: 0 | X139: 0 | Y139: 0 | Z139: 0 | AA139: 0 | AB139: 0 | AC139: 0 | AD139: =IF(AD120<=($D$116+3),SLN(($J$122),0,$D$116),0)+IF(AD120<=($D$117+3),SLN(($J$123),0,$D$117),0)+IF(AD120<=($D$118+3),SLN(($J$124),0,$D$118),0)+IF(AD120<=($D$119+3),SLN(($J$125),0,$D$119),0) -> 0 | AE139: 0 | AF139: 0 | AG139: 0 | AH139: 0 | AI139: 0 | AJ139: 0 | AK139: 0 | AL139: 0 | AM139: 0 | AN139: 0 | AO139: 0 | AP139: 0 | AQ139: 0 | AR139: 0 | AS139: 0 | AT139: 0
B140: DEPRECIATION, INVESTMENT IN YR | D140: 5 | K140: =IF(K120<=($D$116+4),SLN(($K$122),0,$D$116),0)+IF(K120<=($D$117+4),SLN(($K$123),0,$D$117),0)+IF(K120<=($D$118+4),SLN(($K$124),0,$D$118),0)+IF(K120<=($D$119+4),SLN(($K$125),0,$D$119),0) -> 0 | L140: =IF(L120<=($D$116+4),SLN(($K$122),0,$D$116),0)+IF(L120<=($D$117+4),SLN(($K$123),0,$D$117),0)+IF(L120<=($D$118+4),SLN(($K$124),0,$D$118),0)+IF(L120<=($D$119+4),SLN(($K$125),0,$D$119),0) -> 0 | M140: =IF(M120<=($D$116+4),SLN(($K$122),0,$D$116),0)+IF(M120<=($D$117+4),SLN(($K$123),0,$D$117),0)+IF(M120<=($D$118+4),SLN(($K$124),0,$D$118),0)+IF(M120<=($D$119+4),SLN(($K$125),0,$D$119),0) -> 0 | N140: =IF(N120<=($D$116+4),SLN(($K$122),0,$D$116),0)+IF(N120<=($D$117+4),SLN(($K$123),0,$D$117),0)+IF(N120<=($D$118+4),SLN(($K$124),0,$D$118),0)+IF(N120<=($D$119+4),SLN(($K$125),0,$D$119),0) -> 0 | O140: =IF(O120<=($D$116+4),SLN(($K$122),0,$D$116),0)+IF(O120<=($D$117+4),SLN(($K$123),0,$D$117),0)+IF(O120<=($D$118+4),SLN(($K$124),0,$D$118),0)+IF(O120<=($D$119+4),SLN(($K$125),0,$D$119),0) -> 0 | P140: 0 | Q140: 0 | R140: 0 | S140: 0 | T140: 0 | U140: 0 | V140: 0 | W140: 0 | X140: 0 | Y140: 0 | Z140: 0 | AA140: 0 | AB140: 0 | AC140: 0 | AD140: =IF(AD120<=($D$116+4),SLN(($K$122),0,$D$116),0)+IF(AD120<=($D$117+4),SLN(($K$123),0,$D$117),0)+IF(AD120<=($D$118+4),SLN(($K$124),0,$D$118),0)+IF(AD120<=($D$119+4),SLN(($K$125),0,$D$119),0) -> 0 | AE140: 0 | AF140: 0 | AG140: 0 | AH140: 0 | AI140: 0 | AJ140: 0 | AK140: 0 | AL140: 0 | AM140: 0 | AN140: 0 | AO140: 0 | AP140: 0 | AQ140: 0 | AR140: 0 | AS140: 0 | AT140: 0
B141: DEPRECIATION, INVESTMENT IN YR | D141: 6 | L141: =IF(L120<=($D$116+5),SLN(($L$122),0,$D$116),0)+IF(L120<=($D$117+5),SLN(($L$123),0,$D$117),0)+IF(L120<=($D$118+5),SLN(($L$124),0,$D$118),0)+IF(L120<=($D$119+5),SLN(($L$125),0,$D$119),0) -> 0 | M141: =IF(M120<=($D$116+5),SLN(($L$122),0,$D$116),0)+IF(M120<=($D$117+5),SLN(($L$123),0,$D$117),0)+IF(M120<=($D$118+5),SLN(($L$124),0,$D$118),0)+IF(M120<=($D$119+5),SLN(($L$125),0,$D$119),0) -> 0 | N141: =IF(N120<=($D$116+5),SLN(($L$122),0,$D$116),0)+IF(N120<=($D$117+5),SLN(($L$123),0,$D$117),0)+IF(N120<=($D$118+5),SLN(($L$124),0,$D$118),0)+IF(N120<=($D$119+5),SLN(($L$125),0,$D$119),0) -> 0 | O141: =IF(O120<=($D$116+5),SLN(($L$122),0,$D$116),0)+IF(O120<=($D$117+5),SLN(($L$123),0,$D$117),0)+IF(O120<=($D$118+5),SLN(($L$124),0,$D$118),0)+IF(O120<=($D$119+5),SLN(($L$125),0,$D$119),0) -> 0 | P141: =IF(P120<=($D$116+5),SLN(($L$122),0,$D$116),0)+IF(P120<=($D$117+5),SLN(($L$123),0,$D$117),0)+IF(P120<=($D$118+5),SLN(($L$124),0,$D$118),0)+IF(P120<=($D$119+5),SLN(($L$125),0,$D$119),0) -> 0 | Q141: =IF(Q120<=($D$116+5),SLN(($L$122),0,$D$116),0)+IF(Q120<=($D$117+5),SLN(($L$123),0,$D$117),0)+IF(Q120<=($D$118+5),SLN(($L$124),0,$D$118),0)+IF(Q120<=($D$119+5),SLN(($L$125),0,$D$119),0) -> 0 | R141: 0 | S141: 0 | T141: 0 | U141: 0 | V141: 0 | W141: 0 | X141: 0 | Y141: 0 | Z141: 0 | AA141: 0 | AB141: 0 | AC141: 0 | AD141: =IF(AD120<=($D$116+5),SLN(($L$122),0,$D$116),0)+IF(AD120<=($D$117+5),SLN(($L$123),0,$D$117),0)+IF(AD120<=($D$118+5),SLN(($L$124),0,$D$118),0)+IF(AD120<=($D$119+5),SLN(($L$125),0,$D$119),0) -> 0 | AE141: 0 | AF141: 0 | AG141: 0 | AH141: 0 | AI141: 0 | AJ141: 0 | AK141: 0 | AL141: 0 | AM141: 0 | AN141: 0 | AO141: 0 | AP141: 0 | AQ141: 0 | AR141: 0 | AS141: 0 | AT141: 0
B142: DEPRECIATION, INVESTMENT IN YR | D142: 7 | M142: =IF(M$120<=($D$116+6),SLN(($M$122),0,$D$116),0)+IF(M$120<=($D$117+6),SLN(($M$123),0,$D$117),0)+IF(M$120<=($D$118+6),SLN(($M$124),0,$D$118),0)+IF(M$120<=($D$119+6),SLN(($M$125),0,$D$119),0) -> 0 | N142: =IF(N$120<=($D$116+6),SLN(($M$122),0,$D$116),0)+IF(N$120<=($D$117+6),SLN(($M$123),0,$D$117),0)+IF(N$120<=($D$118+6),SLN(($M$124),0,$D$118),0)+IF(N$120<=($D$119+6),SLN(($M$125),0,$D$119),0) -> 0 | O142: =IF(O$120<=($D$116+6),SLN(($M$122),0,$D$116),0)+IF(O$120<=($D$117+6),SLN(($M$123),0,$D$117),0)+IF(O$120<=($D$118+6),SLN(($M$124),0,$D$118),0)+IF(O$120<=($D$119+6),SLN(($M$125),0,$D$119),0) -> 0 | P142: =IF(P$120<=($D$116+6),SLN(($M$122),0,$D$116),0)+IF(P$120<=($D$117+6),SLN(($M$123),0,$D$117),0)+IF(P$120<=($D$118+6),SLN(($M$124),0,$D$118),0)+IF(P$120<=($D$119+6),SLN(($M$125),0,$D$119),0) -> 0 | Q142: =IF(Q$120<=($D$116+6),SLN(($M$122),0,$D$116),0)+IF(Q$120<=($D$117+6),SLN(($M$123),0,$D$117),0)+IF(Q$120<=($D$118+6),SLN(($M$124),0,$D$118),0)+IF(Q$120<=($D$119+6),SLN(($M$125),0,$D$119),0) -> 0 | R142: 0 | S142: 0 | T142: 0 | U142: 0 | V142: 0 | W142: 0 | X142: 0 | Y142: 0 | Z142: 0 | AA142: 0 | AB142: 0 | AC142: 0 | AD142: 0 | AE142: 0 | AF142: 0 | AG142: 0 | AH142: 0 | AI142: 0 | AJ142: 0 | AK142: 0 | AL142: 0 | AM142: 0 | AN142: 0 | AO142: 0 | AP142: 0 | AQ142: 0 | AR142: 0 | AS142: 0 | AT142: 0
B143: DEPRECIATION, INVESTMENT IN YR | D143: 8 | N143: =IF(N$120<=($D$116+7),SLN(($N$122),0,$D$116),0)+IF(N$120<=($D$117+7),SLN(($N$123),0,$D$117),0)+IF(N$120<=($D$118+7),SLN(($N$124),0,$D$118),0)+IF(N$120<=($D$119+7),SLN(($N$125),0,$D$119),0) -> 0 | O143: 0 | P143: 0 | Q143: 0 | R143: 0 | S143: 0 | T143: 0 | U143: 0 | V143: 0 | W143: 0 | X143: 0 | Y143: 0 | Z143: 0 | AA143: 0 | AB143: 0 | AC143: 0 | AD143: 0 | AE143: 0 | AF143: 0 | AG143: 0 | AH143: 0 | AI143: 0 | AJ143: 0 | AK143: 0 | AL143: 0 | AM143: 0 | AN143: 0 | AO143: 0 | AP143: 0 | AQ143: 0 | AR143: 0 | AS143: 0 | AT143: 0
B144: DEPRECIATION, INVESTMENT IN YR | D144: 9 | O144: =IF(O$120<=($D$116+8),SLN(($O$122),0,$D$116),0)+IF(O$120<=($D$117+8),SLN(($O$123),0,$D$117),0)+IF(O$120<=($D$118+8),SLN(($O$124),0,$D$118),0)+IF(O$120<=($D$119+8),SLN(($O$125),0,$D$119),0) -> 0 | P144: 0 | Q144: 0 | R144: 0 | S144: 0 | T144: 0 | U144: 0 | V144: 0 | W144: 0 | X144: 0 | Y144: 0 | Z144: 0 | AA144: 0 | AB144: 0 | AC144: 0 | AD144: 0 | AE144: 0 | AF144: 0 | AG144: 0 | AH144: 0 | AI144: 0 | AJ144: 0 | AK144: 0 | AL144: 0 | AM144: 0 | AN144: 0 | AO144: 0 | AP144: 0 | AQ144: 0 | AR144: 0 | AS144: 0 | AT144: 0
B145: DEPRECIATION, INVESTMENT IN YR | D145: 10 | P145: =IF(P120<=($D$116+5),SLN(($P$122),0,$D$116),0)+IF(P120<=($D$117+9),SLN(($P$123),0,$D$117),0)+IF(P120<=($D$118+9),SLN(($P$124),0,$D$118),0)+IF(P120<=($D$119+9),SLN(($P$125),0,$D$119),0) -> 0 | Q145: 0 | R145: 0 | S145: 0 | T145: 0 | U145: 0 | V145: 0 | W145: 0 | X145: 0 | Y145: 0 | Z145: 0 | AA145: 0 | AB145: 0 | AC145: 0 | AD145: 0 | AE145: 0 | AF145: 0 | AG145: 0 | AH145: 0 | AI145: 0 | AJ145: 0 | AK145: 0 | AL145: 0 | AM145: 0 | AN145: 0 | AO145: 0 | AP145: 0 | AQ145: 0 | AR145: 0 | AS145: 0 | AT145: 0
B147: TOTAL BOOK DEPRECIATION FOR YEAR | G147: =SUM(G136:G146) -> 166666.6667 | H147: 166666.6667 | I147: 166666.6667 | J147: 166666.6667 | K147: 166666.6667 | L147: 166666.6667 | M147: 166666.6667 | N147: 166666.6667 | O147: 166666.6667 | P147: 166666.6667 | Q147: 166666.6667 | R147: 166666.6667 | S147: 166666.6667 | T147: 166666.6667 | U147: 166666.6667 | V147: 0 | W147: 0 | X147: 0 | Y147: 0 | Z147: 0 | AA147: 0 | AB147: 0 | AC147: 0 | AD147: =SUM(AD136:AD146) -> 0 | AE147: 0 | AF147: 0 | AG147: 0 | AH147: 0 | AI147: 0 | AJ147: 0 | AK147: 0 | AL147: 0 | AM147: 0 | AN147: 0 | AO147: 0 | AP147: 0 | AQ147: 0 | AR147: 0 | AS147: 0 | AT147: 0
B148: ACCUMULATIVE DEPRECIATION | G148: =SUM(G147) -> 166666.6667 | H148: =SUM($G$147:H147) -> 333333.3333 | I148: =SUM($G$147:I147) -> 500000 | J148: =SUM($G$147:J147) -> 666666.6667 | K148: =SUM($G$147:K147) -> 833333.3333 | L148: =SUM($G$147:L147) -> 1000000 | M148: =SUM($G$147:M147) -> 1166666.667 | N148: =SUM($G$147:N147) -> 1333333.333 | O148: =SUM($G$147:O147) -> 1500000 | P148: =SUM($G$147:P147) -> 1666666.667 | Q148: =SUM($G$147:Q147) -> 1833333.333 | R148: =SUM($G$147:R147) -> 2000000 | S148: =SUM($G$147:S147) -> 2166666.667 | T148: =SUM($G$147:T147) -> 2333333.333 | U148: =SUM($G$147:U147) -> 2500000 | V148: =SUM($G$147:V147) -> 2500000 | W148: =SUM($G$147:W147) -> 2500000 | X148: =SUM($G$147:X147) -> 2500000 | Y148: =SUM($G$147:Y147) -> 2500000 | Z148: =SUM($G$147:Z147) -> 2500000 | AA148: =SUM($G$147:AA147) -> 2500000 | AB148: =SUM($G$147:AB147) -> 2500000 | AC148: =SUM($G$147:AC147) -> 2500000 | AD148: =SUM($G$147:AD147) -> 2500000 | AE148: =SUM($G$147:AE147) -> 2500000 | AF148: =SUM($G$147:AF147) -> 2500000 | AG148: =SUM($G$147:AG147) -> 2500000 | AH148: =SUM($G$147:AH147) -> 2500000 | AI148: =SUM($G$147:AI147) -> 2500000 | AJ148: =SUM($G$147:AJ147) -> 2500000 | AK148: =SUM($G$147:AK147) -> 2500000 | AL148: =SUM($G$147:AL147) -> 2500000 | AM148: =SUM($G$147:AM147) -> 2500000 | AN148: =SUM($G$147:AN147) -> 2500000 | AO148: =SUM($G$147:AO147) -> 2500000 | AP148: =SUM($G$147:AP147) -> 2500000 | AQ148: =SUM($G$147:AQ147) -> 2500000 | AR148: =SUM($G$147:AR147) -> 2500000 | AS148: =SUM($G$147:AS147) -> 2500000 | AT148: =SUM($G$147:AT147) -> 2500000
B149: ACCUMULATED INVESTMENT | G149: =SUM(G126) -> 2500000 | H149: =SUM($G$126:H126) -> 2500000 | I149: =SUM($G$126:I126) -> 2500000 | J149: =SUM($G$126:J126) -> 2500000 | K149: =SUM($G$126:K126) -> 2500000 | L149: =SUM($G$126:L126) -> 2500000 | M149: =SUM($G$126:M126) -> 2500000 | N149: =SUM($G$126:N126) -> 2500000 | O149: =SUM($G$126:O126) -> 2500000 | P149: =SUM($G$126:P126) -> 2500000 | Q149: =SUM($G$126:Q126) -> 2500000 | R149: =SUM($G$126:R126) -> 2500000 | S149: =SUM($G$126:S126) -> 2500000 | T149: =SUM($G$126:T126) -> 2500000 | U149: =SUM($G$126:U126) -> 2500000 | V149: =SUM($G$126:V126) -> 2500000 | W149: =SUM($G$126:W126) -> 2500000 | X149: =SUM($G$126:X126) -> 2500000 | Y149: =SUM($G$126:Y126) -> 2500000 | Z149: =SUM($G$126:Z126) -> 2500000 | AA149: =SUM($G$126:AA126) -> 2500000 | AB149: =SUM($G$126:AB126) -> 2500000 | AC149: =SUM($G$126:AC126) -> 2500000 | AD149: =SUM($G$126:AD126) -> 2500000 | AE149: =SUM($G$126:AE126) -> 2500000 | AF149: =SUM($G$126:AF126) -> 2500000 | AG149: =SUM($G$126:AG126) -> 2500000 | AH149: =SUM($G$126:AH126) -> 2500000 | AI149: =SUM($G$126:AI126) -> 2500000 | AJ149: =SUM($G$126:AJ126) -> 2500000 | AK149: =SUM($G$126:AK126) -> 2500000 | AL149: =SUM($G$126:AL126) -> 2500000 | AM149: =SUM($G$126:AM126) -> 2500000 | AN149: =SUM($G$126:AN126) -> 2500000 | AO149: =SUM($G$126:AO126) -> 2500000 | AP149: =SUM($G$126:AP126) -> 2500000 | AQ149: =SUM($G$126:AQ126) -> 2500000 | AR149: =SUM($G$126:AR126) -> 2500000 | AS149: =SUM($G$126:AS126) -> 2500000 | AT149: =SUM($G$126:AT126) -> 2500000
B150: BOOK VALUE, END OF YEAR | G150: =G149-G148 -> 2333333.333 | H150: 2166666.667 | I150: 2000000 | J150: 1833333.333 | K150: 1666666.667 | L150: 1500000 | M150: 1333333.333 | N150: 1166666.667 | O150: 1000000 | P150: 833333.3333 | Q150: 666666.6667 | R150: 500000 | S150: 333333.3333 | T150: 166666.6667 | U150: 0 | V150: 0 | W150: 0 | X150: 0 | Y150: 0 | Z150: 0 | AA150: 0 | AB150: 0 | AC150: 0 | AD150: =AD149-AD148 -> 0 | AE150: 0 | AF150: 0 | AG150: 0 | AH150: 0 | AI150: 0 | AJ150: 0 | AK150: 0 | AL150: 0 | AM150: 0 | AN150: 0 | AO150: 0 | AP150: 0 | AQ150: 0 | AR150: 0 | AS150: 0 | AT150: 0
B151: INTEREST EXPENSE | G151: =((G130+G150)/2)*$C$157*$C$158 -> 74017.66667 | H151: =((H130+H150)/2)*$C$157*$C$158 -> 68913 | I151: 63808.33333 | J151: 58703.66667 | K151: 53599 | L151: 48494.33333 | M151: 43389.66667 | N151: 38285 | O151: 33180.33333 | P151: 28075.66667 | Q151: 22971 | R151: 17866.33333 | S151: 12761.66667 | T151: 7657 | U151: 2552.333333 | V151: 0 | W151: 0 | X151: 0 | Y151: 0 | Z151: 0 | AA151: 0 | AB151: 0 | AC151: 0 | AD151: =((AD130+AD150)/2)*$C$157*$C$158 -> 0 | AE151: 0 | AF151: 0 | AG151: 0 | AH151: 0 | AI151: 0 | AJ151: 0 | AK151: 0 | AL151: 0 | AM151: 0 | AN151: 0 | AO151: 0 | AP151: 0 | AQ151: 0 | AR151: 0 | AS151: 0 | AT151: 0
G152: =(G150+G149)*$C$157*$C$158/2 -> 74017.66667 | H152: =(H150+H149-H137)*$C$157*$C$158/2 -> 71465.33333 | I152: =(I150+I149)*$C$157*$C$158/2 -> 68913 | J152: 66360.66667 | K152: 63808.33333 | L152: 61256 | M152: 58703.66667 | N152: 56151.33333 | O152: 53599 | P152: 51046.66667 | Q152: 48494.33333 | R152: 45942 | S152: 43389.66667 | T152: 40837.33333 | U152: 38285 | V152: 38285 | W152: 38285 | X152: 38285 | Y152: 38285 | Z152: 38285 | AA152: 38285 | AB152: 38285 | AC152: 38285 | AD152: =(AD150+AD149)*$C$157*$C$158/2 -> 38285 | AE152: 38285 | AF152: 38285 | AG152: 38285 | AH152: 38285 | AI152: 38285 | AJ152: 38285 | AK152: 38285 | AL152: 38285 | AM152: 38285 | AN152: 38285 | AO152: 38285 | AP152: 38285 | AQ152: 38285 | AR152: 38285 | AS152: 38285 | AT152: 38285
H153: =(G150+H150)*C157*C158/2 -> 68913
B157: DEBT RATIO: | C157: =ROUND(+D162+D163+D164,4) -> 0.52
B158: WTD LT AND ST DEBT ROR: | C158: =ROUND(I162+I163+I164,4) -> 0.0589
B160: Docket Nos. UE-111048 and UG-111049 (Consolidated)
D161: Ratio | F161: Cost | G161: Return
B162: Debt LT | D162: 0.48 | F162: 0.0616 | G162: =ROUND(F162*D162,4) -> 0.0296 | H162: =D162/$C$157 -> 0.9230769231 | I162: =H162*F162 -> 0.05686153846
B163: Debt ST | D163: 0.04 | F163: 0.0268 | G163: =ROUND(F163*D163,4) -> 0.0011 | H163: =D163/$C$157 -> 0.07692307692 | I163: =H163*F163 -> 0.002061538462
B164: Trust Preferred | D164: 0 | F164: 0 | G164: =ROUND(F164*D164,4) -> 0 | H164: =D164/$C$157 -> 0 | I164: =H164*F164 -> 0
B165: Preferred | D165: 0 | F165: 0 | G165: =ROUND(F165*D165,4) -> 0
B166: Common Equity | D166: 0.48 | F166: 0.098 | G166: =ROUND(F166*D166,4) -> 0.047
D167: =SUM(D162:D166) -> 1 | G167: =SUM(G162:G166) -> 0.0777
B168: =B112 -> PUGET SOUND ENERGY
B169: =B113 -> NATURAL GAS COMPRESSION SERVICE CHARGE ANALYSIS
B170: =B114 -> Version: P_FIA_CNG_v1_P_12-21-2012.xlsm
B172: TAX DEPRECIATION | C172: From: Marcelia, Matthew R Sent: Thursday, July 18, 2013 3:29 PM To: Cass, Mei; Ross, Marjorie Subject: RE: Bonus Depreciation Question Gas has a life of 20 years (for a while it was 15 years, then it reverted back to 20). Matt From: Marcelia, Matthew R Sent: Thursday, July 18, 2013 3:29 PM To: Cass, Mei; Ross, Marjorie Subject: RE: Bonus Depreciation Question Gas has a life of 20 years (for a while it was 15 years, then it reverted back to 20). Matt | E172: YEAR: | G172: 1 | H172: 2 | I172: 3 | J172: 4 | K172: 5 | L172: =K172+1 -> 6 | M172: 7 | N172: 8 | O172: 9 | P172: 10 | Q172: =P172+1 -> 11 | R172: 12 | S172: 13 | T172: 14 | U172: 15 | V172: 16 | W172: 17 | X172: 18 | Y172: 19 | Z172: 20 | AA172: 21 | AB172: =AA172+1 -> 22 | AC172: =AB172+1 -> 23 | AD172: =AC172+1 -> 24 | AE172: 25 | AF172: 26 | AG172: 27 | AH172: 28 | AI172: 29 | AJ172: 30 | AK172: 31 | AL172: 32 | AM172: 33 | AN172: 34 | AO172: 35 | AP172: 36 | AQ172: 37 | AR172: 38 | AS172: 39 | AT172: 40
B174: TAX DEPRECIATION RATE | D174: MAIN, MSA, OTHER | G174: 0.0375 | H174: 0.07219 | I174: 0.06677 | J174: 0.06177 | K174: 0.05713 | L174: 0.05285 | M174: 0.04888 | N174: 0.04522 | O174: 0.04462 | P174: 0.04461 | Q174: 0.04462 | R174: 0.04461 | S174: 0.04462 | T174: 0.04461 | U174: 0.04462 | V174: 0.04461 | W174: 0.04462 | X174: 0.04461 | Y174: 0.04462 | Z174: 0.04461 | AA174: 0.02231
B175: DEPRECIATION, INVESTMENT IN YR | D175: 1 | G175: =IF(G$172<=16,G174*SUM($G122,$G124:$G125),0)+0.5*(IF(H$172<=16,H174*SUM($G122,$G124:$G125),0)) -> 183987.5 | H175: =0.5*(IF(H$172<=16,H174*SUM($G122,$G124:$G125),0))+0.5*(IF(I$172<=16,I174*SUM($G122,$G124:$G125),0)) -> 173700 | I175: 160675 | J175: 148625 | K175: 137475 | L175: 127162.5 | M175: 117625 | N175: 112300 | O175: 111537.5 | P175: 111537.5 | Q175: 111537.5 | R175: 111537.5 | S175: 111537.5 | T175: 111537.5 | U175: 111537.5 | V175: 55762.5 | W175: 0 | X175: 0 | Y175: 0 | Z175: 0 | AA175: 0 | AB175: 0 | AC175: 0 | AD175: 0 | AE175: 0 | AF175: 0 | AG175: 0 | AH175: 0 | AI175: 0 | AJ175: 0 | AK175: 0 | AL175: 0 | AM175: 0 | AN175: 0 | AO175: 0 | AP175: 0 | AQ175: 0 | AR175: 0 | AS175: 0 | AT175: 0
B176: DEPRECIATION, INVESTMENT IN YR | D176: =D175+1 -> 2 | G176: =0.5*(IF(G$172<=17,F174*SUM($H122,$H124:$H125),0))+0.5*(IF(H$172<=17,G174*SUM($H122,$H124:$H125),0)) -> 0 | H176: =0.5*(IF(H$172<=17,G174*SUM($H122,$H124:$H125),0))+0.5*(IF(I$172<=17,H174*SUM($H122,$H124:$H125),0)) -> 0 | I176: =0.5*(IF(I$172<=17,H174*SUM($H122,$H124:$H125),0))+0.5*(IF(J$172<=17,I174*SUM($H122,$H124:$H125),0)) -> 0 | J176: 0 | K176: 0 | L176: 0 | M176: 0 | N176: 0 | O176: 0 | P176: 0 | Q176: 0 | R176: 0 | S176: 0 | T176: 0 | U176: 0 | V176: 0 | W176: 0 | X176: 0 | Y176: 0 | Z176: 0 | AA176: 0 | AB176: 0 | AC176: 0 | AD176: 0 | AE176: 0 | AF176: 0 | AG176: 0 | AH176: 0 | AI176: 0 | AJ176: 0 | AK176: 0 | AL176: 0 | AM176: 0 | AN176: 0 | AO176: 0 | AP176: 0 | AQ176: 0 | AR176: 0 | AS176: 0 | AT176: 0
B177: DEPRECIATION, INVESTMENT IN YR | D177: 3 | H177: =0.5*(IF(H$172<=18,F174*SUM($I122,$I124:$I125),0))+0.5*(IF(I$172<=18,G174*SUM($I122,$I124:$I125),0)) -> 0 | I177: =0.5*(IF(I$172<=18,G174*SUM($I122,$I124:$I125),0))+0.5*(IF(J$172<=18,H174*SUM($I122,$I124:$I125),0)) -> 0 | J177: 0 | K177: 0 | L177: 0 | M177: 0 | N177: 0 | O177: 0 | P177: 0 | Q177: 0 | R177: 0 | S177: 0 | T177: 0 | U177: 0 | V177: 0 | W177: 0 | X177: 0 | Y177: 0 | Z177: 0 | AA177: 0 | AB177: 0 | AC177: 0 | AD177: 0 | AE177: 0 | AF177: 0 | AG177: 0 | AH177: 0 | AI177: 0 | AJ177: 0 | AK177: 0 | AL177: 0 | AM177: 0 | AN177: 0 | AO177: 0 | AP177: 0 | AQ177: 0 | AR177: 0 | AS177: 0 | AT177: 0
B178: DEPRECIATION, INVESTMENT IN YR | D178: 4 | I178: =0.5*(IF(I$172<=19,F174*SUM($J122,$J124:$J125),0))+0.5*(IF(J$172<=19,G174*SUM($J122,$J124:$J125),0)) -> 0 | J178: =0.5*(IF(J$172<=19,G174*SUM($J122,$J124:$J125),0))+0.5*(IF(K$172<=19,H174*SUM($J122,$J124:$J125),0)) -> 0 | K178: 0 | L178: 0 | M178: 0 | N178: 0 | O178: 0 | P178: 0 | Q178: 0 | R178: 0 | S178: 0 | T178: 0 | U178: 0 | V178: 0 | W178: 0 | X178: 0 | Y178: 0 | Z178: 0 | AA178: 0 | AB178: 0 | AC178: 0 | AD178: 0 | AE178: 0 | AF178: 0 | AG178: 0 | AH178: 0 | AI178: 0 | AJ178: 0 | AK178: 0 | AL178: 0 | AM178: 0 | AN178: 0 | AO178: 0 | AP178: 0 | AQ178: 0 | AR178: 0 | AS178: 0 | AT178: 0
B179: DEPRECIATION, INVESTMENT IN YR | D179: 5 | J179: =0.5*(IF(J$172<=20,F174*SUM($K122,$K124:$K125),0))+0.5*(IF(K$172<=20,G174*SUM($K122,$K124:$K125),0)) -> 0 | K179: 0 | L179: 0 | M179: 0 | N179: 0 | O179: 0 | P179: 0 | Q179: 0 | R179: 0 | S179: 0 | T179: 0 | U179: 0 | V179: 0 | W179: 0 | X179: 0 | Y179: 0 | Z179: 0 | AA179: 0 | AB179: 0 | AC179: 0 | AD179: 0 | AE179: 0 | AF179: 0 | AG179: 0 | AH179: 0 | AI179: 0 | AJ179: 0 | AK179: 0 | AL179: 0 | AM179: 0 | AN179: 0 | AO179: 0 | AP179: 0 | AQ179: 0 | AR179: 0 | AS179: 0 | AT179: 0
B180: DEPRECIATION, INVESTMENT IN YR | D180: 6 | K180: =0.5*(IF(K$172<=21,F174*SUM($L122,$L124:$L125),0))+0.5*(IF(L$172<=21,G174*SUM($L122,$L124:$L125),0)) -> 0 | L180: 0 | M180: 0 | N180: 0 | O180: 0 | P180: 0 | Q180: 0 | R180: 0 | S180: 0 | T180: 0 | U180: 0 | V180: 0 | W180: 0 | X180: 0 | Y180: 0 | Z180: 0 | AA180: 0 | AB180: 0 | AC180: 0 | AD180: 0 | AE180: 0 | AF180: 0 | AG180: 0 | AH180: 0 | AI180: 0 | AJ180: 0 | AK180: 0 | AL180: 0 | AM180: 0 | AN180: 0 | AO180: 0 | AP180: 0 | AQ180: 0 | AR180: 0 | AS180: 0 | AT180: 0
B181: DEPRECIATION, INVESTMENT IN YR | D181: 7 | L181: =0.5*(IF(L$172<=22,F174*SUM($M122,$M124:$M125),0))+0.5*(IF(M$172<=22,G174*SUM($M122,$M124:$M125),0)) -> 0 | M181: 0 | N181: 0 | O181: 0 | P181: 0 | Q181: 0 | R181: 0 | S181: 0 | T181: 0 | U181: 0 | V181: 0 | W181: 0 | X181: 0 | Y181: 0 | Z181: 0 | AA181: 0 | AB181: 0 | AC181: 0 | AD181: 0 | AE181: 0 | AF181: 0 | AG181: 0 | AH181: 0 | AI181: 0 | AJ181: 0 | AK181: 0 | AL181: 0 | AM181: 0 | AN181: 0 | AO181: 0 | AP181: 0 | AQ181: 0 | AR181: 0 | AS181: 0 | AT181: 0
B182: DEPRECIATION, INVESTMENT IN YR | D182: =D181+1 -> 8 | M182: =0.5*(IF(M$172<=23,F174*SUM($N122,$N124:$N125),0))+0.5*(IF(N$172<=23,G174*SUM($N122,$N124:$N125),0)) -> 0 | N182: =0.5*(IF(N$172<=23,G174*SUM($N122,$N124:$N125),0))+0.5*(IF(O$172<=23,H174*SUM($N122,$N124:$N125),0)) -> 0 | O182: 0 | P182: 0 | Q182: =0.5*(IF(Q$172<=23,J174*SUM($N122,$N124:$N125),0))+0.5*(IF(R$172<=23,K174*SUM($N122,$N124:$N125),0)) -> 0 | R182: 0 | S182: 0 | T182: 0 | U182: 0 | V182: 0 | W182: 0 | X182: 0 | Y182: 0 | Z182: 0 | AA182: 0 | AB182: 0 | AC182: 0 | AD182: 0 | AE182: 0 | AF182: 0 | AG182: 0 | AH182: 0 | AI182: 0 | AJ182: 0 | AK182: 0 | AL182: 0 | AM182: 0 | AN182: 0 | AO182: 0 | AP182: 0 | AQ182: 0 | AR182: 0 | AS182: 0 | AT182: 0
B183: DEPRECIATION, INVESTMENT IN YR | D183: =D182+1 -> 9 | N183: =0.5*(IF(N$172<=24,F174*SUM(O122,$O124:$O125),0))+0.5*(IF(O$172<=24,G174*SUM($O122,$O124:$O125),0)) -> 0 | O183: =0.5*(IF(O$172<=24,G174*SUM(P122,$O124:$O125),0))+0.5*(IF(P$172<=24,H174*SUM($O122,$O124:$O125),0)) -> 0 | P183: 0 | Q183: 0 | R183: 0 | S183: 0 | T183: 0 | U183: 0 | V183: 0 | W183: 0 | X183: 0 | Y183: 0 | Z183: 0 | AA183: 0 | AB183: 0 | AC183: 0 | AD183: 0 | AE183: 0 | AF183: 0 | AG183: 0 | AH183: 0 | AI183: 0 | AJ183: 0 | AK183: 0 | AL183: 0 | AM183: 0 | AN183: 0 | AO183: 0 | AP183: 0 | AQ183: 0 | AR183: 0 | AS183: 0 | AT183: 0
B184: DEPRECIATION, INVESTMENT IN YR | D184: =D183+1 -> 10 | O184: =0.5*(IF(O$172<=25,F174*SUM($P122,$P124:$P125),0))+0.5*(IF(P$172<=25,G174*SUM($P122,$P124:$P125),0)) -> 0 | P184: =0.5*(IF(P$172<=25,G174*SUM($P122,$P124:$P125),0))+0.5*(IF(Q$172<=25,H174*SUM($P122,$P124:$P125),0)) -> 0 | Q184: =0.5*(IF(Q$172<=25,H174*SUM($P122,$P124:$P125),0))+0.5*(IF(R$172<=25,I174*SUM($P122,$P124:$P125),0)) -> 0 | R184: 0 | S184: 0 | T184: 0 | U184: 0 | V184: 0 | W184: 0 | X184: 0 | Y184: 0 | Z184: 0 | AA184: 0 | AB184: 0 | AC184: 0 | AD184: 0 | AE184: 0 | AF184: 0 | AG184: 0 | AH184: 0 | AI184: 0 | AJ184: 0 | AK184: 0 | AL184: 0 | AM184: 0 | AN184: 0 | AO184: 0 | AP184: 0 | AQ184: 0 | AR184: 0 | AS184: 0 | AT184: 0
B185: TOTAL | G185: =SUM(G175:G184) -> 183987.5 | H185: 173700 | I185: 160675 | J185: 148625 | K185: 137475 | L185: 127162.5 | M185: 117625 | N185: 112300 | O185: 111537.5 | P185: 111537.5 | Q185: 111537.5 | R185: 111537.5 | S185: 111537.5 | T185: 111537.5 | U185: 111537.5 | V185: 55762.5 | W185: 0 | X185: 0 | Y185: 0 | Z185: 0 | AA185: 0 | AB185: 0 | AC185: 0 | AD185: 0 | AE185: 0 | AF185: 0 | AG185: 0 | AH185: 0 | AI185: 0 | AJ185: 0 | AK185: 0 | AL185: 0 | AM185: 0 | AN185: 0 | AO185: 0 | AP185: 0 | AQ185: 0 | AR185: 0 | AS185: 0 | AT185: 0
D187: SERVICE | G187: =G174 -> 0.0375 | H187: 0.07219 | I187: 0.06677 | J187: 0.06177 | K187: 0.05713 | L187: 0.05285 | M187: 0.04888 | N187: 0.04522 | O187: 0.04462 | P187: 0.04461 | Q187: 0.04462 | R187: 0.04461 | S187: 0.04462 | T187: 0.04461 | U187: 0.04462 | V187: 0.04461 | W187: 0.04462 | X187: 0.04461 | Y187: 0.04462 | Z187: 0.04461 | AA187: 0.02231
B188: DEPRECIATION, INVESTMENT IN YR | D188: 1 | G188: =IF(G$172<=16,G187*$G$123,0)+0.5*(IF(H$172<=16,H187*$G$123,0)) -> 0 | H188: =0.5*(IF(H$172<=16,H187*$G$123,0))+0.5*(IF(I$172<=16,I187*$G$123,0)) -> 0 | I188: =0.5*(IF(I$172<=16,I187*$G$123,0))+0.5*(IF(J$172<=16,J187*$G$123,0)) -> 0 | J188: 0 | K188: 0 | L188: 0 | M188: 0 | N188: 0 | O188: 0 | P188: 0 | Q188: 0 | R188: 0 | S188: 0 | T188: 0 | U188: 0 | V188: 0 | W188: 0 | X188: 0 | Y188: 0 | Z188: 0 | AA188: 0 | AB188: 0 | AC188: 0 | AD188: 0 | AE188: 0 | AF188: 0 | AG188: 0 | AH188: 0 | AI188: 0 | AJ188: 0 | AK188: 0 | AL188: 0 | AM188: 0 | AN188: 0 | AO188: 0 | AP188: 0 | AQ188: 0 | AR188: 0 | AS188: 0 | AT188: 0
B189: DEPRECIATION, INVESTMENT IN YR | D189: =D188+1 -> 2 | G189: =0.5*(IF(G$172<=17,F187*$H$123,0))+0.5*(IF(H$172<=17,G187*$H$123,0)) -> 0 | H189: =0.5*(IF(H$172<=17,G187*$H$123,0))+0.5*(IF(I$172<=17,H187*$H$123,0)) -> 0 | I189: =0.5*(IF(I$172<=17,H187*$H$123,0))+0.5*(IF(J$172<=17,I187*$H$123,0)) -> 0 | J189: 0 | K189: 0 | L189: 0 | M189: 0 | N189: 0 | O189: 0 | P189: 0 | Q189: 0 | R189: 0 | S189: 0 | T189: 0 | U189: 0 | V189: 0 | W189: 0 | X189: 0 | Y189: 0 | Z189: 0 | AA189: 0 | AB189: 0 | AC189: 0 | AD189: 0 | AE189: 0 | AF189: 0 | AG189: 0 | AH189: 0 | AI189: 0 | AJ189: 0 | AK189: 0 | AL189: 0 | AM189: 0 | AN189: 0 | AO189: 0 | AP189: 0 | AQ189: 0 | AR189: 0 | AS189: 0 | AT189: 0
B190: DEPRECIATION, INVESTMENT IN YR | D190: 3 | H190: =0.5*(IF(H$172<=18,F187*$I$123,0))+0.5*(IF(I$172<=18,G187*$I$123,0)) -> 0 | I190: =0.5*(IF(I$172<=18,G187*$I$123,0))+0.5*(IF(J$172<=18,H187*$I$123,0)) -> 0 | J190: =0.5*(IF(J$172<=18,H187*$I$123,0))+0.5*(IF(K$172<=18,I187*$I$123,0)) -> 0 | K190: 0 | L190: 0 | M190: 0 | N190: 0 | O190: 0 | P190: 0 | Q190: 0 | R190: 0 | S190: 0 | T190: 0 | U190: 0 | V190: 0 | W190: 0 | X190: 0 | Y190: 0 | Z190: 0 | AA190: 0 | AB190: 0 | AC190: 0 | AD190: 0 | AE190: 0 | AF190: 0 | AG190: 0 | AH190: 0 | AI190: 0 | AJ190: 0 | AK190: 0 | AL190: 0 | AM190: 0 | AN190: 0 | AO190: 0 | AP190: 0 | AQ190: 0 | AR190: 0 | AS190: 0 | AT190: 0
B191: DEPRECIATION, INVESTMENT IN YR | D191: 4 | I191: =0.5*(IF(I$172<=19,F187*$J$123,0))+0.5*(IF(J$172<=19,G187*$J$123,0)) -> 0 | J191: =0.5*(IF(J$172<=19,G187*$J$123,0))+0.5*(IF(K$172<=19,H187*$J$123,0)) -> 0 | K191: 0 | L191: 0 | M191: 0 | N191: 0 | O191: 0 | P191: 0 | Q191: 0 | R191: 0 | S191: 0 | T191: 0 | U191: 0 | V191: 0 | W191: 0 | X191: 0 | Y191: 0 | Z191: 0 | AA191: 0 | AB191: 0 | AC191: 0 | AD191: 0 | AE191: 0 | AF191: 0 | AG191: 0 | AH191: 0 | AI191: 0 | AJ191: 0 | AK191: 0 | AL191: 0 | AM191: 0 | AN191: 0 | AO191: 0 | AP191: 0 | AQ191: 0 | AR191: 0 | AS191: 0 | AT191: 0
B192: DEPRECIATION, INVESTMENT IN YR | D192: 5 | J192: =0.5*(IF(J$172<=20,F187*$K$123,0))+0.5*(IF(K$172<=20,G187*$K$123,0)) -> 0 | K192: 0 | L192: 0 | M192: 0 | N192: 0 | O192: 0 | P192: 0 | Q192: 0 | R192: 0 | S192: 0 | T192: 0 | U192: 0 | V192: 0 | W192: 0 | X192: 0 | Y192: 0 | Z192: 0 | AA192: 0 | AB192: 0 | AC192: 0 | AD192: 0 | AE192: 0 | AF192: 0 | AG192: 0 | AH192: 0 | AI192: 0 | AJ192: 0 | AK192: 0 | AL192: 0 | AM192: 0 | AN192: 0 | AO192: 0 | AP192: 0 | AQ192: 0 | AR192: 0 | AS192: 0 | AT192: 0
B193: DEPRECIATION, INVESTMENT IN YR | D193: 6 | K193: =0.5*(IF(K$172<=21,F187*$L$123,0))+0.5*(IF(L$172<=21,G187*$L$123,0)) -> 0 | L193: =0.5*(IF(L$172<=21,G187*$L$123,0))+0.5*(IF(M$172<=21,H187*$L$123,0)) -> 0 | M193: 0 | N193: 0 | O193: 0 | P193: 0 | Q193: 0 | R193: 0 | S193: 0 | T193: 0 | U193: 0 | V193: 0 | W193: 0 | X193: 0 | Y193: 0 | Z193: 0 | AA193: 0 | AB193: 0 | AC193: 0 | AD193: 0 | AE193: 0 | AF193: 0 | AG193: 0 | AH193: 0 | AI193: 0 | AJ193: 0 | AK193: 0 | AL193: 0 | AM193: 0 | AN193: 0 | AO193: 0 | AP193: 0 | AQ193: 0 | AR193: 0 | AS193: 0 | AT193: 0
B194: DEPRECIATION, INVESTMENT IN YR | D194: 7 | L194: =0.5*(IF(L$172<=22,F187*$M$123,0))+0.5*(IF(M$172<=22,G187*$M$123,0)) -> 0 | M194: 0 | N194: 0 | O194: 0 | P194: 0 | Q194: 0 | R194: 0 | S194: 0 | T194: 0 | U194: 0 | V194: 0 | W194: 0 | X194: 0 | Y194: 0 | Z194: 0 | AA194: 0 | AB194: 0 | AC194: 0 | AD194: 0 | AE194: 0 | AF194: 0 | AG194: 0 | AH194: 0 | AI194: 0 | AJ194: 0 | AK194: 0 | AL194: 0 | AM194: 0 | AN194: 0 | AO194: 0 | AP194: 0 | AQ194: 0 | AR194: 0 | AS194: 0 | AT194: 0
B195: DEPRECIATION, INVESTMENT IN YR | D195: =D194+1 -> 8 | M195: =0.5*(IF(M$172<=23,F187*$N$123,0))+0.5*(IF(N$172<=23,G187*$N$123,0)) -> 0 | N195: =0.5*(IF(N$172<=23,G187*$N$123,0))+0.5*(IF(O$172<=23,H187*$N$123,0)) -> 0 | O195: 0 | P195: 0 | Q195: 0 | R195: 0 | S195: 0 | T195: 0 | U195: 0 | V195: 0 | W195: 0 | X195: 0 | Y195: 0 | Z195: 0 | AA195: 0 | AB195: 0 | AC195: 0 | AD195: 0 | AE195: 0 | AF195: 0 | AG195: 0 | AH195: 0 | AI195: 0 | AJ195: 0 | AK195: 0 | AL195: 0 | AM195: 0 | AN195: 0 | AO195: 0 | AP195: 0 | AQ195: 0 | AR195: 0 | AS195: 0 | AT195: 0
B196: DEPRECIATION, INVESTMENT IN YR | D196: =D195+1 -> 9 | N196: =0.5*(IF(N$172<=24,F187*$O$123,0))+0.5*(IF(O$172<=24,G187*$O$123,0)) -> 0 | O196: =0.5*(IF(O$172<=24,G187*$O$123,0))+0.5*(IF(P$172<=24,H187*$O$123,0)) -> 0 | P196: 0 | Q196: 0 | R196: 0 | S196: 0 | T196: 0 | U196: 0 | V196: 0 | W196: 0 | X196: 0 | Y196: 0 | Z196: 0 | AA196: 0 | AB196: 0 | AC196: 0 | AD196: 0 | AE196: 0 | AF196: 0 | AG196: 0 | AH196: 0 | AI196: 0 | AJ196: 0 | AK196: 0 | AL196: 0 | AM196: 0 | AN196: 0 | AO196: 0 | AP196: 0 | AQ196: 0 | AR196: 0 | AS196: 0 | AT196: 0
B197: DEPRECIATION, INVESTMENT IN YR | D197: =D196+1 -> 10 | O197: =0.5*(IF(O$172<=25,F187*$P$123,0))+0.5*(IF(P$172<=25,G187*$P$123,0)) -> 0 | P197: 0 | Q197: 0 | R197: 0 | S197: 0 | T197: 0 | U197: 0 | V197: 0 | W197: 0 | X197: 0 | Y197: 0 | Z197: 0 | AA197: 0 | AB197: 0 | AC197: 0 | AD197: 0 | AE197: 0 | AF197: 0 | AG197: 0 | AH197: 0 | AI197: 0 | AJ197: 0 | AK197: 0 | AL197: 0 | AM197: 0 | AN197: 0 | AO197: 0 | AP197: 0 | AQ197: 0 | AR197: 0 | AS197: 0 | AT197: 0
B198: TOTAL | G198: =SUM(G188:G197) -> 0 | H198: 0 | I198: 0 | J198: 0 | K198: 0 | L198: 0 | M198: 0 | N198: 0 | O198: 0 | P198: 0 | Q198: 0 | R198: 0 | S198: 0 | T198: 0 | U198: 0 | V198: 0 | W198: 0 | X198: 0 | Y198: 0 | Z198: 0 | AA198: 0 | AB198: 0 | AC198: 0 | AD198: 0 | AE198: 0 | AF198: 0 | AG198: 0 | AH198: 0 | AI198: 0 | AJ198: 0 | AK198: 0 | AL198: 0 | AM198: 0 | AN198: 0 | AO198: 0 | AP198: 0 | AQ198: 0 | AR198: 0 | AS198: 0 | AT198: 0
B202: TOTAL TAX DEPRECIATION | G202: =G185+G198 -> 183987.5 | H202: =H185+H198 -> 173700 | I202: 160675 | J202: 148625 | K202: 137475 | L202: 127162.5 | M202: 117625 | N202: 112300 | O202: 111537.5 | P202: 111537.5 | Q202: =Q185+Q198 -> 111537.5 | R202: 111537.5 | S202: 111537.5 | T202: 111537.5 | U202: 111537.5 | V202: 55762.5 | W202: 0 | X202: 0 | Y202: 0 | Z202: 0 | AA202: 0 | AB202: 0 | AC202: 0 | AD202: =AD185+AD198 -> 0 | AE202: 0 | AF202: 0 | AG202: 0 | AH202: 0 | AI202: 0 | AJ202: 0 | AK202: 0 | AL202: 0 | AM202: 0 | AN202: 0 | AO202: 0 | AP202: 0 | AQ202: 0 | AR202: 0 | AS202: 0 | AT202: 0
B203: DEPRECIATED PLANT VALUE | G203: =SUM(G126)-SUM(F202) -> 2500000 | H203: =SUM($G$126:H126)-SUM($F$202:G202) -> 2316012.5 | I203: =SUM($G$126:I126)-SUM($F$202:H202) -> 2142312.5 | J203: =SUM($G$126:J126)-SUM($F$202:I202) -> 1981637.5 | K203: =SUM($G$126:K126)-SUM($F$202:J202) -> 1833012.5 | L203: =SUM($G$126:L126)-SUM($F$202:K202) -> 1695537.5 | M203: =SUM($G$126:M126)-SUM($F$202:L202) -> 1568375 | N203: =SUM($G$126:N126)-SUM($F$202:M202) -> 1450750 | O203: =SUM($G$126:O126)-SUM($F$202:N202) -> 1338450 | P203: =SUM($G$126:P126)-SUM($F$202:O202) -> 1226912.5 | Q203: =SUM($G$126:Q126)-SUM($F$202:P202) -> 1115375 | R203: =SUM($G$126:R126)-SUM($F$202:Q202) -> 1003837.5 | S203: =SUM($G$126:S126)-SUM($F$202:R202) -> 892300 | T203: =SUM($G$126:T126)-SUM($F$202:S202) -> 780762.5 | U203: =SUM($G$126:U126)-SUM($F$202:T202) -> 669225 | V203: =SUM($G$126:V126)-SUM($F$202:U202) -> 557687.5 | W203: =SUM($G$126:W126)-SUM($F$202:V202) -> 501925 | X203: =SUM($G$126:X126)-SUM($F$202:W202) -> 501925 | Y203: =SUM($G$126:Y126)-SUM($F$202:X202) -> 501925 | Z203: =SUM($G$126:Z126)-SUM($F$202:Y202) -> 501925 | AA203: =((SUM($G$126:AA126)-SUM($F$202:Z202))) -> 501925 | AB203: =((SUM($G$126:AB126)-SUM($F$202:AA202))) -> 501925 | AC203: =((SUM($G$126:AC126)-SUM($F$202:AB202))) -> 501925 | AD203: =((SUM($G$126:AD126)-SUM($F$202:AC202))) -> 501925 | AE203: =((SUM($G$126:AE126)-SUM($F$202:AD202))) -> 501925 | AF203: =((SUM($G$126:AF126)-SUM($F$202:AE202))) -> 501925 | AG203: =((SUM($G$126:AG126)-SUM($F$202:AF202))) -> 501925 | AH203: =((SUM($G$126:AH126)-SUM($F$202:AG202))) -> 501925 | AI203: =((SUM($G$126:AI126)-SUM($F$202:AH202))) -> 501925 | AJ203: =((SUM($G$126:AJ126)-SUM($F$202:AI202))) -> 501925 | AK203: =((SUM($G$126:AK126)-SUM($F$202:AJ202))) -> 501925 | AL203: =((SUM($G$126:AL126)-SUM($F$202:AK202))) -> 501925 | AM203: =((SUM($G$126:AM126)-SUM($F$202:AL202))) -> 501925 | AN203: =((SUM($G$126:AN126)-SUM($F$202:AM202))) -> 501925 | AO203: =((SUM($G$126:AO126)-SUM($F$202:AN202))) -> 501925 | AP203: =((SUM($G$126:AP126)-SUM($F$202:AO202))) -> 501925 | AQ203: =((SUM($G$126:AQ126)-SUM($F$202:AP202))) -> 501925 | AR203: =((SUM($G$126:AR126)-SUM($F$202:AQ202))) -> 501925 | AS203: =((SUM($G$126:AS126)-SUM($F$202:AR202))) -> 501925 | AT203: =((SUM($G$126:AT126)-SUM($F$202:AS202))) -> 501925
A205: CASH FLOW ANALYSIS | E205: YEAR: | F205: 0 | G205: 1 | H205: 2 | I205: 3 | J205: 4 | K205: 5 | L205: =K205+1 -> 6 | M205: 7 | N205: 8 | O205: 9 | P205: 10 | Q205: =P205+1 -> 11 | R205: 12 | S205: 13 | T205: 14 | U205: 15 | V205: 16 | W205: 17 | X205: 18 | Y205: 19 | Z205: 20 | AA205: 21 | AB205: 22 | AC205: 23 | AD205: =AC205+1 -> 24 | AE205: 25 | AF205: 26 | AG205: 27 | AH205: 28 | AI205: 29 | AJ205: 30 | AK205: 31 | AL205: 32 | AM205: 33 | AN205: 34 | AO205: 35 | AP205: 36 | AQ205: 37 | AR205: 38 | AS205: 39 | AT205: 40
A206: + + | B206: REVENUE AT AVG $/MCF OF: | G206: =G272 -> 189767.1603 | H206: 379534.3206 | I206: 542191.8865 | J206: 542191.8865 | K206: 542191.8865 | L206: 542191.8865 | M206: 542191.8865 | N206: 542191.8865 | O206: 542191.8865 | P206: 542191.8865 | Q206: 542191.8865 | R206: 542191.8865 | S206: 542191.8865 | T206: 542191.8865 | U206: 542191.8865 | V206: 0 | W206: 0 | X206: 0 | Y206: 0 | Z206: 0 | AA206: 0 | AB206: 0 | AC206: 0 | AD206: =AD272 -> 0 | AE206: 0 | AF206: 0 | AG206: 0 | AH206: 0 | AI206: 0 | AJ206: 0 | AK206: 0 | AL206: 0 | AM206: 0 | AN206: 0 | AO206: 0 | AP206: 0 | AQ206: 0 | AR206: 0 | AS206: 0 | AT206: 0
A207: - - | B207: COST OF GAS | G207: =G284/(1+$C$211) -> 0 | H207: 0 | I207: 0 | J207: 0 | K207: 0 | L207: 0 | M207: 0 | N207: 0 | O207: 0 | P207: 0 | Q207: 0 | R207: 0 | S207: 0 | T207: 0 | U207: 0 | V207: 0 | W207: 0 | X207: 0 | Y207: 0 | Z207: 0 | AA207: 0 | AB207: 0 | AC207: 0 | AD207: =AD284/(1+$C$211) -> 0 | AE207: 0 | AF207: 0 | AG207: 0 | AH207: 0 | AI207: 0 | AJ207: 0 | AK207: 0 | AL207: 0 | AM207: 0 | AN207: 0 | AO207: 0 | AP207: 0 | AQ207: 0 | AR207: 0 | AS207: 0 | AT207: 0
A208: - - | B208: INCREMENTAL BILLING (CNG O&M) | G208: =G296 -> 150000 | H208: 153750 | I208: 157593.75 | J208: 161533.5938 | K208: 165571.9336 | L208: 169711.2319 | M208: 173954.0127 | N208: 178302.8631 | O208: 182760.4346 | P208: 187329.4455 | Q208: 0 | R208: 0 | S208: 0 | T208: 0 | U208: 0 | V208: 0 | W208: 0 | X208: 0 | Y208: 0 | Z208: 0 | AA208: 0 | AB208: 0 | AC208: 0 | AD208: =AD296 -> 0 | AE208: 0 | AF208: 0 | AG208: 0 | AH208: 0 | AI208: 0 | AJ208: 0 | AK208: 0 | AL208: 0 | AM208: 0 | AN208: 0 | AO208: 0 | AP208: 0 | AQ208: 0 | AR208: 0 | AS208: 0 | AT208: 0
A209: - - | B209: OTHER O&M (PROPANE CONVERSION COST) | G209: =IF($C$25=G$120,$C$30,0)+IF($D$25=G$120,$D$30,0)+IF($E$25=G$120,$E$30,0)+IF($F$25=G$120,$F$30,0)+IF($G$25=G$120,$G$30,0)+IF($H$25=G$120,$H$30,0)+IF($I$25=G$120,$I$30,0) -> 0 | H209: 0 | I209: 0 | J209: 0 | K209: 0 | L209: 0 | M209: 0 | N209: 0 | O209: 0 | P209: 0 | Q209: =IF($C$25=Q$120,$C$30,0)+IF($D$25=Q$120,$D$30,0)+IF($E$25=Q$120,$E$30,0)+IF($F$25=Q$120,$F$30,0)+IF($G$25=Q$120,$G$30,0)+IF($H$25=Q$120,$H$30,0)+IF($I$25=Q$120,$I$30,0) -> 0 | R209: 0 | S209: 0 | T209: 0 | U209: 0 | V209: 0 | W209: 0 | X209: 0 | Y209: 0 | Z209: 0 | AA209: 0 | AB209: 0 | AC209: 0 | AD209: 0 | AE209: 0 | AF209: 0 | AG209: 0 | AH209: 0 | AI209: 0 | AJ209: 0 | AK209: 0 | AL209: 0 | AM209: 0 | AN209: 0 | AO209: 0 | AP209: 0 | AQ209: 0 | AR209: 0 | AS209: 0 | AT209: 0
A210: - - | B210: PROPERTY TAXES | C210: 0.006548388226 | G210: =IF(G205<=$D$116,+G130*$C$210,0) -> 16370.97056 | H210: =IF(H205<=$D$116,+H130*$C$210,0) -> 15279.57253 | I210: 14188.17449 | J210: 13096.77645 | K210: 12005.37841 | L210: 10913.98038 | M210: 9822.582339 | N210: 8731.184301 | O210: 7639.786264 | P210: 6548.388226 | Q210: 5456.990188 | R210: 4365.592151 | S210: 3274.194113 | T210: 2182.796075 | U210: 1091.398038 | V210: 0 | W210: 0 | X210: 0 | Y210: 0 | Z210: 0 | AA210: 0 | AB210: 0 | AC210: 0 | AD210: 0 | AE210: 0 | AF210: 0 | AG210: 0 | AH210: 0 | AI210: 0 | AJ210: 0 | AK210: 0 | AL210: 0 | AM210: 0 | AN210: 0 | AO210: 0 | AP210: 0 | AQ210: 0 | AR210: 0 | AS210: 0 | AT210: 0
A211: - - | B211: REVENUE TAXES | C211: 0.046135 | G211: =$C$211*(G206/(1+$C$211)) -> 8368.812763 | H211: =$C$211*(H206/(1+$C$211)) -> 16737.62553 | I211: 23910.89361 | J211: 23910.89361 | K211: 23910.89361 | L211: 23910.89361 | M211: 23910.89361 | N211: 23910.89361 | O211: 23910.89361 | P211: 23910.89361 | Q211: 23910.89361 | R211: 23910.89361 | S211: 23910.89361 | T211: 23910.89361 | U211: 23910.89361 | V211: 0 | W211: 0 | X211: 0 | Y211: 0 | Z211: 0 | AA211: 0 | AB211: 0 | AC211: 0 | AD211: =$C$211*(AD206/(1+$C$211)) -> 0 | AE211: 0 | AF211: 0 | AG211: 0 | AH211: 0 | AI211: 0 | AJ211: 0 | AK211: 0 | AL211: 0 | AM211: 0 | AN211: 0 | AO211: 0 | AP211: 0 | AQ211: 0 | AR211: 0 | AS211: 0 | AT211: 0
A212: - | B212: INTEREST ON PSE BONDS | G212: =G151 -> 74017.66667 | H212: 68913 | I212: 63808.33333 | J212: 58703.66667 | K212: 53599 | L212: 48494.33333 | M212: 43389.66667 | N212: 38285 | O212: 33180.33333 | P212: 28075.66667 | Q212: 22971 | R212: 17866.33333 | S212: 12761.66667 | T212: 7657 | U212: 2552.333333 | V212: 0 | W212: 0 | X212: 0 | Y212: 0 | Z212: 0 | AA212: 0 | AB212: 0 | AC212: 0 | AD212: =AD151 -> 0 | AE212: 0 | AF212: 0 | AG212: 0 | AH212: 0 | AI212: 0 | AJ212: 0 | AK212: 0 | AL212: 0 | AM212: 0 | AN212: 0 | AO212: 0 | AP212: 0 | AQ212: 0 | AR212: 0 | AS212: 0 | AT212: 0
A213: - | B213: TAX DEPRECIATION | G213: =IF(G205<$D$116,+G185,0)+IF(G205<=$I$9,+G198,IF(G205=$I$9+1,SUM(G198:AA198),0)) -> 183987.5 | H213: 173700 | I213: 160675 | J213: 148625 | K213: 137475 | L213: 127162.5 | M213: 117625 | N213: 112300 | O213: 111537.5 | P213: 111537.5 | Q213: 111537.5 | R213: 111537.5 | S213: 111537.5 | T213: 111537.5 | U213: 111537.5 | V213: 55762.5 | W213: 0 | X213: 0 | Y213: 0 | Z213: 0 | AA213: 0 | AB213: 0 | AC213: 0 | AD213: 0 | AE213: 0 | AF213: 0 | AG213: 0 | AH213: 0 | AI213: 0 | AJ213: 0 | AK213: 0 | AL213: 0 | AM213: 0 | AN213: 0 | AO213: 0 | AP213: 0 | AQ213: 0 | AR213: 0 | AS213: 0 | AT213: 0
A214: = | B214: TAXABLE INCOME | G214: =IF(G205<=$D$116,+G206-SUM(G207:G213),0) -> -242977.7897 | H214: =IF(H205<=$D$116,+H206-SUM(H207:H213),0) -> -48845.87749 | I214: =IF(I205<=$D$116,+I206-SUM(I207:I213),0) -> 122015.7351 | J214: 136321.956 | K214: 149629.6809 | L214: 161998.9473 | M214: 173489.7312 | N214: 180661.9456 | O214: 183162.9387 | P214: 184789.9925 | Q214: 378315.5027 | R214: 384511.5674 | S214: 390707.6321 | T214: 396903.6968 | U214: 403099.7615 | V214: -55762.5 | W214: 0 | X214: 0 | Y214: 0 | Z214: 0 | AA214: 0 | AB214: 0 | AC214: 0 | AD214: 0 | AE214: 0 | AF214: 0 | AG214: 0 | AH214: 0 | AI214: 0 | AJ214: 0 | AK214: 0 | AL214: 0 | AM214: 0 | AN214: 0 | AO214: 0 | AP214: 0 | AQ214: 0 | AR214: 0 | AS214: 0 | AT214: 0
A215: - | B215: FIT | C215: 0.35 | D215: 0.2188 | G215: =IF(G205<=$D$116,$C$215*G214,0) -> -85042.2264 | H215: =IF(H205<=$D$116,$C$215*H214,0) -> -17096.05712 | I215: =IF(I205<=$D$116,$C$215*I214,0) -> 42705.50728 | J215: 47712.68462 | K215: 52370.38832 | L215: 56699.63155 | M215: 60721.40591 | N215: 63231.68095 | O215: 64107.02854 | P215: 64676.49739 | Q215: 132410.426 | R215: 134579.0486 | S215: 136747.6712 | T215: 138916.2939 | U215: 141084.9165 | V215: -19516.875 | W215: 0 | X215: 0 | Y215: 0 | Z215: 0 | AA215: 0 | AB215: 0 | AC215: 0 | AD215: =IF(AD205<=$D$116,$C$215*AD214,0) -> 0 | AE215: 0 | AF215: 0 | AG215: 0 | AH215: 0 | AI215: 0 | AJ215: 0 | AK215: 0 | AL215: 0 | AM215: 0 | AN215: 0 | AO215: 0 | AP215: 0 | AQ215: 0 | AR215: 0 | AS215: 0 | AT215: 0
B216: NET INCOME | G216: =IF(G205<=$D$116,+G214-G215,0) -> -157935.5633 | H216: -31749.82037 | I216: 79310.22781 | J216: 88609.27143 | K216: 97259.29259 | L216: 105299.3157 | M216: 112768.3253 | N216: 117430.2646 | O216: 119055.9102 | P216: 120113.4951 | Q216: 245905.0768 | R216: 249932.5188 | S216: 253959.9609 | T216: 257987.4029 | U216: 262014.845 | V216: -36245.625 | W216: 0 | X216: 0 | Y216: 0 | Z216: 0 | AA216: 0 | AB216: 0 | AC216: 0 | AD216: 0 | AE216: 0 | AF216: 0 | AG216: 0 | AH216: 0 | AI216: 0 | AJ216: 0 | AK216: 0 | AL216: 0 | AM216: 0 | AN216: 0 | AO216: 0 | AP216: 0 | AQ216: 0 | AR216: 0 | AS216: 0 | AT216: 0
A218: = | B218: OPERATING INCOME | F218: =SUM(F225:AT225) -> -2500000 | G218: =IF(G205<=$D$116,+G206-G207-G208-G209-G210-G211-G215-G126*0,0) -> 100069.6034 | H218: =IF(H205<=$D$116,+H206-H207-H208-H209-H210-H211-H215-H126*0,0) -> 210863.1796 | I218: =IF(I205<=$D$116,+I206-I207-I208-I209-I210-I211-I215-I126*0,0) -> 303793.5611 | J218: =IF(J205<=$D$116,+J206-J207-J208-J209-J210-J211-J215-J126*0,0) -> 295937.9381 | K218: 288333.2926 | L218: 280956.1491 | M218: 273782.9919 | N218: 268015.2646 | O218: 263773.7435 | P218: 259726.6618 | Q218: 380413.5768 | R218: 379336.3522 | S218: 378259.1276 | T218: 377181.9029 | U218: 376104.6783 | V218: 19516.875 | W218: 0 | X218: 0 | Y218: 0 | Z218: 0 | AA218: 0 | AB218: 0 | AC218: 0 | AD218: 0 | AE218: 0 | AF218: 0 | AG218: 0 | AH218: 0 | AI218: 0 | AJ218: 0 | AK218: 0 | AL218: 0 | AM218: 0 | AN218: 0 | AO218: 0 | AP218: 0 | AQ218: 0 | AR218: 0 | AS218: 0 | AT218: 0
B219: ADJUSTED OPERATING INCOME - @MID YEAR ASSUMPTION (USED AS IRR SERIES) | F219: =F218+0.5*G218 -> -2449965.198 | G219: =G218*0.5+H218*0.5 -> 155466.3915 | H219: =H218*0.5+I218*0.5 -> 257328.3704 | I219: 299865.7496 | J219: 292135.6153 | K219: 284644.7208 | L219: 277369.5705 | M219: 270899.1283 | N219: 265894.5041 | O219: 261750.2026 | P219: =P218*0.5+Q218*0.5 -> 320070.1193 | Q219: 379874.9645 | R219: 378797.7399 | S219: 377720.5153 | T219: 376643.2906 | U219: 197810.7767 | V219: 9758.4375 | W219: 0 | X219: 0 | Y219: 0 | Z219: 0 | AA219: 0 | AB219: 0 | AC219: =AC218*0.5+AD218*0.5 -> 0 | AD219: =AD218*0.5+AE218*0.5 -> 0 | AE219: 0 | AF219: 0 | AG219: 0 | AH219: 0 | AI219: 0 | AJ219: 0 | AK219: 0 | AL219: 0 | AM219: 0 | AN219: 0 | AO219: 0 | AP219: 0 | AQ219: 0 | AR219: 0 | AS219: 0 | AT219: 0
B221: PW FACTORS @ TARGET ROR | D221: =$I$13 -> 0.0777 | F221: =1/(1+$D221)^F$205 -> 1 | G221: =1/(1+$D221)^G$205 -> 0.9279020135 | H221: 0.8610021467 | I221: 0.7989256256 | J221: 0.7413246967 | K221: 0.6878766788 | L221: 0.6382821553 | M221: 0.5922632971 | N221: 0.5495623059 | O221: 0.5099399702 | P221: 0.4731743252 | Q221: 0.4390594091 | R221: 0.4074041098 | S221: 0.3780310938 | T221: 0.3507758131 | U221: 0.3254855833 | V221: 0.3020187281 | W221: 0.2802437859 | X221: 0.2600387733 | Y221: 0.2412905013 | Z221: 0.223893942 | AA221: 0.2077516396 | AB221: 0.1927731647 | AC221: 0.1788746077 | AD221: 0.1659781087 | AE221: 0.1540114212 | AF221: 0.1429075079 | AG221: 0.1326041643 | AH221: 0.1230436711 | AI221: 0.1141724701 | AJ221: 0.1059408649 | AK221: 0.09830274188 | AL221: 0.09121531213 | AM221: 0.08463887179 | AN221: 0.07853657956 | AO221: 0.07287425031 | AP221: 0.0676201636 | AQ221: 0.06274488596 | AR221: 0.05822110602 | AS221: 0.05402348151 | AT221: 0.05012849727
B222: ="PW OF CASH FLOWS @ "&TEXT($D$221,"#.#0%") -> PW OF CASH FLOWS @ 7.77% | D222: =SUM($F$222:$AT$222) -> 2449641.885 | G222: =G221*(G219) -> 144257.5777 | H222: =H221*(H219) -> 221560.2793 | I222: 239570.4316 | J222: 216567.3464 | K222: 195800.4652 | L222: 177040.0473 | M222: 160443.6109 | N222: 146125.5968 | O222: 133476.8906 | P222: 151448.9627 | Q222: =Q221*(Q219) -> 166787.6774 | R222: 154323.756 | S222: 142790.0995 | T222: 132117.3565 | U222: 64384.55602 | V222: 2947.230882 | W222: 0 | X222: 0 | Y222: 0 | Z222: 0 | AA222: 0 | AB222: 0 | AC222: 0 | AD222: =AD221*(AD219) -> 0 | AE222: 0 | AF222: 0 | AG222: 0 | AH222: 0 | AI222: 0 | AJ222: 0 | AK222: 0 | AL222: 0 | AM222: 0 | AN222: 0 | AO222: 0 | AP222: 0 | AQ222: 0 | AR222: 0 | AS222: 0 | AT222: 0
B223: ="CUMULATIVE PW CASH FLOWS @ "&TEXT($D$221,"#.#0%") -> CUMULATIVE PW CASH FLOWS @ 7.77% | G223: =SUM(G222) -> 144257.5777 | H223: =SUM($G$222:H222) -> 365817.857 | I223: =SUM($G$222:I222) -> 605388.2887 | J223: =SUM($G$222:J222) -> 821955.6351 | K223: =SUM($G$222:K222) -> 1017756.1 | L223: =SUM($G$222:L222) -> 1194796.148 | M223: =SUM($G$222:M222) -> 1355239.758 | N223: =SUM($G$222:N222) -> 1501365.355 | O223: =SUM($G$222:O222) -> 1634842.246 | P223: =SUM($G$222:P222) -> 1786291.208 | Q223: =SUM($G$222:Q222) -> 1953078.886 | R223: =SUM($G$222:R222) -> 2107402.642 | S223: =SUM($G$222:S222) -> 2250192.741 | T223: =SUM($G$222:T222) -> 2382310.098 | U223: =SUM($G$222:U222) -> 2446694.654 | V223: =SUM($G$222:V222) -> 2449641.885 | W223: =SUM($G$222:W222) -> 2449641.885 | X223: =SUM($G$222:X222) -> 2449641.885 | Y223: =SUM($G$222:Y222) -> 2449641.885 | Z223: =SUM($G$222:Z222) -> 2449641.885 | AA223: =SUM($G$222:AA222) -> 2449641.885 | AB223: =SUM($G$222:AB222) -> 2449641.885 | AC223: =SUM($G$222:AC222) -> 2449641.885 | AD223: =SUM($G$222:AD222) -> 2449641.885 | AE223: =SUM($G$222:AE222) -> 2449641.885 | AF223: =SUM($G$222:AF222) -> 2449641.885 | AG223: =SUM($G$222:AG222) -> 2449641.885 | AH223: =SUM($G$222:AH222) -> 2449641.885 | AI223: =SUM($G$222:AI222) -> 2449641.885 | AJ223: =SUM($G$222:AJ222) -> 2449641.885 | AK223: =SUM($G$222:AK222) -> 2449641.885 | AL223: =SUM($G$222:AL222) -> 2449641.885 | AM223: =SUM($G$222:AM222) -> 2449641.885 | AN223: =SUM($G$222:AN222) -> 2449641.885 | AO223: =SUM($G$222:AO222) -> 2449641.885 | AP223: =SUM($G$222:AP222) -> 2449641.885 | AQ223: =SUM($G$222:AQ222) -> 2449641.885 | AR223: =SUM($G$222:AR222) -> 2449641.885 | AS223: =SUM($G$222:AS222) -> 2449641.885 | AT223: =SUM($G$222:AT222) -> 2449641.885
B225: ="PW CAP INVESTMENTS @ "&FIXED(I13*100,2,TRUE)&"%" -> PW CAP INVESTMENTS @ 7.77% | F225: =F221*G126*-1 -> -2500000 | G225: =G221*H126*-1 -> 0 | H225: 0 | I225: 0 | J225: 0 | K225: 0 | L225: 0 | M225: =M221*N126*-1 -> 0 | N225: =N221*O126*-1 -> 0 | O225: =O221*P126*-1 -> 0
B227: INTERNAL RATE OF RETURN | D227: =IRR(F219:AT219,-0.1) -> 0.07768023467
B228: ="NET PRESENT VALUE @ "&FIXED(I13*100,2,TRUE)&"%" -> NET PRESENT VALUE @ 7.77% | D228: =NPV(D221,F219:AT219) -> -300.0032126
B231: PW FACTORS @ IRR | D231: =$D$227 -> 0.07768023467 | F231: =1/(1+$D$227)^F205 -> 1 | G231: =1/(1+$D$227)^G205 -> 0.9279190319 | H231: 0.8610337297 | I231: 0.7989695848 | J231: 0.7413790836 | K231: 0.6879397615 | L231: 0.6383523975 | M231: 0.5923393387 | N231: 0.5496429456 | O231: 0.51002415 | P231: 0.4732611155 | Q231: 0.4391479961 | R231: 0.4074937834 | S231: 0.378121237 | T231: 0.3508658921 | U231: 0.3255751389 | V231: 0.3021073677 | W231: 0.2803311762 | X231: 0.2601246336 | Y231: 0.2413745981 | Z231: 0.2239760834 | AA231: 0.2078316705 | AB231: 0.1928509625 | AC231: 0.1789500784 | AD231: =1/(1+$D$227)^AD205 -> 0.1660511835 | AE231: 0.1540820534 | AF231: 0.1429756698 | AG231: 0.1326698451 | AH231: 0.1231068742 | AI231: 0.1142332116 | AJ231: 0.1059991711 | AK231: 0.09835864821 | AL231: 0.09126886162 | AM231: 0.08469011371 | AN231: 0.07858556832 | AO231: 0.07292104448 | AP231: 0.06766482499 | AQ231: 0.0627874789 | AR231: 0.05826169663 | AS231: 0.05406213713 | AT231: 0.05016528595
B232: ="PW OF CASH FLOWS @ "&FIXED(D$227*100,2,TRUE)&"%" -> PW OF CASH FLOWS @ 7.77% | D232: =SUM($G$232:$AT$232) -> 2449965.198 | G232: =G219*G231 -> 144260.2235 | H232: 221568.4065 | I232: 239583.6135 | J232: 216583.2348 | K232: 195818.4214 | L232: 177059.5303 | M232: 160464.2105 | N232: 146147.0384 | O232: 133498.9246 | P232: 151476.7417 | Q232: 166821.3294 | R232: 154357.7241 | S232: 142824.1484 | T232: 132151.2842 | U232: 64402.27109 | V232: 2948.095866 | W232: 0 | X232: 0 | Y232: 0 | Z232: 0 | AA232: 0 | AB232: 0 | AC232: 0 | AD232: =AD219*AD231 -> 0 | AE232: 0 | AF232: 0 | AG232: 0 | AH232: 0 | AI232: 0 | AJ232: 0 | AK232: 0 | AL232: 0 | AM232: 0 | AN232: 0 | AO232: 0 | AP232: 0 | AQ232: 0 | AR232: 0 | AS232: 0 | AT232: 0
B233: ="CUMMULATIVE PW CASH FLOWS @ "&FIXED(D$227*100,2,TRUE)&"%" -> CUMMULATIVE PW CASH FLOWS @ 7.77% | G233: =SUM(G232) -> 144260.2235 | H233: =SUM($G$232:H232) -> 365828.63 | I233: =SUM($G$232:I232) -> 605412.2435 | J233: =SUM($G$232:J232) -> 821995.4783 | K233: =SUM($G$232:K232) -> 1017813.9 | L233: =SUM($G$232:L232) -> 1194873.43 | M233: =SUM($G$232:M232) -> 1355337.64 | N233: =SUM($G$232:N232) -> 1501484.679 | O233: =SUM($G$232:O232) -> 1634983.603 | P233: =SUM($G$232:P232) -> 1786460.345 | Q233: =SUM($G$232:Q232) -> 1953281.675 | R233: =SUM($G$232:R232) -> 2107639.399 | S233: =SUM($G$232:S232) -> 2250463.547 | T233: =SUM($G$232:T232) -> 2382614.831 | U233: =SUM($G$232:U232) -> 2447017.102 | V233: =SUM($G$232:V232) -> 2449965.198 | W233: =SUM($G$232:W232) -> 2449965.198 | X233: =SUM($G$232:X232) -> 2449965.198 | Y233: =SUM($G$232:Y232) -> 2449965.198 | Z233: =SUM($G$232:Z232) -> 2449965.198 | AA233: =SUM($G$232:AA232) -> 2449965.198 | AB233: =SUM($G$232:AB232) -> 2449965.198 | AC233: =SUM($G$232:AC232) -> 2449965.198 | AD233: =SUM($G$232:AD232) -> 2449965.198 | AE233: =SUM($G$232:AE232) -> 2449965.198 | AF233: =SUM($G$232:AF232) -> 2449965.198 | AG233: =SUM($G$232:AG232) -> 2449965.198 | AH233: =SUM($G$232:AH232) -> 2449965.198 | AI233: =SUM($G$232:AI232) -> 2449965.198 | AJ233: =SUM($G$232:AJ232) -> 2449965.198 | AK233: =SUM($G$232:AK232) -> 2449965.198 | AL233: =SUM($G$232:AL232) -> 2449965.198 | AM233: =SUM($G$232:AM232) -> 2449965.198 | AN233: =SUM($G$232:AN232) -> 2449965.198 | AO233: =SUM($G$232:AO232) -> 2449965.198 | AP233: =SUM($G$232:AP232) -> 2449965.198 | AQ233: =SUM($G$232:AQ232) -> 2449965.198 | AR233: =SUM($G$232:AR232) -> 2449965.198 | AS233: =SUM($G$232:AS232) -> 2449965.198 | AT233: =SUM($G$232:AT232) -> 2449965.198
... 54 more rows

Sheet CompressionService
A1: Version 02 | B1: Schedule 54 CNG Pricing Model - Calculation of CNG Contracted Volume Compression Charge and Incremental O&M Charge Please enter inputs in the cells in Bold Green Font and click "CALCULATE" when done. | Z1: Print Row
A2: =+FIA!E9 -> EXPECTED YEARS OF REVENUE: (Years) | B2: 15 | Z2: Y
C3: =IF(AND(C$4<=$B$2,OR(C$8<=0)),"Check Rate/Usage Info.","") ->  | Z3: Y
A4: REVENUE YEAR | B4: 1 | C4: 2 | D4: 3 | E4: 4 | F4: 5 | G4: 6 | H4: 7 | I4: 8 | J4: 9 | K4: 10 | L4: 11 | M4: 12 | N4: 13 | O4: 14 | P4: 15 | Z4: Y
A5: COMPRESSION STATION CAPITAL COST (As detailed in Exhibits B and D of Schdule 54 Service Agreement) | B5: 2500000 | C5: 0 | D5: 0 | E5: 0 | F5: 0 | G5: 0 | H5: 0 | I5: 0 | J5: 0 | K5: 0 | L5: 0 | M5: 0 | N5: 0 | O5: 0 | P5: 0 | Z5: Y
A6: ANNUAL STATION O&M COST (As detailed in Exhibits B and D of Schdule 54 Service Agreement) | B6: 150000 | C6: =+B6*1.025 -> 153750 | D6: =+C6*1.025 -> 157593.75 | E6: 161533.5938 | F6: 165571.9336 | G6: 169711.2319 | H6: 173954.0127 | I6: 178302.8631 | J6: 182760.4346 | K6: 187329.4455 | L6: 0 | M6: 0 | N6: 0 | O6: 0 | P6: 0 | Z6: Y
A7: TOTAL NO. OF VEHICLES | B7: =IF(B4<=$B$2,SUMIF($C$25:$C$126,"<="&B4,$B$25:$B$126),"") -> 7 | C7: =IF(C4<=$B$2,SUMIF($C$25:$C$126,"<="&C4,$B$25:$B$126),"") -> 14 | D7: 20 | E7: 20 | F7: 20 | G7: 20 | H7: 20 | I7: 20 | J7: 20 | K7: 20 | L7: =IF(L4<=$B$2,+SUMIFS($B$25:$B$126,$C$25:$C$126,"<="&L4),"") -> 20 | M7: =IF(M4<=$B$2,+SUMIFS($B$25:$B$126,$C$25:$C$126,"<="&M4),"") -> 20 | N7: =IF(N4<=$B$2,+SUMIFS($B$25:$B$126,$C$25:$C$126,"<="&N4),"") -> 20 | O7: =IF(O4<=$B$2,+SUMIFS($B$25:$B$126,$C$25:$C$126,"<="&O4),"") -> 20 | P7: =IF(P4<=$B$2,+SUMIFS($B$25:$B$126,$C$25:$C$126,"<="&P4),"") -> 20 | Z7: Y
A8: ANNUAL FLEET USAGE (THERMS) | B8: =IF(B4<=$B$2,SUMIF($C$25:$C$126,"<="&B4,$H$25:$H$126),"") -> 182695.0355 | C8: 365390.0709 | D8: 521985.8156 | E8: 521985.8156 | F8: 521985.8156 | G8: 521985.8156 | H8: 521985.8156 | I8: 521985.8156 | J8: 521985.8156 | K8: 521985.8156 | L8: =IF(L4<=$B$2,SUMIFS($H$25:$H$126,$C$25:$C$126,"<="&L4),"") -> 521985.8156 | M8: =IF(M4<=$B$2,SUMIFS($H$25:$H$126,$C$25:$C$126,"<="&M4),"") -> 521985.8156 | N8: =IF(N4<=$B$2,SUMIFS($H$25:$H$126,$C$25:$C$126,"<="&N4),"") -> 521985.8156 | O8: =IF(O4<=$B$2,SUMIFS($H$25:$H$126,$C$25:$C$126,"<="&O4),"") -> 521985.8156 | P8: =IF(P4<=$B$2,SUMIFS($H$25:$H$126,$C$25:$C$126,"<="&P4),"") -> 521985.8156 | Z8: Y
Z9: Y
A10: =FIA!H13 -> TARGET ROR | B10: =+FIA!I13 -> 0.0777 | D10: ROR W/ CNG CHARGE | Z10: Y
A11: PROJECT ROR BEFORE COMPRESSION CHARGE | B11: -0.2122212281 | E11: =+IF(AND($D$13<>0,$D$13<>FIA!$C$271),"Please recalculate!","") ->  | Z11: Y
A12: =UPPER(+FIA!B270) -> CNG FIXED CHARGE | B12: 488445.46 | D12: 0.07769956567 | Z12: Y
A13: =UPPER(+FIA!B272) -> CNG VOLUMETRIC CHARGE | B13: 1.03871 | D13: 0.07768023467 | Z13: Y
Z14: Y
A15: CONTRACTED VOLUME COMPRESSION CHARGE - CUSTOMER PAYMENT OPTION | Z15: Y
A16: ="FIXED MONTHLY PAYMENT FOR "&B2&" YEARS" -> FIXED MONTHLY PAYMENT FOR 15 YEARS | B16: PER MONTH: | C16: =+B12/12 -> 40703.78833 | D16: OR | E16: PER THERM UP TO MONTHLY CONTRACTED VOLUME: | G16: =+B13 -> 1.03871 | I16: CONTRACTED VOLUME COMPRESSION CHARGE IS AN ADDITION TO OTHER CNG CHARGES AND THE NATURAL GAS DISTRIBUTION / TRANSPORTATION AND APPLICABLE COMMODITY CHARGES. | Z16: Y
Z17: Y
Z18: Y
A19: INCREMENTAL O&M CHARGE | Z19: Y
A20: UNIT PRICE PER THERM | B20: 0.2 | C20: WITH SALES AND REVENUE TAXES | E20: PER THERM FOR THERMS EXCEEDING THE MONTHLY CONTRACTED VOLUME | G20: =ROUND(+B20*(1+N38)*(1+N39),5) -> 0.2291 | I20: INCREMENTAL O&M CHARGE IS AN ADDITION TO OTHER CNG SERVICE CHARGES AND THE NATURAL GAS SERVICE CHARGES. | Z20: Y
Z21: Y
Z22: Y
A23: FLEET INFORMATION (As detailed in Exhibit A of Schdule 54 Service Agreement) | G23: Therms/DGE: | H23: =+M25 -> 1.38 | Z23: Y
A24: Vehicle Type e.g. Delivery Truck - Class 7 | B24: No. of Vehicles | C24: CNG Fueling Start Year | D24: Vehicle CNG Mileage (mi/DGE) | E24: Estimated Miles per Year | F24: Annual CNG Use/Vehicle (DGE) | G24: Total Annual CNG Use (DGE) | H24: Total Annual CNG Use (therms) | J24: Fuel Energy Content | Z24: Y
A25: Delivery Truck - Class 7 | B25: 7 | C25: 1 | D25: 4.23 | E25: 80000 | F25: =IF(ISNUMBER(D25),E25/D25,0) -> 18912.52955 | G25: =B25*F25 -> 132387.7069 | H25: =G25*$H$23 -> 182695.0355 | J25: Therms per DGE: | M25: 1.38 | Z25: Y
A26: Delivery Truck - Class 7 | B26: 7 | C26: 2 | D26: 4.23 | E26: 80000 | F26: =IF(ISNUMBER(D26),E26/D26,0) -> 18912.52955 | G26: =B26*F26 -> 132387.7069 | H26: =G26*$H$23 -> 182695.0355 | J26: Source: | Z26: Y
A27: Delivery Truck - Class 7 | B27: 6 | C27: 3 | D27: 4.23 | E27: 80000 | F27: =IF(ISNUMBER(D27),E27/D27,0) -> 18912.52955 | G27: =B27*F27 -> 113475.1773 | H27: =G27*$H$23 -> 156595.7447 | J27: Heat Content for Diesel motor fuel 138,700 Btu/gal (gross) | Z27: Y
F28: =IF(ISNUMBER(D28),E28/D28,0) -> 0 | G28: =B28*F28 -> 0 | H28: 0 | J28: Page B-5 of the Transportation Energy Data Book: Edition 32, Appendix B, prepared and published by Oak Ridge National Laboratory (ORNL) under contract with the U.S. Department of Energy, Office of Energy Efficiency and Renewable Energy, Vehicle Technologies Program. http://cta.ornl.gov/data/tedb32/Edition32_Appendix_B.pdf | Z28: Y
F29: 0 | G29: 0 | H29: 0 | Z29: Y
F30: 0 | G30: 0 | H30: 0 | Z30: Y
F31: 0 | G31: 0 | H31: 0 | Z31: Y
F32: 0 | G32: 0 | H32: 0 | Z32: Y
F33: 0 | G33: 0 | H33: 0 | Z33: Y
F34: 0 | G34: 0 | H34: 0 | Z34: Y
F35: 0 | G35: 0 | H35: 0 | J35: Notes and Definitions: | Z35: Y
F36: 0 | G36: 0 | H36: 0 | J36: CNG: Compressed Natural Gas | Z36: Y
F37: 0 | G37: 0 | H37: 0 | J37: DGE: Diesel Gallon Equivalent | Z37: Y
F38: 0 | G38: 0 | H38: 0 | J38: Sales Tax: City of Bellevue | N38: 0.095 | Z38: Y
F39: 0 | G39: 0 | H39: 0 | J39: Effective State Revenue Related Taxes: | N39: =+FIA!C211 -> 0.046135 | Z39: Y
F40: 0 | G40: 0 | H40: 0 | Z40: Y
F41: 0 | G41: 0 | H41: 0 | Z41: =IF(H45>0,"Y","N") -> N
F42: 0 | G42: 0 | H42: 0 | Z42: =IF(H46>0,"Y","N") -> N
F43: 0 | G43: 0 | H43: 0 | Z43: =IF(H47>0,"Y","N") -> N
F44: 0 | G44: 0 | H44: 0 | Z44: =IF(H48>0,"Y","N") -> N
F45: 0 | G45: 0 | H45: 0 | Z45: =IF(H49>0,"Y","N") -> N
F46: 0 | G46: 0 | H46: 0 | Z46: =IF(H50>0,"Y","N") -> N
F47: 0 | G47: 0 | H47: 0 | Z47: N
F48: 0 | G48: 0 | H48: 0 | Z48: N
F49: 0 | G49: 0 | H49: 0 | Z49: N
F50: 0 | G50: 0 | H50: 0 | Z50: N
F51: 0 | G51: 0 | H51: 0 | Z51: N
F52: 0 | G52: 0 | H52: 0 | Z52: N
F53: 0 | G53: 0 | H53: 0 | Z53: N
F54: 0 | G54: 0 | H54: 0 | Z54: N
F55: 0 | G55: 0 | H55: 0 | Z55: N
F56: 0 | G56: 0 | H56: 0 | Z56: N
F57: 0 | G57: 0 | H57: =G57*$H$23 -> 0 | Z57: N
F58: 0 | G58: 0 | H58: 0 | Z58: N
F59: 0 | G59: 0 | H59: 0 | Z59: N
F60: 0 | G60: 0 | H60: 0 | Z60: N
F61: 0 | G61: 0 | H61: 0 | Z61: N
F62: 0 | G62: 0 | H62: 0 | Z62: N
F63: 0 | G63: 0 | H63: 0 | Z63: N
F64: 0 | G64: 0 | H64: 0 | Z64: N
F65: =IF(ISNUMBER(D65),E65/D65,0) -> 0 | G65: 0 | H65: 0 | Z65: N
F66: 0 | G66: 0 | H66: 0 | Z66: N
F67: 0 | G67: 0 | H67: 0 | Z67: N
F68: 0 | G68: 0 | H68: 0 | Z68: N
F69: 0 | G69: 0 | H69: 0 | Z69: N
F70: 0 | G70: 0 | H70: 0 | Z70: N
F71: 0 | G71: 0 | H71: 0 | Z71: N
F72: 0 | G72: 0 | H72: 0 | Z72: N
F73: 0 | G73: 0 | H73: 0 | Z73: N
F74: 0 | G74: 0 | H74: 0 | Z74: N
F75: 0 | G75: 0 | H75: 0 | Z75: N
F76: 0 | G76: 0 | H76: 0 | Z76: N
F77: 0 | G77: 0 | H77: 0 | Z77: N
F78: 0 | G78: 0 | H78: 0 | Z78: N
F79: 0 | G79: 0 | H79: 0 | Z79: N
F80: 0 | G80: 0 | H80: 0 | Z80: N
F81: 0 | G81: 0 | H81: 0 | Z81: N
F82: 0 | G82: 0 | H82: 0 | Z82: N
F83: 0 | G83: 0 | H83: 0 | Z83: N
F84: 0 | G84: 0 | H84: 0 | Z84: N
F85: 0 | G85: 0 | H85: 0 | Z85: N
F86: 0 | G86: 0 | H86: 0 | Z86: N
F87: 0 | G87: 0 | H87: 0 | Z87: N
F88: 0 | G88: 0 | H88: 0 | Z88: N
F89: 0 | G89: 0 | H89: =G89*$H$23 -> 0 | Z89: N
F90: 0 | G90: =B90*F90 -> 0 | H90: 0 | Z90: N
F91: 0 | G91: 0 | H91: 0 | Z91: N
F92: 0 | G92: 0 | H92: 0 | Z92: N
F93: 0 | G93: 0 | H93: 0 | Z93: N
F94: 0 | G94: 0 | H94: 0 | Z94: N
F95: 0 | G95: 0 | H95: 0 | Z95: N
F96: 0 | G96: 0 | H96: 0 | Z96: N
F97: =IF(ISNUMBER(D97),E97/D97,0) -> 0 | G97: 0 | H97: 0 | Z97: N
F98: 0 | G98: 0 | H98: 0 | Z98: N
F99: 0 | G99: 0 | H99: 0 | Z99: N
F100: 0 | G100: 0 | H100: 0 | Z100: N
F101: 0 | G101: 0 | H101: 0 | Z101: N
F102: 0 | G102: 0 | H102: 0 | Z102: N
F103: 0 | G103: 0 | H103: 0 | Z103: N
F104: 0 | G104: 0 | H104: 0 | Z104: N
F105: 0 | G105: 0 | H105: 0 | Z105: N
F106: 0 | G106: 0 | H106: 0 | Z106: N
F107: 0 | G107: 0 | H107: 0 | Z107: N
F108: 0 | G108: 0 | H108: 0 | Z108: N
F109: 0 | G109: 0 | H109: 0 | Z109: N
F110: 0 | G110: 0 | H110: 0 | Z110: =IF(H114>0,"Y","N") -> N
F111: 0 | G111: 0 | H111: 0 | Z111: N
F112: 0 | G112: 0 | H112: 0 | Z112: N
F113: 0 | G113: 0 | H113: 0 | Z113: N
F114: 0 | G114: 0 | H114: 0 | Z114: N
F115: 0 | G115: 0 | H115: 0 | Z115: N
F116: 0 | G116: 0 | H116: 0 | Z116: N
F117: 0 | G117: 0 | H117: 0 | Z117: N
F118: 0 | G118: 0 | H118: 0 | Z118: N
F119: 0 | G119: 0 | H119: 0 | Z119: N
F120: 0 | G120: 0 | H120: 0 | Z120: N
F121: 0 | G121: 0 | H121: =G121*$H$23 -> 0 | Z121: N
F122: 0 | G122: 0 | H122: 0 | Z122: N
F123: 0 | G123: 0 | H123: 0 | Z123: N
F124: 0 | G124: 0 | H124: 0 | Z124: N
F125: 0 | G125: 0 | H125: 0 | Z125: N
F126: 0 | G126: 0 | H126: 0 | Z126: Y
Z127: Y

Sheet Therms (hidden)
A1: CONSUMPTION ESTIMATES
A2: CUSTOMER GROUP NO. | B2: =+FIA!C21 -> 1 | C2: =+FIA!D21 -> 2 | D2: =+FIA!E21 -> 3 | E2: =+FIA!F21 -> 4 | F2: =+FIA!G21 -> 5 | G2: =+FIA!H21 -> 6 | H2: =+FIA!I21 -> 7
A3: =+FIA!B20 -> CUSTOMER GROUP DESCRIPTION: | B3: =IF(+FIA!C20=0,"",+FIA!C20) ->  | C3: =IF(+FIA!D20=0,"",+FIA!D20) ->  | D3: =IF(+FIA!E20=0,"",+FIA!E20) ->  | E3: =IF(+FIA!F20=0,"",+FIA!F20) ->  | F3: =IF(+FIA!G20=0,"",+FIA!G20) ->  | G3: =IF(+FIA!H20=0,"",+FIA!H20) ->  | H3: =IF(+FIA!I20=0,"",+FIA!I20) -> 
A4: =+FIA!B19 -> CUSTOMER GROUP STRUCTURE TYPE: | B4: =+FIA!C19 -> 0 | C4: =+FIA!D19 -> 0 | D4: =+FIA!E19 -> 0 | E4: =+FIA!F19 -> 0 | F4: =+FIA!G19 -> 0 | G4: =+FIA!H19 -> 0 | H4: =+FIA!I19 -> 0
A5: =+FIA!B23 -> NO. OF CUSTOMER/S | B5: =+FIA!C23 -> 1 | C5: =+FIA!D23 -> 0 | D5: =+FIA!E23 -> 0 | E5: =+FIA!F23 -> 0 | F5: =+FIA!G23 -> 0 | G5: =+FIA!H23 -> 0 | H5: =+FIA!I23 -> 0
A6: NO. OF RESIDENCIAL CUSTOMERS | B6: =IF(OR(FIA!C$19=FIA!$AM$5,FIA!C$19=FIA!$AM$4,FIA!C$19=FIA!$AM$6),+FIA!C23,0) -> 0 | C6: =IF(OR(FIA!D$19=FIA!$AM$5,FIA!D$19=FIA!$AM$4,FIA!D$19=FIA!$AM$6),+FIA!D23,0) -> 0 | D6: =IF(OR(FIA!E$19=FIA!$AM$5,FIA!E$19=FIA!$AM$4,FIA!E$19=FIA!$AM$6),+FIA!E23,0) -> 0 | E6: =IF(OR(FIA!F$19=FIA!$AM$5,FIA!F$19=FIA!$AM$4,FIA!F$19=FIA!$AM$6),+FIA!F23,0) -> 0 | F6: =IF(OR(FIA!G$19=FIA!$AM$5,FIA!G$19=FIA!$AM$4,FIA!G$19=FIA!$AM$6),+FIA!G23,0) -> 0 | G6: =IF(OR(FIA!H$19=FIA!$AM$5,FIA!H$19=FIA!$AM$4,FIA!H$19=FIA!$AM$6),+FIA!H23,0) -> 0 | H6: =IF(OR(FIA!I$19=FIA!$AM$5,FIA!I$19=FIA!$AM$4,FIA!I$19=FIA!$AM$6),+FIA!I23,0) -> 0
A7: GAS LOADS - SINGLE-FAMILY RESIDENCES
A8: INPUT AREA
A9: AVERAGE SQ FOOTAGE OF SINGLE-FAMILY DWELLING BEING REPRESENTED BY THIS COLUMN | B9: 0 | C9: 0 | D9: 0 | E9: 0 | F9: 0 | G9: 0 | H9: 0
A10: MULTI-FAMILY UNITS METER MANIFOLD ID
A11: SQUARE FOOTAGE OF MULTIFAMILY DWELLING BEING REPRESENTED BY THIS COLUMN | B11: 0 | C11: 0 | D11: 0 | E11: 0 | F11: 0 | G11: 0 | H11: 0
A12: GAS SPACE HEATING | B12: No | C12: No | D12: No | E12: No | F12: No | G12: No | H12: No
A13: GAS HOT WATER | B13: No | C13: No | D13: No | E13: No | F13: No | G13: No | H13: No
A14: WITH LAUNDRY (MULTI-FAMILY ONLY) | B14: No | C14: No | D14: No | E14: No | F14: No | G14: No | H14: No
A15: GAS COOKING | B15: No | C15: No | D15: No | E15: No | F15: No | G15: No | H15: No
A16: GAS DRYER | B16: No | C16: No | D16: No | E16: No | F16: No | G16: No | H16: No
A17: GAS FIREPLACE | B17: No | C17: No | D17: No | E17: No | F17: No | G17: No | H17: No
A18: GAS HOT TUB | B18: No | C18: No | D18: No | E18: No | F18: No | G18: No | H18: No
A19: CALCULATED THERMS/PER YEAR
A20: GAS SPACE HEATING | B20: =IF(AND(B12="Yes",OR(FIA!C$19=FIA!$AM$5,FIA!C$19=FIA!$AM$4),B6>0),VLOOKUP(B9,Therms!$A$119:$C$269,3,TRUE),0) -> 0 | C20: =IF(AND(C12="Yes",OR(FIA!D$19=FIA!$AM$5,FIA!D$19=FIA!$AM$4),C6>0),VLOOKUP(C9,Therms!$A$119:$C$269,3,TRUE),0) -> 0 | D20: =IF(AND(D12="Yes",OR(FIA!E$19=FIA!$AM$5,FIA!E$19=FIA!$AM$4),D6>0),VLOOKUP(D9,Therms!$A$119:$C$269,3,TRUE),0) -> 0 | E20: =IF(AND(E12="Yes",OR(FIA!F$19=FIA!$AM$5,FIA!F$19=FIA!$AM$4),E6>0),VLOOKUP(E9,Therms!$A$119:$C$269,3,TRUE),0) -> 0 | F20: =IF(AND(F12="Yes",OR(FIA!G$19=FIA!$AM$5,FIA!G$19=FIA!$AM$4),F6>0),VLOOKUP(F9,Therms!$A$119:$C$269,3,TRUE),0) -> 0 | G20: =IF(AND(G12="Yes",OR(FIA!H$19=FIA!$AM$5,FIA!H$19=FIA!$AM$4),G6>0),VLOOKUP(G9,Therms!$A$119:$C$269,3,TRUE),0) -> 0 | H20: =IF(AND(H12="Yes",OR(FIA!I$19=FIA!$AM$5,FIA!I$19=FIA!$AM$4),H6>0),VLOOKUP(H9,Therms!$A$119:$C$269,3,TRUE),0) -> 0
A21: GAS HOT WATER | B21: =IF(AND(B6>0,B13="Yes",OR(FIA!$AM$5=FIA!C$19,FIA!C$19=FIA!$AM$4)),Therms!$B$110,0) -> 0 | C21: =IF(OR(C6=0,C13="No"),0,IF(C13="Yes",IF(OR(FIA!$AM$5=FIA!D$19,FIA!D$19=FIA!$AM$4),Therms!$B$110,IF(C14="Yes",$F$121,$F$122)),0)) -> 0 | D21: =IF(OR(D6=0,D13="No"),0,IF(D13="Yes",IF(OR(FIA!$AM$5=FIA!E$19,FIA!E$19=FIA!$AM$4),Therms!$B$110,IF(D14="Yes",$F$121,$F$122)),0)) -> 0 | E21: =IF(OR(E6=0,E13="No"),0,IF(E13="Yes",IF(OR(FIA!$AM$5=FIA!F$19,FIA!F$19=FIA!$AM$4),Therms!$B$110,IF(E14="Yes",$F$121,$F$122)),0)) -> 0 | F21: =IF(OR(F6=0,F13="No"),0,IF(F13="Yes",IF(OR(FIA!$AM$5=FIA!G$19,FIA!G$19=FIA!$AM$4),Therms!$B$110,IF(F14="Yes",$F$121,$F$122)),0)) -> 0 | G21: =IF(OR(G6=0,G13="No"),0,IF(G13="Yes",IF(OR(FIA!$AM$5=FIA!H$19,FIA!H$19=FIA!$AM$4),Therms!$B$110,IF(G14="Yes",$F$121,$F$122)),0)) -> 0 | H21: =IF(OR(H6=0,H13="No"),0,IF(H13="Yes",IF(OR(FIA!$AM$5=FIA!I$19,FIA!I$19=FIA!$AM$4),Therms!$B$110,IF(H14="Yes",$F$121,$F$122)),0)) -> 0
A22: GAS COOKING | B22: =IF(AND(B6>0,B15="Yes",OR(FIA!$AM$5=FIA!C$19,FIA!C$19=FIA!$AM$4)),Therms!$B$113,0) -> 0 | C22: =IF(OR(C6=0,C15="No"),0,IF(C15="Yes",Therms!$B$113,0)) -> 0 | D22: =IF(OR(D6=0,D15="No"),0,IF(D15="Yes",Therms!$B$113,0)) -> 0 | E22: =IF(OR(E6=0,E15="No"),0,IF(E15="Yes",Therms!$B$113,0)) -> 0 | F22: =IF(OR(F6=0,F15="No"),0,IF(F15="Yes",Therms!$B$113,0)) -> 0 | G22: =IF(OR(G6=0,G15="No"),0,IF(G15="Yes",Therms!$B$113,0)) -> 0 | H22: =IF(OR(H6=0,H15="No"),0,IF(H15="Yes",Therms!$B$113,0)) -> 0
A23: GAS DRYER | B23: =IF(AND(B6>0,B16="Yes",OR(FIA!$AM$5=FIA!C$19,FIA!C$19=FIA!$AM$4)),Therms!$B$112,0) -> 0 | C23: =IF(OR(C6=0,C16="No"),0,IF(C16="Yes",Therms!$B$112,0)) -> 0 | D23: =IF(OR(D6=0,D16="No"),0,IF(D16="Yes",Therms!$B$112,0)) -> 0 | E23: =IF(OR(E6=0,E16="No"),0,IF(E16="Yes",Therms!$B$112,0)) -> 0 | F23: =IF(OR(F6=0,F16="No"),0,IF(F16="Yes",Therms!$B$112,0)) -> 0 | G23: =IF(OR(G6=0,G16="No"),0,IF(G16="Yes",Therms!$B$112,0)) -> 0 | H23: =IF(OR(H6=0,H16="No"),0,IF(H16="Yes",Therms!$B$112,0)) -> 0
A24: GAS FIREPLACE | B24: =IF(AND(B6>0,B17="Yes",OR(FIA!$AM$5=FIA!C$19,FIA!C$19=FIA!$AM$4)),Therms!$B$114,0) -> 0 | C24: =IF(AND(C6>0,C17="Yes",OR(FIA!$AM$5=FIA!D$19,FIA!D$19=FIA!$AM$4)),Therms!$B$114,0) -> 0 | D24: =IF(AND(D6>0,D17="Yes",OR(FIA!$AM$5=FIA!E$19,FIA!E$19=FIA!$AM$4)),Therms!$B$114,0) -> 0 | E24: =IF(AND(E6>0,E17="Yes",OR(FIA!$AM$5=FIA!F$19,FIA!F$19=FIA!$AM$4)),Therms!$B$114,0) -> 0 | F24: =IF(AND(F6>0,F17="Yes",OR(FIA!$AM$5=FIA!G$19,FIA!G$19=FIA!$AM$4)),Therms!$B$114,0) -> 0 | G24: =IF(AND(G6>0,G17="Yes",OR(FIA!$AM$5=FIA!H$19,FIA!H$19=FIA!$AM$4)),Therms!$B$114,0) -> 0 | H24: =IF(AND(H6>0,H17="Yes",OR(FIA!$AM$5=FIA!I$19,FIA!I$19=FIA!$AM$4)),Therms!$B$114,0) -> 0
A25: GAS HOT TUB | B25: =IF(AND(B6>0,B18="Yes",OR(FIA!$AM$5=FIA!C$19,FIA!C$19=FIA!$AM$4)),Therms!$B$111,0) -> 0 | C25: =IF(OR(C6=0,C18="No"),0,IF(C18="Yes",Therms!$B$111,0)) -> 0 | D25: =IF(OR(D6=0,D18="No"),0,IF(D18="Yes",Therms!$B$111,0)) -> 0 | E25: =IF(OR(E6=0,E18="No"),0,IF(E18="Yes",Therms!$B$111,0)) -> 0 | F25: =IF(OR(F6=0,F18="No"),0,IF(F18="Yes",Therms!$B$111,0)) -> 0 | G25: =IF(OR(G6=0,G18="No"),0,IF(G18="Yes",Therms!$B$111,0)) -> 0 | H25: =IF(OR(H6=0,H18="No"),0,IF(H18="Yes",Therms!$B$111,0)) -> 0
A26: THERMS/YR PER RESIDENTIAL UNIT | B26: =IF(OR(FIA!C$19=FIA!$AM$5,FIA!C$19=FIA!$AM$4),+SUM(B19:B25),0) -> 0 | C26: =IF(OR(FIA!D$19=FIA!$AM$5,FIA!D$19=FIA!$AM$4),+SUM(C19:C25),0) -> 0 | D26: =IF(OR(FIA!E$19=FIA!$AM$5,FIA!E$19=FIA!$AM$4),+SUM(D19:D25),0) -> 0 | E26: =IF(OR(FIA!F$19=FIA!$AM$5,FIA!F$19=FIA!$AM$4),+SUM(E19:E25),0) -> 0 | F26: =IF(OR(FIA!G$19=FIA!$AM$5,FIA!G$19=FIA!$AM$4),+SUM(F19:F25),0) -> 0 | G26: =IF(OR(FIA!H$19=FIA!$AM$5,FIA!H$19=FIA!$AM$4),+SUM(G19:G25),0) -> 0 | H26: =IF(OR(FIA!I$19=FIA!$AM$5,FIA!I$19=FIA!$AM$4),+SUM(H19:H25),0) -> 0
A28: GAS LOADS - INDIVIDUAL METERED MULTI-FAMILY DWELLINGS
A30: ADDITIONAL THERMS/YR PER CUSTOMER | B30: 0 | C30: 0 | D30: 0 | E30: 0 | F30: 0 | G30: 0 | H30: 0
A32: ADDED LOAD FOR FACILITY MODIFICATION FOR EXISTING GAS CUSTOMER w/ SCHEDULE 7 VOLUME ALLOWANCE
B33: =IF(FIA!$I$6="No","NOT APPLICABLE","") -> NOT APPLICABLE
A34: ADDITIONAL THERMS/YR PER CUSTOMER | B34: 0 | C34: 0 | D34: 0 | E34: 0 | F34: 0 | G34: 0 | H34: 0
A36: GAS LOADS - COMMERCIAL OR INDUSTRIAL OR MASTER METERED MULTI-FAMILY DWELLINGS 5 UNITS AND UP
B37: The loads will be estimated on a case-by-case basis.
A38: NAICS CODE | B38: XXXX | C38: XXXX | D38: XXXX | E38: XXXX | F38: XXXX | G38: XXXX | H38: XXXX
A39: EQUIPMENT (1) LOCATION | B39: XXXX | C39: XXXX | D39: XXXX | E39: XXXX | F39: XXXX | G39: XXXX | H39: XXXX
A40: CONNECTED LOAD (cfh) | B40: 0 | C40: 0 | D40: 0 | E40: 0 | F40: 0 | G40: 0 | H40: 0
A41: LOAD MULTIPLIER | B41: 0 | C41: 0 | D41: 0 | E41: 0 | F41: 0 | G41: 0 | H41: 0
A42: EQUIPMENT (1) THERMS | B42: =+B40*B41 -> 0 | C42: =+C40*C41 -> 0 | D42: 0 | E42: 0 | F42: 0 | G42: 0 | H42: 0
A43: EQUIPMENT (2) LOCATION | B43: XXXX | C43: XXXX | D43: XXXX | E43: XXXX | F43: XXXX | G43: XXXX | H43: XXXX
A44: CONNECTED LOAD (cfh) | B44: 0 | C44: 0 | D44: 0 | E44: 0 | F44: 0 | G44: 0 | H44: 0
A45: LOAD MULTIPLIER | B45: 0 | C45: 0 | D45: 0 | E45: 0 | F45: 0 | G45: 0 | H45: 0
A46: EQUIPMENT (2) THERMS | B46: =+B44*B45 -> 0 | C46: =+C44*C45 -> 0 | D46: 0 | E46: 0 | F46: 0 | G46: 0 | H46: 0
A47: EQUIPMENT (3) LOCATION | B47: XXXX | C47: XXXX | D47: XXXX | E47: XXXX | F47: XXXX | G47: XXXX | H47: XXXX
A48: CONNECTED LOAD (cfh) | B48: 0 | C48: 0 | D48: 0 | E48: 0 | F48: 0 | G48: 0 | H48: 0
A49: LOAD MULTIPLIER | B49: 0 | C49: 0 | D49: 0 | E49: 0 | F49: 0 | G49: 0 | H49: 0
A50: EQUIPMENT (3) THERMS | B50: =+B48*B49 -> 0 | C50: =+C48*C49 -> 0 | D50: 0 | E50: 0 | F50: 0 | G50: 0 | H50: 0
A51: EQUIPMENT (4) LOCATION | B51: XXXX | C51: XXXX | D51: XXXX | E51: XXXX | F51: XXXX | G51: XXXX | H51: XXXX
A52: CONNECTED LOAD (cfh) | B52: 0 | C52: 0 | D52: 0 | E52: 0 | F52: 0 | G52: 0 | H52: 0
A53: LOAD MULTIPLIER | B53: 0 | C53: 0 | D53: 0 | E53: 0 | F53: 0 | G53: 0 | H53: 0
A54: EQUIPMENT (4) THERMS | B54: =+B52*B53 -> 0 | C54: =+C52*C53 -> 0 | D54: 0 | E54: 0 | F54: 0 | G54: 0 | H54: 0
A55: TOTAL THERMS/YR PER COMMERCIAL/INDUSTRIAL CUSTOMER | B55: =IF(OR(FIA!C$19=FIA!$AM$7,FIA!C$19=FIA!$AM$8,FIA!C$19=FIA!$AM$9),+B42+B46+B50+B54,0) -> 0 | C55: =IF(OR(FIA!D$19=FIA!$AM$7,FIA!D$19=FIA!$AM$8,FIA!D$19=FIA!$AM$9),+C42+C46+C50+C54,0) -> 0 | D55: =IF(OR(FIA!E$19=FIA!$AM$7,FIA!E$19=FIA!$AM$8,FIA!E$19=FIA!$AM$9),+D42+D46+D50+D54,0) -> 0 | E55: =IF(OR(FIA!F$19=FIA!$AM$7,FIA!F$19=FIA!$AM$8,FIA!F$19=FIA!$AM$9),+E42+E46+E50+E54,0) -> 0 | F55: =IF(OR(FIA!G$19=FIA!$AM$7,FIA!G$19=FIA!$AM$8,FIA!G$19=FIA!$AM$9),+F42+F46+F50+F54,0) -> 0 | G55: =IF(OR(FIA!H$19=FIA!$AM$7,FIA!H$19=FIA!$AM$8,FIA!H$19=FIA!$AM$9),+G42+G46+G50+G54,0) -> 0 | H55: =IF(OR(FIA!I$19=FIA!$AM$7,FIA!I$19=FIA!$AM$8,FIA!I$19=FIA!$AM$9),+H42+H46+H50+H54,0) -> 0
A59: TOTAL THERMS PER YEAR PER CUSTOMER | B59: =ROUND(B34+B26+B55+B64+B30,0) -> 0 | C59: 0 | D59: 0 | E59: 0 | F59: 0 | G59: 0 | H59: 0
A63: RULE 7 REVIEW ONLY RULE 7 REVIEW ONLY RULE 7 REVIEW ONLY
A64: GAS LOADS | B64: 0 | C64: 0 | D64: 0 | E64: 0 | F64: 0 | G64: 0 | H64: 0
D95: =+B2 -> 1 | E95: 2 | F95: 3 | G95: 4 | H95: 5 | I95: 6 | J95: 7
D96: =+B3 ->  | E96: =+C3 -> 
D97: =+B4&B10 -> 0 | E97: 0 | F97: 0 | G97: 0 | H97: 0 | I97: 0 | J97: 0
A98: =+A7 -> GAS LOADS - SINGLE-FAMILY RESIDENCES | E98: =+A28 -> GAS LOADS - INDIVIDUAL METERED MULTI-FAMILY DWELLINGS | F98: =+FIA!AM6 -> Multi-Family Dwellings - (2+ Units, Individual Metered) | G98: =+A6 -> NO. OF RESIDENCIAL CUSTOMERS | H98: =+A11 -> SQUARE FOOTAGE OF MULTIFAMILY DWELLING BEING REPRESENTED BY THIS COLUMN | I98: TOTAL THERMS | J98: PER UNIT
E99: =+$F$98&F99 -> Multi-Family Dwellings - (2+ Units, Individual Metered)MANIFOLD NO. 1 | F99: MANIFOLD NO. 1 | G99: =+SUMIF($D$97:$J$97,E99,$B$6:$H$6) -> 0 | H99: =+SUMIF($D$97:$J$97,E99,$B$11:$H$11) -> 0 | I99: =+IF(AND(G99>0,H99>0),IF(G99<=4,VLOOKUP(H99,Therms!$A$119:$C$269,3,TRUE),H99*$F$119),0) -> 0 | J99: =IF(I99>0,+I99/G99,0) -> 0
E100: =+$F$98&F100 -> Multi-Family Dwellings - (2+ Units, Individual Metered)MANIFOLD NO. 2 | F100: MANIFOLD NO. 2 | G100: =+SUMIF($D$97:$J$97,E100,$B$6:$H$6) -> 0 | H100: =+SUMIF($D$97:$J$97,E100,$B$11:$H$11) -> 0 | I100: =+IF(AND(G100>0,H100>0),IF(G100<=4,VLOOKUP(H100,Therms!$A$119:$C$269,3,TRUE),H100*$F$119),0) -> 0 | J100: =IF(I100>0,+I100/G100,0) -> 0
E101: =+$F$98&F101 -> Multi-Family Dwellings - (2+ Units, Individual Metered)MANIFOLD NO. 3 | F101: MANIFOLD NO. 3 | G101: =+SUMIF($D$97:$J$97,E101,$B$6:$H$6) -> 0 | H101: =+SUMIF($D$97:$J$97,E101,$B$11:$H$11) -> 0 | I101: =+IF(AND(G101>0,H101>0),IF(G101<=4,VLOOKUP(H101,Therms!$A$119:$C$269,3,TRUE),H101*$F$119),0) -> 0 | J101: =IF(I101>0,+I101/G101,0) -> 0
A102: YES/NO | E102: =+$F$98&F102 -> Multi-Family Dwellings - (2+ Units, Individual Metered)MANIFOLD NO. 4 | F102: MANIFOLD NO. 4 | G102: =+SUMIF($D$97:$J$97,E102,$B$6:$H$6) -> 0 | H102: =+SUMIF($D$97:$J$97,E102,$B$11:$H$11) -> 0 | I102: =+IF(AND(G102>0,H102>0),IF(G102<=4,VLOOKUP(H102,Therms!$A$119:$C$269,3,TRUE),H102*$F$119),0) -> 0 | J102: =IF(I102>0,+I102/G102,0) -> 0
A103: Yes | E103: =+$F$98&F103 -> Multi-Family Dwellings - (2+ Units, Individual Metered)MANIFOLD NO. 5 | F103: MANIFOLD NO. 5 | G103: =+SUMIF($D$97:$J$97,E103,$B$6:$H$6) -> 0 | H103: =+SUMIF($D$97:$J$97,E103,$B$11:$H$11) -> 0 | I103: =+IF(AND(G103>0,H103>0),IF(G103<=4,VLOOKUP(H103,Therms!$A$119:$C$269,3,TRUE),H103*$F$119),0) -> 0 | J103: =IF(I103>0,+I103/G103,0) -> 0
A104: No
A108: LOOKUP TABLE 1 - APPLIANCE THERMS
A109: APPLIANCE | B109: THERMS
A110: Water Heater | B110: 224
A111: Hot Tub | B111: 100
A112: Dryer | B112: 50
A113: Range | B113: 72
A114: Fireplace | B114: 77
A116: LOOKUP TABLE 2 - Furnace Therms
A117: At Least | B117: Less Than | C117: Annual
A118: sqft | B118: sqft | C118: therms | E118: =+F98 -> Multi-Family Dwellings - (2+ Units, Individual Metered)
A119: 0 | B119: 500 | C119: 181 | E119: Space Heating | F119: 0.26 | G119: therms/sq.ft./year
A120: =+B119+1 -> 501 | B120: =+B119+100 -> 600 | C120: 217 | E120: Water Heating
A121: 601 | B121: 700 | C121: 254 | E121: with Laundry | F121: 182 | G121: therms/per unit/year
A122: 701 | B122: 800 | C122: 290 | E122: without Laundry | F122: 152 | G122: therms/per unit/year
A123: 801 | B123: 900 | C123: 326
A124: 901 | B124: 1000 | C124: 362
A125: 1001 | B125: 1100 | C125: 399
A126: 1101 | B126: 1200 | C126: 435
A127: 1201 | B127: 1300 | C127: 471
A128: 1301 | B128: 1400 | C128: 507
A129: 1401 | B129: 1500 | C129: 544
A130: 1501 | B130: 1600 | C130: 553
A131: 1601 | B131: 1700 | C131: 563
A132: 1701 | B132: 1800 | C132: 573
A133: 1801 | B133: 1900 | C133: 583
A134: 1901 | B134: 2000 | C134: 592
A135: 2001 | B135: 2100 | C135: 602
A136: 2101 | B136: 2200 | C136: 612
A137: 2201 | B137: 2300 | C137: 622
A138: 2301 | B138: 2400 | C138: 631
A139: 2401 | B139: 2500 | C139: 641
A140: 2501 | B140: 2600 | C140: 651
A141: 2601 | B141: 2700 | C141: 661
A142: 2701 | B142: 2800 | C142: 671
A143: 2801 | B143: 2900 | C143: 680
A144: 2901 | B144: 3000 | C144: 690
A145: 3001 | B145: 3100 | C145: 700
A146: 3101 | B146: 3200 | C146: 710
A147: 3201 | B147: 3300 | C147: 719
A148: 3301 | B148: 3400 | C148: 729
A149: 3401 | B149: 3500 | C149: 739
A150: 3501 | B150: 3600 | C150: 749
A151: 3601 | B151: 3700 | C151: 758
A152: =+B151+1 -> 3701 | B152: =+B151+100 -> 3800 | C152: 768
A153: 3801 | B153: 3900 | C153: 778
A154: 3901 | B154: 4000 | C154: 788
A155: 4001 | B155: 4100 | C155: 798
A156: 4101 | B156: 4200 | C156: 807
A157: 4201 | B157: 4300 | C157: 817
A158: 4301 | B158: 4400 | C158: 827
A159: 4401 | B159: 4500 | C159: 837
A160: 4501 | B160: 4600 | C160: 846
A161: 4601 | B161: 4700 | C161: 856
A162: 4701 | B162: 4800 | C162: 866
A163: 4801 | B163: 4900 | C163: 876
A164: 4901 | B164: 5000 | C164: 885
A165: 5001 | B165: 5100 | C165: =C164+8 -> 893
A166: 5101 | B166: 5200 | C166: =C165+8 -> 901
A167: 5201 | B167: 5300 | C167: 909
A168: 5301 | B168: 5400 | C168: 917
A169: 5401 | B169: 5500 | C169: 925
A170: 5501 | B170: 5600 | C170: 933
A171: 5601 | B171: 5700 | C171: 941
A172: 5701 | B172: 5800 | C172: 949
A173: 5801 | B173: 5900 | C173: 957
A174: 5901 | B174: 6000 | C174: 965
A175: 6001 | B175: 6100 | C175: 973
A176: 6101 | B176: 6200 | C176: 981
A177: 6201 | B177: 6300 | C177: 989
A178: 6301 | B178: 6400 | C178: 997
A179: 6401 | B179: 6500 | C179: 1005
A180: 6501 | B180: 6600 | C180: 1013
A181: 6601 | B181: 6700 | C181: 1021
A182: 6701 | B182: 6800 | C182: 1029
A183: 6801 | B183: 6900 | C183: 1037
A184: =+B183+1 -> 6901 | B184: =+B183+100 -> 7000 | C184: 1045
A185: 7001 | B185: 7100 | C185: 1053
A186: 7101 | B186: 7200 | C186: 1061
A187: 7201 | B187: 7300 | C187: 1069
A188: 7301 | B188: 7400 | C188: 1077
A189: 7401 | B189: 7500 | C189: 1085
A190: 7501 | B190: 7600 | C190: 1093
A191: 7601 | B191: 7700 | C191: 1101
A192: 7701 | B192: 7800 | C192: 1109
A193: 7801 | B193: 7900 | C193: 1117
A194: 7901 | B194: 8000 | C194: 1125
A195: 8001 | B195: 8100 | C195: 1133
A196: 8101 | B196: 8200 | C196: 1141
A197: 8201 | B197: 8300 | C197: 1149
A198: 8301 | B198: 8400 | C198: 1157
A199: 8401 | B199: 8500 | C199: 1165
A200: 8501 | B200: 8600 | C200: 1173
A201: 8601 | B201: =+B200+100 -> 8700 | C201: =C200+8 -> 1181
A202: 8701 | B202: =+B201+100 -> 8800 | C202: =C201+8 -> 1189
A203: 8801 | B203: 8900 | C203: 1197
A204: 8901 | B204: 9000 | C204: 1205
A205: 9001 | B205: 9100 | C205: 1213
A206: 9101 | B206: 9200 | C206: 1221
A207: 9201 | B207: 9300 | C207: 1229
A208: 9301 | B208: 9400 | C208: 1237
A209: 9401 | B209: 9500 | C209: 1245
A210: 9501 | B210: 9600 | C210: 1253
A211: 9601 | B211: 9700 | C211: 1261
A212: 9701 | B212: 9800 | C212: 1269
A213: 9801 | B213: 9900 | C213: 1277
A214: 9901 | B214: 10000 | C214: 1285
A215: 10001 | B215: 10100 | C215: 1293
A216: 10101 | B216: 10200 | C216: 1301
A217: 10201 | B217: 10300 | C217: 1309
A218: 10301 | B218: 10400 | C218: 1317
A219: 10401 | B219: 10500 | C219: 1325
A220: 10501 | B220: 10600 | C220: 1333
A221: 10601 | B221: 10700 | C221: 1341
A222: 10701 | B222: 10800 | C222: 1349
A223: 10801 | B223: 10900 | C223: 1357
A224: 10901 | B224: 11000 | C224: 1365
A225: 11001 | B225: 11100 | C225: 1373
A226: 11101 | B226: 11200 | C226: 1381
A227: 11201 | B227: 11300 | C227: 1389
A228: 11301 | B228: 11400 | C228: 1397
A229: 11401 | B229: 11500 | C229: 1405
A230: 11501 | B230: 11600 | C230: 1413
A231: 11601 | B231: 11700 | C231: 1421
A232: 11701 | B232: 11800 | C232: 1429
A233: 11801 | B233: 11900 | C233: 1437
A234: 11901 | B234: 12000 | C234: 1445
A235: 12001 | B235: 12100 | C235: 1453
A236: 12101 | B236: 12200 | C236: 1461
A237: 12201 | B237: 12300 | C237: 1469
A238: 12301 | B238: 12400 | C238: 1477
A239: 12401 | B239: 12500 | C239: 1485
A240: 12501 | B240: 12600 | C240: 1493
A241: 12601 | B241: 12700 | C241: 1501
A242: 12701 | B242: 12800 | C242: 1509
A243: 12801 | B243: 12900 | C243: 1517
A244: 12901 | B244: 13000 | C244: 1525
... 25 more rows

Sheet ConstructionCosts (hidden)
B1: STANDARD AND NON-STANDARD COSTS ESTIMATES
A2: CUSTOMER GROUP NO. | C2: =+FIA!C21 -> 1 | D2: =+FIA!D21 -> 2 | E2: =+FIA!E21 -> 3 | F2: =+FIA!F21 -> 4 | G2: =+FIA!G21 -> 5 | H2: =+FIA!H21 -> 6 | I2: =+FIA!I21 -> 7
A3: =+FIA!B20 -> CUSTOMER GROUP DESCRIPTION: | C3: =IF(+FIA!C20=0,"",+FIA!C20) ->  | D3: =IF(+FIA!D20=0,"",+FIA!D20) ->  | E3: =IF(+FIA!E20=0,"",+FIA!E20) ->  | F3: =IF(+FIA!F20=0,"",+FIA!F20) ->  | G3: =IF(+FIA!G20=0,"",+FIA!G20) ->  | H3: =IF(+FIA!H20=0,"",+FIA!H20) ->  | I3: =IF(+FIA!I20=0,"",+FIA!I20) -> 
A4: =+FIA!B19 -> CUSTOMER GROUP STRUCTURE TYPE: | C4: =IF(+FIA!C19=0,"",+FIA!C19) ->  | D4: =IF(+FIA!D19=0,"",+FIA!D19) ->  | E4: =IF(+FIA!E19=0,"",+FIA!E19) ->  | F4: =IF(+FIA!F19=0,"",+FIA!F19) ->  | G4: =IF(+FIA!G19=0,"",+FIA!G19) ->  | H4: =IF(+FIA!H19=0,"",+FIA!H19) ->  | I4: =IF(+FIA!I19=0,"",+FIA!I19) -> 
A5: =+FIA!B22 -> RATE SCHEDULE: | C5: =IF(+FIA!C22=0,"",+FIA!C22) ->  | D5: =IF(+FIA!D22=0,"",+FIA!D22) ->  | E5: =IF(+FIA!E22=0,"",+FIA!E22) ->  | F5: =IF(+FIA!F22=0,"",+FIA!F22) ->  | G5: =IF(+FIA!G22=0,"",+FIA!G22) ->  | H5: =IF(+FIA!H22=0,"",+FIA!H22) ->  | I5: =IF(+FIA!I22=0,"",+FIA!I22) -> 
B6: INPUT AREA
A7: GAS MAIN | B7: GAS MAIN (1) (UP TO 4" PE) | C7: NOT APPLICABLE | D7: NOT APPLICABLE | E7: NOT APPLICABLE | F7: NOT APPLICABLE | G7: NOT APPLICABLE | H7: NOT APPLICABLE | I7: NOT APPLICABLE
B8: LENGTH OF THE MAIN (FT) | C8: 0 | D8: 0 | E8: 0 | F8: 0 | G8: 0 | H8: 0 | I8: 0
B9: GAS MAIN (2) (UP TO 4" PE) | C9: NOT APPLICABLE | D9: NOT APPLICABLE | E9: NOT APPLICABLE | F9: NOT APPLICABLE | G9: NOT APPLICABLE | H9: NOT APPLICABLE | I9: NOT APPLICABLE
B10: LENGTH OF THE MAIN (FT) | C10: 0 | D10: 0 | E10: 0 | F10: 0 | G10: 0 | H10: 0 | I10: 0
B11: SITE-SPECIFIC, NON-STANDARD MAIN CONSTRUCTION COSTS | C11: 0 | D11: 0 | E11: 0 | F11: 0 | G11: 0 | H11: 0 | I11: 0
A12: GAS SERVICE | B12: GAS SERVICE (1) RESIDENTIAL: ANY SIZE PE SERVICE COMMERCIAL: UP TO 4" PE IN SIZE | C12: NOT APPLICABLE | D12: NOT APPLICABLE | E12: NOT APPLICABLE | F12: NOT APPLICABLE | G12: NOT APPLICABLE | H12: NOT APPLICABLE | I12: NOT APPLICABLE
B13: LENGTH OF THE SERVICE (FT) | C13: 0 | D13: 0 | E13: 0 | F13: 0 | G13: 0 | H13: 0 | I13: 0
B14: GAS SERVICE (2) RESIDENTIAL: ANY SIZE PE SERVICE COMMERCIAL: UP TO 4" PE IN SIZE | C14: NOT APPLICABLE | D14: NOT APPLICABLE | E14: NOT APPLICABLE | F14: NOT APPLICABLE | G14: NOT APPLICABLE | H14: NOT APPLICABLE | I14: NOT APPLICABLE
B15: LENGTH OF THE SERVICE (FT) | C15: 0 | D15: 0 | E15: 0 | F15: 0 | G15: 0 | H15: 0 | I15: 0
B16: GAS SERVICE (3) RESIDENTIAL: ANY SIZE PE SERVICE COMMERCIAL: UP TO 4" PE IN SIZE | C16: NOT APPLICABLE | D16: NOT APPLICABLE | E16: NOT APPLICABLE | F16: NOT APPLICABLE | G16: NOT APPLICABLE | H16: NOT APPLICABLE | I16: NOT APPLICABLE
B17: LENGTH OF THE SERVICE (FT) | C17: 0 | D17: 0 | E17: 0 | F17: 0 | G17: 0 | H17: 0 | I17: 0
B18: SITE-SPECIFIC, NON-STANDARD SERVICE CONSTRUCTION COSTS | C18: 0 | D18: 0 | E18: 0 | F18: 0 | G18: 0 | H18: 0 | I18: 0
A19: MSA | B19: METER SET ASSEMBLY | C19: NOT APPLICABLE | D19: NOT APPLICABLE | E19: NOT APPLICABLE | F19: NOT APPLICABLE | G19: NOT APPLICABLE | H19: NOT APPLICABLE | I19: NOT APPLICABLE
B20: SITE-SPECIFIC, NON-STANDARD MSA CONSTRUCTION COSTS | C20: 0 | D20: 0 | E20: 0 | F20: 0 | G20: 0 | H20: 0 | I20: 0
A21: OTHER PLANT | B21: NOTES ABOUT OTHER PLANT
B22: RESIDENTIAL METER RELOCATION | C22: NOT APPLICABLE | D22: NOT APPLICABLE | E22: NOT APPLICABLE | F22: NOT APPLICABLE | G22: NOT APPLICABLE | H22: NOT APPLICABLE | I22: NOT APPLICABLE
B23: TOTAL LENGTH OF THE RESIDENTIAL RELOCATION (FT) | C23: 0 | D23: 0 | E23: 0 | F23: 0 | G23: 0 | H23: 0 | I23: 0
B24: COMMERCIAL METER RELOCATION ESTIMATED COSTS | C24: 0 | D24: 0 | E24: 0 | F24: 0 | G24: 0 | H24: 0 | I24: 0
B25: SITE-SPECIFIC, NON-STANDARD PERMITS | C25: 0 | D25: 0 | E25: 0 | F25: 0 | G25: 0 | H25: 0 | I25: 0
B26: SITE-SPECIFIC, NON-STANDARD EASEMENTS | C26: 0 | D26: 0 | E26: 0 | F26: 0 | G26: 0 | H26: 0 | I26: 0
B27: SITE-SPECIFIC, NON-STANDARD PAVING | C27: 0 | D27: 0 | E27: 0 | F27: 0 | G27: 0 | H27: 0 | I27: 0
B28: LOCAL GOVERNMENT RELATED ADDITIONAL COSTS | C28: 0 | D28: 0 | E28: 0 | F28: 0 | G28: 0 | H28: 0 | I28: 0
B29: SITE-SPECIFIC, NON-STANDARD OTHER CONSTRUCTION COSTS | C29: 0 | D29: 0 | E29: 0 | F29: 0 | G29: 0 | H29: 0 | I29: 0
B30: CALCULATED CONSTRUCTION COSTS
B31: =+FIA!B26 -> MAIN COST: | C31: =OFFSET($C$115,MATCH(C$7,$B$116:$B$118,0),0)*C$8+OFFSET($C$115,MATCH(C$9,$B$116:$B$118,0),0)*C$10+C11+C41 -> 0 | D31: 0 | E31: 0 | F31: 0 | G31: 0 | H31: 0 | I31: 0
B32: =+FIA!B27 -> SERVICE COST/CUST: | C32: =OFFSET($C$121,MATCH(C$12,$B$122:$B$129,0),0)+OFFSET($C$121,MATCH(C$14,$B$122:$B$129,0),0)+OFFSET($C$121,MATCH(C$16,$B$122:$B$129,0),0)+OFFSET($D$121,MATCH(C$12,$B$122:$B$129,0),0)*C$13+OFFSET($D$121,MATCH(C$14,$B$122:$B$129,0),0)*C$15+OFFSET($D$121,MATCH(C$16,$B$122:$B$129,0),0)*C$17+C$18+C42 -> 0 | D32: 0 | E32: 0 | F32: 0 | G32: 0 | H32: 0 | I32: 0
B33: =+FIA!B28 -> MSA COST/CUST: | C33: =OFFSET($C$132,MATCH(C$19,$B$133:$B$153,0),0)+C20+C43 -> 0 | D33: 0 | E33: 0 | F33: 0 | G33: 0 | H33: 0 | I33: 0
B34: =+FIA!B29 -> OTHER PLANT: | C34: =MIN(OFFSET($C$158,MATCH(C$22,$B$159:$B$162,0),0)+OFFSET($C$158,MATCH(C$22,$B$159:$B$162,0),1)*MAX(C23-25,0),$C$163)+SUM(C25:C29,C24)+C44 -> 0 | D34: 0 | E34: 0 | F34: 0 | G34: 0 | H34: 0 | I34: 0
B35: TOTAL CONSTRUCTION COSTS | C35: =+SUM(C31:C34) -> 0 | D35: 0 | E35: 0 | F35: 0 | G35: 0 | H35: 0 | I35: 0
B40: RULE 7 REVIEW ONLY RULE 7 REVIEW ONLY RULE 7 REVIEW ONLY
B41: MAIN COST: | C41: 0 | D41: 0 | E41: 0 | F41: 0 | G41: 0 | H41: 0 | I41: 0
B42: SERVICE COST/CUST: | C42: 0 | D42: 0 | E42: 0 | F42: 0 | G42: 0 | H42: 0 | I42: 0
B43: MSA COST/CUST: | C43: 0 | D43: 0 | E43: 0 | F43: 0 | G43: 0 | H43: 0 | I43: 0
B44: OTHER PLANT: | C44: 0 | D44: 0 | E44: 0 | F44: 0 | G44: 0 | H44: 0 | I44: 0
A101: YES/NO
A102: Yes
A103: No
B111: LOOKUP TABLE 3 - Rule 7 Justification Estimates
B112: Facility Type | G112: Effective 1/1/09 | H112: Effective 1/1/10
B114: =+B7 -> GAS MAIN (1) (UP TO 4" PE) | F114: Facility Type | G114: Base Cost | H114: Cost per foot | I114: Base Cost | J114: Cost per foot
C115: Cost per foot | D115: Schedule 7 Section 5: Standard Costs Effecitve 9/1/06 | F115: 1 | G115: Gas Main (up to 4” PE in size)
B116: PSE PROVIDED TRENCH FOR GAS ONLY Enter Applicable length Below | C116: 42.78 | G116: With Company provided trench for gas only– | I116: 46.32 | K116: 42.78
B117: CUSTOMER PROVIDED TRENCH Enter Applicable length Below | C117: 15.29 | G117: With Customer provided trench–(*) | I117: 15.93 | K117: 15.29
B118: NOT APPLICABLE | C118: 0 | F118: 2 | G118: Gas Service
F119: a. | G119: Residential Gas Service (any size PE service)
B120: =+B12 -> GAS SERVICE (1) RESIDENTIAL: ANY SIZE PE SERVICE COMMERCIAL: UP TO 4" PE IN SIZE | G120: With Company provided trench for stub and service extension or from existing stub for service extension to meter location. | H120: 3242 | J120: 3479
B121: Residential Gas SVC | G121: With Company provided trench for stub; Customer provided trench or conduit for service extension from stub to meter location. | H121: 2228 | J121: 2341
B122: RES: PSE PROVIDED ALL TRENCH FOR STUB OR FROM EXISTING STUB TO METER Enter Applicable length Below | C122: 3479 | D122: 0 | G122: With Customer provided trench or conduit from main or from stub to meter location. (**) | H122: 870 | J122: 841
B123: RES: CUSTOMER PROVIDED TRENCH/CONDUIT FROM STUB TO METER; PSE PROVIDED TRENCH FOR STUB Enter Applicable length Below | C123: 2341 | D123: 0 | G123: With Customer provided trench or conduit from existing service on contiguous lot for twin services | H123: 1879 | J123: 1887
B124: RES: CUSTOMER PROVIDED ALL TRENCH/CONDUIT FROM MAIN OR FROM STUB TO METER Enter Applicable length Below | C124: 841 | D124: 0 | F124: b. | G124: Commercial Gas Service (up to 4” PE in size) The sum of the following charges, as applicable:
B125: RES: ALL TWIN SVCS Enter Applicable length Below | C125: 1887 | D125: 0 | G125: With Company provided trench in right-of-way to private property for stub | H125: 3491 | J125: 3722
B126: COMM: PSE PROVIDED TRENCH IN RIGHT-OF-WAY TO PRIVATE PROPERTY FOR STUB Enter Applicable length Below | C126: 3722 | D126: 0 | G126: With Company provided trench for service extension from stub to meter location | I126: 46.26 | K126: 46.45
B127: COMM: PSE PROVIDED TRENCH FROM STUB TO METER Enter Applicable length Below | C127: 0 | D127: 46.45 | G127: With Customer provided trench from either stub or main to meter location.(**) | I127: 23.07 | K127: 28.81
B128: COMM: CUSTOMER PROVIDED TRENCH FROM STUB OR MAIN TO METER Enter Applicable length Below | C128: 0 | D128: 28.81
B129: NOT APPLICABLE | C129: 0 | D129: 0
B132: 3 | C132: Meter set assembly | F132: Facility Type | G132: Effective 1/1/09 | H132: Effective 1/1/10
B133: MSA WITH MANIFOLD - EST. COSTS Contact Gas Industrial Meter Operations and Enter Total MSA Costs Below | C133: 0
B134: CLASS 250 INSTALLED CONCURRENTLY WITH A NEW SERVICE AND RISER / DIAPHRAGM LP DELIVERY | C134: 127 | F134: 3
B135: CLASS 400 INSTALLED CONCURRENTLY WITH A NEW SERVICE AND RISER / DIAPHRAGM LP DELIVERY | C135: 425 | F135: Meter set assembly | G135: Base Cost | H135: Cost per foot | I135: Base Cost | J135: Cost per foot
B136: 1000 INSTALLED CONCURRENTLY WITH A NEW SERVICE AND RISER / DIAPHRAGM LP DELIVERY | C136: 1269 | F136: a. | G136: Diaphragm meters
B137: CLASS 250 INSTALLED ON AN EXISTING SERVICE AND RISER / DIAPHRAGM LP DELIVERY | C137: 413 | G137: LP delivery and installed concurrently with a new service and a new riser
B138: CLASS 400 INSTALLED ON AN EXISTING SERVICE AND RISER / DIAPHRAGM LP DELIVERY | C138: 710 | G138: Class 250 meter set assembly | H138: 127 | J138: 127
B139: 1000 INSTALLED ON AN EXISTING SERVICE AND RISER / DIAPHRAGM LP DELIVERY | C139: 1442 | G139: Class 400 meter set assembly | H139: 424 | J139: 425
B140: 1400 INSTALLED ON A NEW RISER / DIAPHRAGM LP DELIVERY | C140: 6616 | G140: 1000 meter set assembly | H140: 1241 | J140: 1269
B141: 2300 INSTALLED ON A NEW RISER / DIAPHRAGM LP DELIVERY | C141: 7762 | G141: LP delivery and installed on an existing riser or an existing manifold
B142: 1000 INSTALLED ON A NEW RISER / DIAPHRAGM IP DELIVERY | C142: 6408 | G142: Class 250 meter set assembly | H142: 389 | J142: 413
B143: 3000 INSTALLED ON A NEW RISER / ROTARY LP DELIVERY | C143: 6072 | G143: Class 400 meter set assembly | H143: 687 | J143: 710
B144: 5000 INSTALLED ON A NEW RISER / ROTARY LP DELIVERY | C144: 7072 | G144: 1000 meter set assembly | H144: 1401 | J144: 1442
B145: 7000 INSTALLED ON A NEW RISER / ROTARY LP DELIVERY | C145: 7579 | G145: LP delivery and installed on a new riser
B146: 11000 INSTALLED ON A NEW RISER / ROTARY LP DELIVERY | C146: 11406 | G146: 1400 meter set assembly | H146: 6328 | J146: 6616
B147: 16000 INSTALLED ON A NEW RISER / ROTARY LP DELIVERY | C147: 15145 | G147: 2300 meter set assembly | H147: 8043 | J147: 7762
B148: 3000 INSTALLED ON A NEW RISER / ROTARY IP DELIVERY | C148: 7482 | G148: IP delivery and installed on a new riser
B149: 5000 INSTALLED ON A NEW RISER / ROTARY IP DELIVERY | C149: 8482 | G149: 1000 meter set assembly | H149: 7132 | J149: 6408
B150: 7000 INSTALLED ON A NEW RISER / ROTARY IP DELIVERY | C150: 8990 | G150: LP delivery with a manifold or IP delivery with a manifold
B151: 11000 INSTALLED ON A NEW RISER / ROTARY IP DELIVERY | C151: 12816 | G151: 1000 meter set assembly | H151: Est. Costs | J151: Est. Costs
B152: 16000 INSTALLED ON A NEW RISER / ROTARY IP DELIVERY | C152: 17862 | G152: 1400 meter set assembly | H152: Est. Costs | J152: Est. Costs
B153: NOT APPLICABLE | C153: 0 | F153: b. | G153: Rotary meters
G154: LP delivery and installed on a new riser
G155: 3000 meter set assembly | H155: 7872 | J155: 6072
B156: 4 | C156: Miscellaneous | G156: 5000 meter set assembly | H156: 7341 | J156: 7072
B157: RESIDENTIAL METER RELOCATION (BASE COST INCLUDES FIRST 25' OR LESS) | G157: 7000 meter set assembly | H157: 8178 | J157: 7579
C158: Base cost | D158: cost per foot | G158: 11000 meter set assembly | H158: 9908 | J158: 11406
B159: WITH CUSTOMER PROVIDED TRENCH | C159: 1221 | D159: 31.09 | G159: 16000 meter set assembly | H159: 14976 | J159: 15145
B160: WITH COMPANY PROVIDED TRENCH | C160: 1622 | D160: 32.26 | G160: IP delivery and installed on a new riser
B161: CUT & RESET RISER ONLY (NO ADDITIONAL SERVICE LINE) | C161: 1221 | G161: 3000 meter set assembly | H161: 9754 | J161: 7482
B162: NOT APPLICABLE | C162: 0 | G162: 5000 meter set assembly | H162: 9222 | J162: 8482
B163: maximum construction cost for residential meter relocation | C163: 3242 | G163: 7000 meter set assembly | H163: 10060 | J163: 8990
G164: 11000 meter set assembly | H164: 11790 | J164: 12816
G165: 16000 meter set assembly | H165: 18061 | J165: 17862
D168: Facility Type | E168: Effective 11/1/09 | F168: Effective 1/1/10
E171: Base Cost | F171: Cost per foot | G171: Base Cost | H171: Cost per foot
E172: Meter set assembly (Continued)
E173: LP delivery with a manifold or IP delivery with a manifold | F173: Est. Costs | H173: Est. Costs
E174: 3000 meter set assembly | F174: Est. Costs | H174: Est. Costs
E175: 5000 meter set assembly | F175: Est. Costs | H175: Est. Costs
E176: 7000 meter set assembly | F176: Est. Costs | H176: Est. Costs
E177: 11000 meter set assembly | F177: Est. Costs | H177: Est. Costs
E178: 16000 meter set assembly | F178: Est. Costs | H178: Est. Costs
D179: c. | E179: Turbine Meters | F179: Est. Costs | H179: Est. Costs
D180: 4 | E180: Miscellaneous
D181: a. | E181: Residential meter relocation (Base cost includes first 25' or less)*
E182: With Customer provided trench | F182: 1136 | G182: 33.09 | H182: 1221 | I182: 31.09
E183: With Company provided trench | F183: 1488 | G183: 34.21 | H183: 1622 | I183: 32.26
E184: Cut & reset riser only (no additional service line) | F184: 1136 | H184: 1221
E185: *The maximum construction cost for residential meter relocation | F185: 3242 | H185: 3242
D186: b. | E186: Commercial/Industrial meter relocation | F186: Est. Costs | H186: Est. Costs
D187: c. | E187: Excess Flow Valve Installation on an existing service | F187: Est. Costs | H187: Est. Costs
D188: d. | E188: Guard posts installed concurrently with a new service, per service or manifold
E189: 2.5" Posts | F189: 250 | H189: 250
E190: 4" Posts | F190: 303 | H190: 303
